Workbook

Sheet Datos (hidden)
B2: Meses | D2: Años | G2: FON
A3: 1 | B3: Enero | D3: 2010 | G3: FONP
A4: 2 | B4: Febrero | D4: 2011 | G4: FONB
A5: 3 | B5: Marzo | D5: 2012 | G5: FONE
A6: 4 | B6: Abril | G6: FONI
A7: 5 | B7: Mayo
A8: 6 | B8: Junio
A9: 7 | B9: Julio
A10: 8 | B10: Agosto
A11: 9 | B11: Setiembre
A12: 10 | B12: Octubre
A13: 11 | B13: Noviembre
A14: 12 | B14: Diciembre
M15: MICROREDES | P15: CODDISA | Q15: CODRED | R15: MICRORED | T15: ESTABLECIMIENTOS
B16: DISAS | G16: REDES | I16: CODDISA | J16: CODRED | K16: RED | M16: cod_disa | N16: cod_mic | O16: cod_red | P16: desc_micro | Q16: cod_micro | R16: Columna1 | T16: codestab | U16: desc_estab | V16: cod_2000 | W16: tipoestab | X16: cod_dpto | Y16: cod_prov | Z16: cod_dist | AA16: cod_disa | AB16: cod_red | AC16: cod_mic | AD16: cod_distri | AE16: cod_micro | AF16: DIST | AG16: DISARED | AL16: cod_dpto | AM16: cod_prov | AN16: desc_prov | AO16: cod_provi | AP16: PROVINCIA | AS16: cod_dpto | AT16: cod_prov | AU16: cod_dist | AV16: CODIGO | AW16: desc_dist | AX16: long_pobla | AY16: cod_provi | AZ16: cod_distri | BA16: distrito
A17: 11 | B17: CUSCO | C17: =CONCATENATE(A17,"-",B17) -> 11-CUSCO | F17: 11 | G17: 06 | H17: (Todas) | I17: 11 | J17: =IF(LEN(G17)=1,CONCATENATE("0",G17),G17) -> 06 | K17: =CONCATENATE(J17,"-",H17) -> 06-(Todas) | M17: 11 | N17: 00 | O17: 00 | P17: HOSPITALES | Q17: 0000 | R17: =CONCATENATE(TRIM(N17),"-",P17) -> 00-HOSPITALES | T17: 080101101 | U17: HOSP. REGIONAL CUSCO | V17: 2289 | W17: 1 | X17: 08 | Y17: 01 | Z17: 01 | AA17: 11 | AB17: 00 | AC17: 00 | AD17: 080101 | AE17: 0000 | AF17: 1 | AG17: =CONCATENATE(W17,X17) -> 108 | AH17: =CONCATENATE(AE17,"-",U17) -> 0000-HOSP. REGIONAL CUSCO | AM17: 00 | AN17: (Todas) | AO17: 0000 | AP17: =CONCATENATE(AM17,"-",AN17) -> 00-(Todas) | AS17: 08 | AT17: 01 | AU17: 01 | AV17: 0101 | AW17: CUSCO | AX17: 0 | AY17: 0801 | AZ17: 080101 | BA17: =CONCATENATE(AV17,"-",AW17) -> 0101-CUSCO
F18: 11 | G18: 00 | H18: HOSPITALES | I18: =IF(LEN(F18)=1,CONCATENATE("0",F18),F18) -> 11 | J18: 00 | K18: 00-HOSPITALES | M18: 11 | N18: 01 | O18: 01 | P18: SAN JERONIMO | Q18: 0101 | R18: =CONCATENATE(TRIM(N18),"-",P18) -> 01-SAN JERONIMO | T18: 080101305 | U18: C.S. INF.SAN PEDRO | V18: 2290 | W18: 2 | X18: 08 | Y18: 01 | Z18: 01 | AA18: 11 | AB18: 02 | AC18: 09 | AD18: 080101 | AE18: 0209 | AF18: 6 | AG18: 208 | AH18: =CONCATENATE(AE18,"-",U18) -> 0209-C.S. INF.SAN PEDRO | AL18: 08 | AM18: 01 | AN18: CUSCO | AO18: 0801 | AP18: =CONCATENATE(AM18,"-",AN18) -> 01-CUSCO | AS18: 08 | AT18: 01 | AU18: 02 | AV18: 0102 | AW18: CCORCA | AX18: 0 | AY18: 0801 | AZ18: 080102 | BA18: =CONCATENATE(AV18,"-",AW18) -> 0102-CCORCA
F19: 11 | G19: 01 | H19: CUSCO SUR | I19: 11 | J19: 01 | K19: 01-CUSCO SUR | M19: 11 | N19: 02 | O19: 01 | P19: SAN SEBASTIAN | Q19: 0102 | R19: 02-SAN SEBASTIAN | T19: 080101202 | U19: C.S. MAT.INF.7 CUARTONES | V19: 2291 | W19: 2 | X19: 08 | Y19: 01 | Z19: 01 | AA19: 11 | AB19: 02 | AC19: 09 | AD19: 080101 | AE19: 0209 | AF19: 5 | AG19: 208 | AH19: 0209-C.S. MAT.INF.7 CUARTONES | AL19: 08 | AM19: 02 | AN19: ACOMAYO | AO19: 0802 | AP19: =CONCATENATE(AM19,"-",AN19) -> 02-ACOMAYO | AS19: 08 | AT19: 01 | AU19: 03 | AV19: 0103 | AW19: POROY | AX19: 0 | AY19: 0801 | AZ19: 080103 | BA19: 0103-POROY
F20: 11 | G20: 02 | H20: CUSCO NORTE | I20: 11 | J20: 02 | K20: 02-CUSCO NORTE | M20: 11 | N20: 03 | O20: 01 | P20: PARURO | Q20: 0103 | R20: 03-PARURO | T20: 080101203 | U20: C.S. INDEPENDENCIA | V20: 2292 | W20: 2 | X20: 08 | Y20: 01 | Z20: 01 | AA20: 11 | AB20: 02 | AC20: 01 | AD20: 080101 | AE20: 0201 | AF20: 2 | AG20: 208 | AH20: 0201-C.S. INDEPENDENCIA | AL20: 08 | AM20: 03 | AN20: ANTA | AO20: 0803 | AP20: 03-ANTA | AS20: 08 | AT20: 01 | AU20: 04 | AV20: 0104 | AW20: SAN JERONIMO | AX20: 0 | AY20: 0801 | AZ20: 080104 | BA20: 0104-SAN JERONIMO
B21: Meses | F21: 11 | G21: 03 | H21: LA CONVENCION | I21: 11 | J21: 03 | K21: 03-LA CONVENCION | M21: 11 | N21: 04 | O21: 01 | P21: ACCHA | Q21: 0104 | R21: 04-ACCHA | T21: 080101301 | U21: P.S. MIRAFLORES | V21: 2293 | W21: 3 | X21: 08 | Y21: 01 | Z21: 01 | AA21: 11 | AB21: 02 | AC21: 09 | AD21: 080101 | AE21: 0209 | AF21: 5 | AG21: 308 | AH21: 0209-P.S. MIRAFLORES | AL21: 08 | AM21: 04 | AN21: CALCA | AO21: 0804 | AP21: 04-CALCA | AS21: 08 | AT21: 01 | AU21: 05 | AV21: 0105 | AW21: SAN SEBASTIAN | AX21: 0 | AY21: 0801 | AZ21: 080105 | BA21: 0105-SAN SEBASTIAN
A22: 1 | B22: Enero | F22: 11 | G22: 04 | H22: CANAS-CANCHIS-ESPINAR | I22: 11 | J22: 04 | K22: 04-CANAS-CANCHIS-ESPINAR | M22: 11 | N22: 05 | O22: 01 | P22: YAURISQUE | Q22: 0105 | R22: 05-YAURISQUE | T22: 080101302 | U22: P.S. PICCHU LA RINCONADA | V22: 2294 | W22: 3 | X22: 08 | Y22: 01 | Z22: 01 | AA22: 11 | AB22: 02 | AC22: 09 | AD22: 080101 | AE22: 0209 | AF22: 2 | AG22: 308 | AH22: 0209-P.S. PICCHU LA RINCONADA | AL22: 08 | AM22: 05 | AN22: CANAS | AO22: 0805 | AP22: 05-CANAS | AS22: 08 | AT22: 01 | AU22: 06 | AV22: 0106 | AW22: SANTIAGO | AX22: 0 | AY22: 0801 | AZ22: 080106 | BA22: 0106-SANTIAGO
A23: 2 | B23: Febrero | F23: 11 | G23: 05 | H23: QUIMBIRI | I23: 11 | J23: 05 | K23: 05-QUIMBIRI | M23: 11 | N23: 06 | O23: 01 | P23: PAUCARTAMBO | Q23: 0106 | R23: 06-PAUCARTAMBO | T23: 080101204 | U23: C.S. BUENA VISTA | V23: 2295 | W23: 2 | X23: 08 | Y23: 01 | Z23: 01 | AA23: 11 | AB23: 02 | AC23: 09 | AD23: 080101 | AE23: 0209 | AF23: 5 | AG23: 208 | AH23: 0209-C.S. BUENA VISTA | AL23: 08 | AM23: 06 | AN23: CANCHIS | AO23: 0806 | AP23: 06-CANCHIS | AS23: 08 | AT23: 01 | AU23: 07 | AV23: 0107 | AW23: SAYLLA | AX23: 0 | AY23: 0801 | AZ23: 080107 | BA23: 0107-SAYLLA
A24: 3 | B24: Marzo | M24: 11 | N24: 07 | O24: 01 | P24: KOSÐIPATA | Q24: 0107 | R24: 07-KOSÐIPATA | T24: 080102301 | U24: P.S. CCORCA | V24: 2297 | W24: 3 | X24: 08 | Y24: 01 | Z24: 02 | AA24: 11 | AB24: 02 | AC24: 01 | AD24: 080102 | AE24: 0201 | AH24: 0201-P.S. CCORCA | AL24: 08 | AM24: 07 | AN24: CHUMBIVILCAS | AO24: 0807 | AP24: 07-CHUMBIVILCAS | AS24: 08 | AT24: 01 | AU24: 08 | AV24: 0108 | AW24: WANCHAQ | AX24: 0 | AY24: 0801 | AZ24: 080108 | BA24: 0108-WANCHAQ
A25: 4 | B25: Abril | M25: 11 | N25: 08 | O25: 01 | P25: HUANCARANI | Q25: 0108 | R25: 08-HUANCARANI | T25: 080103301 | U25: P.S. POROY | V25: 2299 | W25: 3 | X25: 08 | Y25: 01 | Z25: 03 | AA25: 11 | AB25: 02 | AC25: 09 | AD25: 080103 | AE25: 0209 | AF25: 5 | AG25: =CONCATENATE(W25,X25) -> 308 | AH25: 0209-P.S. POROY | AL25: 08 | AM25: 08 | AN25: ESPINAR | AO25: 0808 | AP25: 08-ESPINAR | AS25: 08 | AT25: 02 | AU25: 01 | AV25: 0201 | AW25: ACOMAYO | AX25: 0 | AY25: 0802 | AZ25: 080201 | BA25: 0201-ACOMAYO
A26: 5 | B26: Mayo | M26: 11 | N26: 09 | O26: 01 | P26: SANTO TOMAS | Q26: 0109 | R26: 09-SANTO TOMAS | T26: 080104201 | U26: C.S. SAN JERONIMO | V26: 2300 | W26: 2 | X26: 08 | Y26: 01 | Z26: 04 | AA26: 11 | AB26: 01 | AC26: 01 | AD26: 080104 | AE26: 0101 | AF26: 6 | AG26: 208 | AH26: 0101-C.S. SAN JERONIMO | AL26: 08 | AM26: 09 | AN26: LA CONVENCION | AO26: 0809 | AP26: 09-LA CONVENCION | AS26: 08 | AT26: 02 | AU26: 02 | AV26: 0202 | AW26: ACOPIA | AX26: 0 | AY26: 0802 | AZ26: 080202 | BA26: 0202-ACOPIA
A27: 6 | B27: Junio | M27: 11 | N27: 10 | O27: 01 | P27: VELILLE | Q27: 0110 | R27: 10-VELILLE | T27: 080105201 | U27: C.S. SAN SEBASTIAN | V27: 2301 | W27: 2 | X27: 08 | Y27: 01 | Z27: 05 | AA27: 11 | AB27: 01 | AC27: 02 | AD27: 080105 | AE27: 0102 | AF27: 6 | AG27: 208 | AH27: 0102-C.S. SAN SEBASTIAN | AL27: 08 | AM27: 10 | AN27: PARURO | AO27: 0810 | AP27: 10-PARURO | AS27: 08 | AT27: 02 | AU27: 03 | AV27: 0203 | AW27: ACOS | AX27: 0 | AY27: 0802 | AZ27: 080203 | BA27: 0203-ACOS
A28: 7 | B28: Julio | M28: 11 | N28: 11 | O28: 01 | P28: COLQUEMARCA | Q28: 0111 | R28: 11-COLQUEMARCA | T28: 080105301 | U28: P.S. CCORAO | V28: 2302 | W28: 3 | X28: 08 | Y28: 01 | Z28: 05 | AA28: 11 | AB28: 02 | AC28: 02 | AD28: 080105 | AE28: 0202 | AF28: 1 | AG28: 308 | AH28: 0202-P.S. CCORAO | AL28: 08 | AM28: 11 | AN28: PAUCARTAMBO | AO28: 0811 | AP28: 11-PAUCARTAMBO | AS28: 08 | AT28: 02 | AU28: 04 | AV28: 0204 | AW28: MOSOC LLACTA | AX28: 0 | AY28: 0802 | AZ28: 080204 | BA28: 0204-MOSOC LLACTA
A29: 8 | B29: Agosto | C29: 1 | D29: 2 | M29: 11 | N29: 12 | O29: 01 | P29: URCOS | Q29: 0112 | R29: 12-URCOS | T29: 080105202 | U29: P.S. SANTA ROSA | V29: 2303 | W29: 3 | X29: 08 | Y29: 01 | Z29: 05 | AA29: 11 | AB29: 01 | AC29: 02 | AD29: 080105 | AE29: 0102 | AF29: 7 | AG29: 308 | AH29: 0102-P.S. SANTA ROSA | AL29: 08 | AM29: 12 | AN29: QUISPICANCHI | AO29: 0812 | AP29: 12-QUISPICANCHI | AS29: 08 | AT29: 02 | AU29: 05 | AV29: 0205 | AW29: POMACANCHI | AX29: 0 | AY29: 0802 | AZ29: 080205 | BA29: 0205-POMACANCHI
A30: 9 | B30: Setiembre | M30: 11 | N30: 13 | O30: 01 | P30: ACOMAYO | Q30: 0113 | R30: 13-ACOMAYO | T30: 080105203 | U30: P.S. TUPAC AMARU | V30: 2304 | W30: 3 | X30: 08 | Y30: 01 | Z30: 05 | AA30: 11 | AB30: 01 | AC30: 02 | AD30: 080105 | AE30: 0102 | AF30: 1 | AG30: 308 | AH30: 0102-P.S. TUPAC AMARU | AL30: 08 | AM30: 13 | AN30: URUBAMBA | AO30: 0813 | AP30: 13-URUBAMBA | AS30: 08 | AT30: 02 | AU30: 06 | AV30: 0206 | AW30: RONDOCAN | AX30: 0 | AY30: 0802 | AZ30: 080206 | BA30: 0206-RONDOCAN
A31: 10 | B31: Octubre | M31: 11 | N31: 14 | O31: 01 | P31: POMACANCHI | Q31: 0114 | R31: 14-POMACANCHI | T31: 080106101 | U31: HOSP. APOYO A.LORENA | V31: 2305 | W31: 1 | X31: 08 | Y31: 01 | Z31: 06 | AA31: 11 | AB31: 00 | AC31: 00 | AD31: 080106 | AE31: 0000 | AH31: 0000-HOSP. APOYO A.LORENA | AS31: 08 | AT31: 02 | AU31: 07 | AV31: 0207 | AW31: SANGARARA | AX31: 0 | AY31: 0802 | AZ31: 080207 | BA31: 0207-SANGARARA
A32: 11 | B32: Noviembre | M32: 11 | N32: 15 | O32: 01 | P32: OCONGATE | Q32: 0115 | R32: 15-OCONGATE | T32: 080106201 | U32: C.S. BELEMPAMPA | V32: 2306 | W32: 2 | X32: 08 | Y32: 01 | Z32: 06 | AA32: 11 | AB32: 02 | AC32: 01 | AD32: 080106 | AE32: 0201 | AF32: 8 | AG32: =CONCATENATE(W32,X32) -> 208 | AH32: 0201-C.S. BELEMPAMPA | AS32: 08 | AT32: 03 | AU32: 01 | AV32: 0301 | AW32: ANTA | AX32: 0 | AY32: 0803 | AZ32: 080301 | BA32: 0301-ANTA
A33: 12 | B33: Diciembre | M33: 11 | N33: 01 | O33: 02 | P33: BELEMPAMPA | Q33: 0201 | R33: 01-BELEMPAMPA | T33: 080106202 | U33: P.S. MANCO CCAPAC | V33: 2307 | W33: 3 | X33: 08 | Y33: 01 | Z33: 06 | AA33: 11 | AB33: 02 | AC33: 02 | AD33: 080106 | AE33: 0202 | AF33: 2 | AG33: =CONCATENATE(W33,X33) -> 308 | AH33: 0202-P.S. MANCO CCAPAC | AS33: 08 | AT33: 03 | AU33: 02 | AV33: 0302 | AW33: ANCAHUASI | AX33: 0 | AY33: 0803 | AZ33: 080302 | BA33: 0302-ANCAHUASI
A34: 13 | B34: 1er. Trimestre | M34: 11 | N34: 02 | O34: 02 | P34: WANCHAQ | Q34: 0202 | R34: 02-WANCHAQ | T34: 080106303 | U34: P.S. ZARZUELA ALTA | V34: 2308 | W34: 3 | X34: 08 | Y34: 01 | Z34: 06 | AA34: 11 | AB34: 02 | AC34: 01 | AD34: 080106 | AE34: 0201 | AF34: 3 | AG34: =CONCATENATE(W34,X34) -> 308 | AH34: 0201-P.S. ZARZUELA ALTA | AS34: 08 | AT34: 03 | AU34: 03 | AV34: 0303 | AW34: CACHIMAYO | AX34: 0 | AY34: 0803 | AZ34: 080303 | BA34: 0303-CACHIMAYO
A35: 14 | B35: 2do. Trimestre | M35: 11 | N35: 03 | O35: 02 | P35: ANTA | Q35: 0203 | R35: 03-ANTA | T35: 080106304 | U35: P.S. DIGNIDAD NACIONAL | V35: 2309 | W35: 3 | X35: 08 | Y35: 01 | Z35: 06 | AA35: 11 | AB35: 02 | AC35: 01 | AD35: 080106 | AE35: 0201 | AH35: 0201-P.S. DIGNIDAD NACIONAL | AS35: 08 | AT35: 03 | AU35: 04 | AV35: 0304 | AW35: CHINCHAYPUJIO | AX35: 0 | AY35: 0803 | AZ35: 080304 | BA35: 0304-CHINCHAYPUJIO
A36: 15 | B36: 3er. Trimestre | M36: 11 | N36: 04 | O36: 02 | P36: LIMATAMBO | Q36: 0204 | R36: 04-LIMATAMBO | T36: 080106305 | U36: P.S. CHOCCO | V36: 2310 | W36: 3 | X36: 08 | Y36: 01 | Z36: 06 | AA36: 11 | AB36: 02 | AC36: 02 | AD36: 080106 | AE36: 0202 | AF36: 9 | AG36: =CONCATENATE(W36,X36) -> 308 | AH36: 0202-P.S. CHOCCO | AS36: 08 | AT36: 03 | AU36: 05 | AV36: 0305 | AW36: HUAROCONDO | AX36: 0 | AY36: 0803 | AZ36: 080305 | BA36: 0305-HUAROCONDO
A37: 16 | B37: 4to. Trimestre | M37: 11 | N37: 05 | O37: 02 | P37: PISAC | Q37: 0205 | R37: 05-PISAC | T37: 080106308 | U37: P.S. OCCOPATA | V37: 2313 | W37: 3 | X37: 08 | Y37: 01 | Z37: 06 | AA37: 11 | AB37: 02 | AC37: 01 | AD37: 080106 | AE37: 0201 | AF37: 1 | AG37: 308 | AH37: 0201-P.S. OCCOPATA | AS37: 08 | AT37: 03 | AU37: 06 | AV37: 0306 | AW37: LIMATAMBO | AX37: 0 | AY37: 0803 | AZ37: 080306 | BA37: 0306-LIMATAMBO
A38: 17 | B38: 1er. Semestre | M38: 11 | N38: 06 | O38: 02 | P38: CALCA | Q38: 0206 | R38: 06-CALCA | T38: 080107301 | U38: P.S. SAYLLA | V38: 2314 | W38: 3 | X38: 08 | Y38: 01 | Z38: 07 | AA38: 11 | AB38: 01 | AC38: 01 | AD38: 080107 | AE38: 0101 | AF38: 2 | AG38: 308 | AH38: 0101-P.S. SAYLLA | AS38: 08 | AT38: 03 | AU38: 07 | AV38: 0307 | AW38: MOLLEPATA | AX38: 0 | AY38: 0803 | AZ38: 080307 | BA38: 0307-MOLLEPATA
A39: 18 | B39: 2do. Semestre | M39: 11 | N39: 07 | O39: 02 | P39: URUBAMBA | Q39: 0207 | R39: 07-URUBAMBA | T39: 080108201 | U39: C.S. WANCHAC | V39: 2315 | W39: 2 | X39: 08 | Y39: 01 | Z39: 08 | AA39: 11 | AB39: 02 | AC39: 02 | AD39: 080108 | AE39: 0202 | AF39: 3 | AG39: 208 | AH39: 0202-C.S. WANCHAC | AS39: 08 | AT39: 03 | AU39: 08 | AV39: 0308 | AW39: PUCYURA | AX39: 0 | AY39: 0803 | AZ39: 080308 | BA39: 0308-PUCYURA
A40: 19 | B40: Anual | M40: 11 | N40: 08 | O40: 02 | P40: YANATILE | Q40: 0208 | R40: 08-YANATILE | T40: 080108202 | U40: C.S. TTIO | V40: 2316 | W40: 2 | X40: 08 | Y40: 01 | Z40: 08 | AA40: 11 | AB40: 02 | AC40: 02 | AD40: 080108 | AE40: 0202 | AF40: 4 | AG40: 208 | AH40: 0202-C.S. TTIO | AS40: 08 | AT40: 03 | AU40: 09 | AV40: 0309 | AW40: ZURITE | AX40: 0 | AY40: 0803 | AZ40: 080309 | BA40: 0309-ZURITE
M41: 11 | N41: 09 | O41: 02 | P41: SIETE CUARTONES | Q41: 0209 | R41: 09-SIETE CUARTONES | T41: 080201201 | U41: C.S. ACOMAYO | V41: 2317 | W41: 2 | X41: 08 | Y41: 02 | Z41: 01 | AA41: 11 | AB41: 01 | AC41: 13 | AD41: 080201 | AE41: 0113 | AF41: 4 | AG41: 208 | AH41: 0113-C.S. ACOMAYO | AS41: 08 | AT41: 04 | AU41: 01 | AV41: 0401 | AW41: CALCA | AX41: 0 | AY41: 0804 | AZ41: 080401 | BA41: 0401-CALCA
M42: 11 | N42: 01 | O42: 03 | P42: SANTA ANA | Q42: 0301 | R42: 01-SANTA ANA | T42: 080202301 | U42: P.S. ACOPIA | V42: 2318 | W42: 3 | X42: 08 | Y42: 02 | Z42: 02 | AA42: 11 | AB42: 01 | AC42: 14 | AD42: 080202 | AE42: 0114 | AF42: 4 | AG42: 308 | AH42: 0114-P.S. ACOPIA | AS42: 08 | AT42: 04 | AU42: 02 | AV42: 0402 | AW42: COYA | AX42: 0 | AY42: 0804 | AZ42: 080402 | BA42: 0402-COYA
M43: 11 | N43: 02 | O43: 03 | P43: MARANURA | Q43: 0302 | R43: 02-MARANURA | T43: 080203301 | U43: P.S. ACOS | V43: 2319 | W43: 3 | X43: 08 | Y43: 02 | Z43: 03 | AA43: 11 | AB43: 01 | AC43: 13 | AD43: 080203 | AE43: 0113 | AF43: 6 | AG43: 308 | AH43: 0113-P.S. ACOS | AS43: 08 | AT43: 04 | AU43: 03 | AV43: 0403 | AW43: LAMAY | AX43: 0 | AY43: 0804 | AZ43: 080403 | BA43: 0403-LAMAY
M44: 11 | N44: 03 | O44: 03 | P44: QUELLOUNO | Q44: 0303 | R44: 03-QUELLOUNO | T44: 080204301 | U44: P.S. MOSOCLLACTA | V44: 2320 | W44: 3 | X44: 08 | Y44: 02 | Z44: 04 | AA44: 11 | AB44: 04 | AC44: 03 | AD44: 080204 | AE44: 0403 | AF44: 2 | AG44: 308 | AH44: 0403-P.S. MOSOCLLACTA | AS44: 08 | AT44: 04 | AU44: 04 | AV44: 0404 | AW44: LARES | AX44: 0 | AY44: 0804 | AZ44: 080404 | BA44: 0404-LARES
M45: 11 | N45: 04 | O45: 03 | P45: KITENI | Q45: 0304 | R45: 04-KITENI | T45: 080205201 | U45: C.S. POMACANCHI | V45: 2321 | W45: 2 | X45: 08 | Y45: 02 | Z45: 05 | AA45: 11 | AB45: 01 | AC45: 14 | AD45: 080205 | AE45: 0114 | AF45: 4 | AG45: 208 | AH45: 0114-C.S. POMACANCHI | AS45: 08 | AT45: 04 | AU45: 05 | AV45: 0405 | AW45: PISAC | AX45: 0 | AY45: 0804 | AZ45: 080405 | BA45: 0405-PISAC
M46: 11 | N46: 05 | O46: 03 | P46: KAMISEA | Q46: 0305 | R46: 05-KAMISEA | T46: 080205302 | U46: P.S. SAN JUAN DE POMACANCHI | V46: 2322 | W46: 3 | X46: 08 | Y46: 02 | Z46: 05 | AA46: 11 | AB46: 01 | AC46: 14 | AD46: 080205 | AE46: 0114 | AF46: 5 | AG46: 308 | AH46: 0114-P.S. SAN JUAN DE POMACANCHI | AS46: 08 | AT46: 04 | AU46: 06 | AV46: 0406 | AW46: SAN SALVADOR | AX46: 0 | AY46: 0804 | AZ46: 080406 | BA46: 0406-SAN SALVADOR
M47: 11 | N47: 06 | O47: 03 | P47: PUCYURA | Q47: 0306 | R47: 06-PUCYURA | T47: 080206301 | U47: P.S. RONDOCAN | V47: 2323 | W47: 3 | X47: 08 | Y47: 02 | Z47: 06 | AA47: 11 | AB47: 01 | AC47: 03 | AD47: 080206 | AE47: 0103 | AF47: 6 | AG47: 308 | AH47: 0103-P.S. RONDOCAN | AS47: 08 | AT47: 04 | AU47: 07 | AV47: 0407 | AW47: TARAY | AX47: 0 | AY47: 0804 | AZ47: 080407 | BA47: 0407-TARAY
M48: 11 | N48: 07 | O48: 03 | P48: HOSP PERIFERIE | Q48: 0307 | R48: 07-HOSP PERIFERIE | T48: 080207302 | U48: C.S. SANGARARA | V48: 2324 | W48: 2 | X48: 08 | Y48: 02 | Z48: 07 | AA48: 11 | AB48: 01 | AC48: 14 | AD48: 080207 | AE48: 0114 | AF48: 6 | AG48: 208 | AH48: 0114-C.S. SANGARARA | AS48: 08 | AT48: 04 | AU48: 08 | AV48: 0408 | AW48: YANATILE | AX48: 0 | AY48: 0804 | AZ48: 080408 | BA48: 0408-YANATILE
M49: 11 | N49: 01 | O49: 04 | P49: YANAOCA | Q49: 0401 | R49: 01-YANAOCA | T49: 080207301 | U49: P.S. MARCACONGA | V49: 2325 | W49: 3 | X49: 08 | Y49: 02 | Z49: 07 | AA49: 11 | AB49: 01 | AC49: 14 | AD49: 080207 | AE49: 0114 | AF49: 1 | AG49: 308 | AH49: 0114-P.S. MARCACONGA | AS49: 08 | AT49: 05 | AU49: 01 | AV49: 0501 | AW49: YANAOCA | AX49: 0 | AY49: 0805 | AZ49: 080501 | BA49: 0501-YANAOCA
M50: 11 | N50: 02 | O50: 04 | P50: EL DESCANSO | Q50: 0402 | R50: 02-EL DESCANSO | T50: 080301201 | U50: C.S. ANTA | V50: 2326 | W50: 2 | X50: 08 | Y50: 03 | Z50: 01 | AA50: 11 | AB50: 02 | AC50: 03 | AD50: 080301 | AE50: 0203 | AF50: 3 | AG50: 208 | AH50: 0203-C.S. ANTA | AS50: 08 | AT50: 05 | AU50: 02 | AV50: 0502 | AW50: CHECCA | AX50: 0 | AY50: 0805 | AZ50: 080502 | BA50: 0502-CHECCA
M51: 11 | N51: 03 | O51: 04 | P51: COMBAPATA | Q51: 0403 | R51: 03-COMBAPATA | T51: 080301301 | U51: P.S. CHACAN | V51: 2327 | W51: 3 | X51: 08 | Y51: 03 | Z51: 01 | AA51: 11 | AB51: 02 | AC51: 03 | AD51: 080301 | AE51: 0203 | AF51: 5 | AG51: 308 | AH51: 0203-P.S. CHACAN | AS51: 08 | AT51: 05 | AU51: 03 | AV51: 0503 | AW51: KUNTURKANKI | AX51: 0 | AY51: 0805 | AZ51: 080503 | BA51: 0503-KUNTURKANKI
M52: 11 | N52: 04 | O52: 04 | P52: TECHO OBRERO | Q52: 0404 | R52: 04-TECHO OBRERO | T52: 080301302 | U52: P.S. COMPONE | V52: 2328 | W52: 3 | X52: 08 | Y52: 03 | Z52: 01 | AA52: 11 | AB52: 02 | AC52: 03 | AD52: 080301 | AE52: 0203 | AH52: 0203-P.S. COMPONE | AS52: 08 | AT52: 05 | AU52: 04 | AV52: 0504 | AW52: LANGUI | AX52: 0 | AY52: 0805 | AZ52: 080504 | BA52: 0504-LANGUI
M53: 11 | N53: 05 | O53: 04 | P53: PAMPAPHALLA | Q53: 0405 | R53: 05-PAMPAPHALLA | T53: 080301303 | U53: P.S. CONCHACALLA | V53: 2329 | W53: 3 | X53: 08 | Y53: 03 | Z53: 01 | AA53: 11 | AB53: 02 | AC53: 03 | AD53: 080301 | AE53: 0203 | AF53: 4 | AG53: =CONCATENATE(W53,X53) -> 308 | AH53: 0203-P.S. CONCHACALLA | AS53: 08 | AT53: 05 | AU53: 05 | AV53: 0505 | AW53: LAYO | AX53: 0 | AY53: 0805 | AZ53: 080505 | BA53: 0505-LAYO
M54: 11 | N54: 06 | O54: 04 | P54: YAURI | Q54: 0406 | R54: 06-YAURI | T54: 080302301 | U54: P.S. ANCAHUASI | V54: 2330 | W54: 3 | X54: 08 | Y54: 03 | Z54: 02 | AA54: 11 | AB54: 02 | AC54: 03 | AD54: 080302 | AE54: 0203 | AF54: 5 | AG54: =CONCATENATE(W54,X54) -> 308 | AH54: 0203-P.S. ANCAHUASI | AS54: 08 | AT54: 05 | AU54: 06 | AV54: 0506 | AW54: PAMPAMARCA | AX54: 0 | AY54: 0805 | AZ54: 080506 | BA54: 0506-PAMPAMARCA
M55: 11 | N55: 07 | O55: 04 | P55: HOSP PERIFERIE | Q55: 0407 | R55: 07-HOSP PERIFERIE | T55: 080303301 | U55: P.S. CACHIMAYO | V55: 2331 | W55: 3 | X55: 08 | Y55: 03 | Z55: 03 | AA55: 11 | AB55: 02 | AC55: 03 | AD55: 080303 | AE55: 0203 | AF55: 3 | AG55: =CONCATENATE(W55,X55) -> 308 | AH55: 0203-P.S. CACHIMAYO | AS55: 08 | AT55: 05 | AU55: 07 | AV55: 0507 | AW55: QUEHUE | AX55: 0 | AY55: 0805 | AZ55: 080507 | BA55: 0507-QUEHUE
M56: 11 | N56: 07 | O56: 05 | P56: QUIMBIRI | Q56: 0507 | R56: 07-QUIMBIRI | T56: 080304301 | U56: P.S. CHINCHAYPUGIO | V56: 2332 | W56: 3 | X56: 08 | Y56: 03 | Z56: 04 | AA56: 11 | AB56: 02 | AC56: 03 | AD56: 080304 | AE56: 0203 | AF56: 3 | AG56: =CONCATENATE(W56,X56) -> 308 | AH56: 0203-P.S. CHINCHAYPUGIO | AS56: 08 | AT56: 05 | AU56: 08 | AV56: 0508 | AW56: TUPAC AMARU | AX56: 0 | AY56: 0805 | AZ56: 080508 | BA56: 0508-TUPAC AMARU
M57: 11 | N57: 08 | O57: 05 | P57: PICHARI | Q57: 0508 | R57: 08-PICHARI | T57: 080305301 | U57: P.S. HUAROCONDO | V57: 2333 | W57: 3 | X57: 08 | Y57: 03 | Z57: 05 | AA57: 11 | AB57: 02 | AC57: 03 | AD57: 080305 | AE57: 0203 | AH57: 0203-P.S. HUAROCONDO | AS57: 08 | AT57: 06 | AU57: 01 | AV57: 0601 | AW57: SICUANI | AX57: 0 | AY57: 0806 | AZ57: 080601 | BA57: 0601-SICUANI
N58: 01 | O58: 01 | P58: (Todas) | Q58: 0000 | R58: 06-(Todas) | T58: 080305302 | U58: P.S. HUAYLLACOCHA | V58: 2334 | W58: 3 | X58: 08 | Y58: 03 | Z58: 05 | AA58: 11 | AB58: 02 | AC58: 03 | AD58: 080305 | AE58: 0203 | AH58: 0203-P.S. HUAYLLACOCHA | AS58: 08 | AT58: 06 | AU58: 02 | AV58: 0602 | AW58: CHECACUPE | AX58: 0 | AY58: 0806 | AZ58: 080602 | BA58: 0602-CHECACUPE
N59: 02 | O59: 02 | P59: (Todas) | Q59: 0000 | R59: 06-(Todas) | T59: 080306201 | U59: C.S. LIMATAMBO | V59: 2336 | W59: 2 | X59: 08 | Y59: 03 | Z59: 06 | AA59: 11 | AB59: 02 | AC59: 04 | AD59: 080306 | AE59: 0204 | AH59: 0204-C.S. LIMATAMBO | AS59: 08 | AT59: 06 | AU59: 03 | AV59: 0603 | AW59: COMBAPATA | AX59: 0 | AY59: 0806 | AZ59: 080603 | BA59: 0603-COMBAPATA
N60: 03 | O60: 03 | P60: (Todas) | Q60: 0000 | R60: 06-(Todas) | T60: 080306301 | U60: P.S. PAMPACONGA | V60: 2337 | W60: 3 | X60: 08 | Y60: 03 | Z60: 06 | AA60: 11 | AB60: 02 | AC60: 04 | AD60: 080306 | AE60: 0204 | AH60: 0204-P.S. PAMPACONGA | AS60: 08 | AT60: 06 | AU60: 04 | AV60: 0604 | AW60: MARANGANI | AX60: 0 | AY60: 0806 | AZ60: 080604 | BA60: 0604-MARANGANI
N61: 04 | O61: 04 | P61: (Todas) | Q61: 0000 | R61: 06-(Todas) | T61: 080307301 | U61: P.S. MOLLEPATA | V61: 2338 | W61: 3 | X61: 08 | Y61: 03 | Z61: 07 | AA61: 11 | AB61: 02 | AC61: 04 | AD61: 080307 | AE61: 0204 | AH61: 0204-P.S. MOLLEPATA | AS61: 08 | AT61: 06 | AU61: 05 | AV61: 0605 | AW61: PITUMARCA | AX61: 0 | AY61: 0806 | AZ61: 080605 | BA61: 0605-PITUMARCA
N62: 05 | O62: 05 | P62: (Todas) | Q62: 0000 | R62: 06-(Todas) | T62: 080308301 | U62: P.S. PUCYURA | V62: 2339 | W62: 3 | X62: 08 | Y62: 03 | Z62: 08 | AA62: 11 | AB62: 02 | AC62: 03 | AD62: 080308 | AE62: 0203 | AH62: 0203-P.S. PUCYURA | AS62: 08 | AT62: 06 | AU62: 06 | AV62: 0606 | AW62: SAN PABLO | AX62: 0 | AY62: 0806 | AZ62: 080606 | BA62: 0606-SAN PABLO
N63: 06 | O63: 06 | P63: (Todas) | Q63: 0000 | R63: 06-(Todas) | T63: 080309301 | U63: P.S. ZURITE | V63: 2340 | W63: 3 | X63: 08 | Y63: 03 | Z63: 09 | AA63: 11 | AB63: 02 | AC63: 03 | AD63: 080309 | AE63: 0203 | AH63: 0203-P.S. ZURITE | AS63: 08 | AT63: 06 | AU63: 07 | AV63: 0607 | AW63: SAN PEDRO | AX63: 0 | AY63: 0806 | AZ63: 080607 | BA63: 0607-SAN PEDRO
N64: 07 | O64: 07 | P64: (Todas) | Q64: 0000 | R64: 06-(Todas) | T64: 080401201 | U64: C.S. CALCA | V64: 2341 | W64: 2 | X64: 08 | Y64: 04 | Z64: 01 | AA64: 11 | AB64: 02 | AC64: 06 | AD64: 080401 | AE64: 0206 | AH64: 0206-C.S. CALCA | AS64: 08 | AT64: 06 | AU64: 08 | AV64: 0608 | AW64: TINTA | AX64: 0 | AY64: 0806 | AZ64: 080608 | BA64: 0608-TINTA
T65: 080401301 | U65: P.S. AMPARAES | V65: 2342 | W65: 3 | X65: 08 | Y65: 04 | Z65: 01 | AA65: 11 | AB65: 02 | AC65: 06 | AD65: 080401 | AE65: 0206 | AH65: 0206-P.S. AMPARAES | AS65: 08 | AT65: 07 | AU65: 01 | AV65: 0701 | AW65: SANTO TOMAS | AX65: 0 | AY65: 0807 | AZ65: 080701 | BA65: 0701-SANTO TOMAS
T66: 080402301 | U66: P.S. COYA | V66: 2343 | W66: 3 | X66: 08 | Y66: 04 | Z66: 02 | AA66: 11 | AB66: 02 | AC66: 05 | AD66: 080402 | AE66: 0205 | AH66: 0205-P.S. COYA | AS66: 08 | AT66: 07 | AU66: 02 | AV66: 0702 | AW66: CAPACMARCA | AX66: 0 | AY66: 0807 | AZ66: 080702 | BA66: 0702-CAPACMARCA
T67: 080403301 | U67: P.S. LAMAY | V67: 2344 | W67: 3 | X67: 08 | Y67: 04 | Z67: 03 | AA67: 11 | AB67: 02 | AC67: 05 | AD67: 080403 | AE67: 0205 | AH67: 0205-P.S. LAMAY | AS67: 08 | AT67: 07 | AU67: 03 | AV67: 0703 | AW67: CHAMACA | AX67: 0 | AY67: 0807 | AZ67: 080703 | BA67: 0703-CHAMACA
T68: 080404301 | U68: P.S. CCACHIN | V68: 2345 | W68: 3 | X68: 08 | Y68: 04 | Z68: 04 | AA68: 11 | AB68: 02 | AC68: 06 | AD68: 080404 | AE68: 0206 | AH68: 0206-P.S. CCACHIN | AS68: 08 | AT68: 07 | AU68: 04 | AV68: 0704 | AW68: COLQUEMARCA | AX68: 0 | AY68: 0807 | AZ68: 080704 | BA68: 0704-COLQUEMARCA
T69: 080404302 | U69: P.S. CHOQUECANCHA | V69: 2346 | W69: 3 | X69: 08 | Y69: 04 | Z69: 04 | AA69: 11 | AB69: 02 | AC69: 06 | AD69: 080404 | AE69: 0206 | AF69: 4 | AG69: =CONCATENATE(W69,X69) -> 308 | AH69: 0206-P.S. CHOQUECANCHA | AS69: 08 | AT69: 07 | AU69: 05 | AV69: 0705 | AW69: LIVITACA | AX69: 0 | AY69: 0807 | AZ69: 080705 | BA69: 0705-LIVITACA
T70: 080404201 | U70: P.S. LARES | V70: 2347 | W70: 3 | X70: 08 | Y70: 04 | Z70: 04 | AA70: 11 | AB70: 02 | AC70: 06 | AD70: 080404 | AE70: 0206 | AF70: 4 | AG70: =CONCATENATE(W70,X70) -> 308 | AH70: 0206-P.S. LARES | AS70: 08 | AT70: 07 | AU70: 06 | AV70: 0706 | AW70: LLUSCO | AX70: 0 | AY70: 0807 | AZ70: 080706 | BA70: 0706-LLUSCO
T71: 080405201 | U71: C.S. PISAC | V71: 2348 | W71: 2 | X71: 08 | Y71: 04 | Z71: 05 | AA71: 11 | AB71: 02 | AC71: 05 | AD71: 080405 | AE71: 0205 | AH71: 0205-C.S. PISAC | AS71: 08 | AT71: 07 | AU71: 07 | AV71: 0707 | AW71: QUI¥OTA | AX71: 0 | AY71: 0807 | AZ71: 080707 | BA71: 0707-QUI¥OTA
T72: 080405301 | U72: P.S. CUYO CHICO | V72: 2349 | W72: 3 | X72: 08 | Y72: 04 | Z72: 05 | AA72: 11 | AB72: 02 | AC72: 05 | AD72: 080405 | AE72: 0205 | AF72: 6 | AG72: =CONCATENATE(W72,X72) -> 308 | AH72: 0205-P.S. CUYO CHICO | AS72: 08 | AT72: 07 | AU72: 08 | AV72: 0708 | AW72: VELILLE | AX72: 0 | AY72: 0807 | AZ72: 080708 | BA72: 0708-VELILLE
T73: 080405302 | U73: P.S. CUYO GRANDE | V73: 2350 | W73: 3 | X73: 08 | Y73: 04 | Z73: 05 | AA73: 11 | AB73: 02 | AC73: 05 | AD73: 080405 | AE73: 0205 | AF73: 1 | AG73: =CONCATENATE(W73,X73) -> 308 | AH73: 0205-P.S. CUYO GRANDE | AS73: 08 | AT73: 08 | AU73: 01 | AV73: 0801 | AW73: ESPINAR | AX73: 0 | AY73: 0808 | AZ73: 080801 | BA73: 0801-ESPINAR
T74: 080405303 | U74: P.S. QUELLO QUELLO | V74: 2351 | W74: 3 | X74: 08 | Y74: 04 | Z74: 05 | AA74: 11 | AB74: 02 | AC74: 05 | AD74: 080405 | AE74: 0205 | AF74: 2 | AG74: =CONCATENATE(W74,X74) -> 308 | AH74: 0205-P.S. QUELLO QUELLO | AS74: 08 | AT74: 08 | AU74: 02 | AV74: 0802 | AW74: CONDOROMA | AX74: 0 | AY74: 0808 | AZ74: 080802 | BA74: 0802-CONDOROMA
T75: 080406201 | U75: P.S. SAN SALVADOR | V75: 2352 | W75: 3 | X75: 08 | Y75: 04 | Z75: 06 | AA75: 11 | AB75: 02 | AC75: 05 | AD75: 080406 | AE75: 0205 | AH75: 0205-P.S. SAN SALVADOR | AS75: 08 | AT75: 08 | AU75: 03 | AV75: 0803 | AW75: COPORAQUE | AX75: 0 | AY75: 0808 | AZ75: 080803 | BA75: 0803-COPORAQUE
T76: 080407301 | U76: P.S. TARAY | V76: 2353 | W76: 3 | X76: 08 | Y76: 04 | Z76: 07 | AA76: 11 | AB76: 02 | AC76: 05 | AD76: 080407 | AE76: 0205 | AF76: 7 | AG76: =CONCATENATE(W76,X76) -> 308 | AH76: 0205-P.S. TARAY | AS76: 08 | AT76: 08 | AU76: 04 | AV76: 0804 | AW76: OCORURO | AX76: 0 | AY76: 0808 | AZ76: 080804 | BA76: 0804-OCORURO
T77: 080407302 | U77: P.S. HUANCALLE | V77: 2354 | W77: 3 | X77: 08 | Y77: 04 | Z77: 07 | AA77: 11 | AB77: 02 | AC77: 05 | AD77: 080407 | AE77: 0205 | AF77: 7 | AG77: 308 | AH77: 0205-P.S. HUANCALLE | AS77: 08 | AT77: 08 | AU77: 05 | AV77: 0805 | AW77: PALLPATA | AX77: 0 | AY77: 0808 | AZ77: 080805 | BA77: 0805-PALLPATA
T78: 080408201 | U78: C.S. LA QUEBRADA | V78: 2355 | W78: 2 | X78: 08 | Y78: 04 | Z78: 08 | AA78: 11 | AB78: 02 | AC78: 08 | AD78: 080408 | AE78: 0208 | AF78: 8 | AG78: 208 | AH78: 0208-C.S. LA QUEBRADA | AS78: 08 | AT78: 08 | AU78: 06 | AV78: 0806 | AW78: PICHIGUA | AX78: 0 | AY78: 0808 | AZ78: 080806 | BA78: 0806-PICHIGUA
T79: 080408301 | U79: P.S. CCORIMAYO | V79: 2356 | W79: 3 | X79: 08 | Y79: 04 | Z79: 08 | AA79: 11 | AB79: 02 | AC79: 08 | AD79: 080408 | AE79: 0208 | AF79: 11 | AG79: 308 | AH79: 0208-P.S. CCORIMAYO | AS79: 08 | AT79: 08 | AU79: 07 | AV79: 0807 | AW79: SUYCKUTAMBO | AX79: 0 | AY79: 0808 | AZ79: 080807 | BA79: 0807-SUYCKUTAMBO
T80: 080408302 | U80: P.S. COLCA | V80: 2357 | W80: 3 | X80: 08 | Y80: 04 | Z80: 08 | AA80: 11 | AB80: 02 | AC80: 08 | AD80: 080408 | AE80: 0208 | AF80: 12 | AG80: 308 | AH80: 0208-P.S. COLCA | AS80: 08 | AT80: 08 | AU80: 08 | AV80: 0808 | AW80: ALTO PICHIGUA | AX80: 0 | AY80: 0808 | AZ80: 080808 | BA80: 0808-ALTO PICHIGUA
T81: 080408304 | U81: P.S. MUYUPAY | V81: 2358 | W81: 3 | X81: 08 | Y81: 04 | Z81: 08 | AA81: 11 | AB81: 02 | AC81: 08 | AD81: 080408 | AE81: 0208 | AF81: 12 | AG81: 308 | AH81: 0208-P.S. MUYUPAY | AS81: 08 | AT81: 09 | AU81: 01 | AV81: 0901 | AW81: SANTA ANA | AX81: 0 | AY81: 0809 | AZ81: 080901 | BA81: 0901-SANTA ANA
T82: 080408202 | U82: C.S. PUTUCUSI | V82: 2359 | W82: 2 | X82: 08 | Y82: 04 | Z82: 08 | AA82: 11 | AB82: 02 | AC82: 08 | AD82: 080408 | AE82: 0208 | AF82: 1 | AG82: 208 | AH82: =CONCATENATE(AE82,"-",U82) -> 0208-C.S. PUTUCUSI | AS82: 08 | AT82: 09 | AU82: 02 | AV82: 0902 | AW82: ECHARATE | AX82: 0 | AY82: 0809 | AZ82: 080902 | BA82: =CONCATENATE(AV82,"-",AW82) -> 0902-ECHARATE
T83: 080408306 | U83: P.S. QUESQUENTO | V83: 2360 | W83: 3 | X83: 08 | Y83: 04 | Z83: 08 | AA83: 11 | AB83: 02 | AC83: 08 | AD83: 080408 | AE83: 0208 | AF83: 2 | AG83: 308 | AH83: 0208-P.S. QUESQUENTO | AS83: 08 | AT83: 09 | AU83: 03 | AV83: 0903 | AW83: HUAYOPATA | AX83: 0 | AY83: 0809 | AZ83: 080903 | BA83: 0903-HUAYOPATA
T84: 080404303 | U84: P.S. SUYO | V84: 2361 | W84: 3 | X84: 08 | Y84: 04 | Z84: 04 | AA84: 11 | AB84: 02 | AC84: 06 | AD84: 080404 | AE84: 0206 | AF84: 6 | AG84: 308 | AH84: 0206-P.S. SUYO | AS84: 08 | AT84: 09 | AU84: 04 | AV84: 0904 | AW84: MARANURA | AX84: 0 | AY84: 0809 | AZ84: 080904 | BA84: 0904-MARANURA
T85: 080408308 | U85: P.S. HUACHIBAMBA | V85: 2362 | W85: 3 | X85: 08 | Y85: 04 | Z85: 08 | AA85: 11 | AB85: 02 | AC85: 08 | AD85: 080408 | AE85: 0208 | AF85: 6 | AG85: 308 | AH85: 0208-P.S. HUACHIBAMBA | AS85: 08 | AT85: 09 | AU85: 05 | AV85: 0905 | AW85: OCOBAMBA | AX85: 0 | AY85: 0809 | AZ85: 080905 | BA85: 0905-OCOBAMBA
T86: 080408309 | U86: P.S. TUPAC AMARU | V86: 2363 | W86: 3 | X86: 08 | Y86: 04 | Z86: 08 | AA86: 11 | AB86: 03 | AC86: 03 | AD86: 080408 | AE86: 0303 | AH86: 0303-P.S. TUPAC AMARU | AS86: 08 | AT86: 09 | AU86: 06 | AV86: 0906 | AW86: QUELLOUNO | AX86: 0 | AY86: 0809 | AZ86: 080906 | BA86: 0906-QUELLOUNO
T87: 080501201 | U87: C.S. YANAOCA | V87: 2364 | W87: 2 | X87: 08 | Y87: 05 | Z87: 01 | AA87: 11 | AB87: 04 | AC87: 01 | AD87: 080501 | AE87: 0401 | AH87: 0401-C.S. YANAOCA | AS87: 08 | AT87: 09 | AU87: 07 | AV87: 0907 | AW87: QUIMBIRI | AX87: 0 | AY87: 0809 | AZ87: 080907 | BA87: 0907-QUIMBIRI
T88: 080501301 | U88: P.S. PONGONA | V88: 2365 | W88: 3 | X88: 08 | Y88: 05 | Z88: 01 | AA88: 11 | AB88: 04 | AC88: 01 | AD88: 080501 | AE88: 0401 | AF88: 5 | AG88: =CONCATENATE(W88,X88) -> 308 | AH88: 0401-P.S. PONGONA | AS88: 08 | AT88: 09 | AU88: 08 | AV88: 0908 | AW88: SANTA TERESA | AX88: 0 | AY88: 0809 | AZ88: 080908 | BA88: 0908-SANTA TERESA
T89: 080502301 | U89: P.S. CHECCA | V89: 2366 | W89: 3 | X89: 08 | Y89: 05 | Z89: 02 | AA89: 11 | AB89: 04 | AC89: 02 | AD89: 080502 | AE89: 0402 | AF89: 6 | AG89: 308 | AH89: 0402-P.S. CHECCA | AS89: 08 | AT89: 09 | AU89: 09 | AV89: 0909 | AW89: VILCABAMBA | AX89: 0 | AY89: 0809 | AZ89: 080909 | BA89: 0909-VILCABAMBA
T90: 080502302 | U90: P.S. CHITIBAMBA | V90: 2367 | W90: 3 | X90: 08 | Y90: 05 | Z90: 02 | AA90: 11 | AB90: 04 | AC90: 01 | AD90: 080502 | AE90: 0401 | AF90: 4 | AG90: 308 | AH90: 0401-P.S. CHITIBAMBA | AS90: 08 | AT90: 09 | AU90: 10 | AV90: 0910 | AW90: PICHARI | AX90: 0 | AY90: 0809 | AZ90: 080910 | BA90: 0910-PICHARI
T91: 080504301 | U91: P.S. LANGUI | V91: 2369 | W91: 3 | X91: 08 | Y91: 05 | Z91: 04 | AA91: 11 | AB91: 04 | AC91: 02 | AD91: 080504 | AE91: 0402 | AF91: 5 | AG91: 308 | AH91: 0402-P.S. LANGUI | AS91: 08 | AT91: 10 | AU91: 01 | AV91: 1001 | AW91: PARURO | AX91: 0 | AY91: 0810 | AZ91: 081001 | BA91: 1001-PARURO
T92: 080504302 | U92: P.S. CONDEVILUYO | V92: 2370 | W92: 3 | X92: 08 | Y92: 05 | Z92: 04 | AA92: 11 | AB92: 04 | AC92: 02 | AD92: 080504 | AE92: 0402 | AF92: 7 | AG92: 308 | AH92: 0402-P.S. CONDEVILUYO | AS92: 08 | AT92: 10 | AU92: 02 | AV92: 1002 | AW92: ACCHA | AX92: 0 | AY92: 0810 | AZ92: 081002 | BA92: 1002-ACCHA
T93: 080505201 | U93: C.S. LAYO | V93: 2371 | W93: 2 | X93: 08 | Y93: 05 | Z93: 05 | AA93: 11 | AB93: 04 | AC93: 02 | AD93: 080505 | AE93: 0402 | AF93: 1 | AG93: 208 | AH93: 0402-C.S. LAYO | AS93: 08 | AT93: 10 | AU93: 03 | AV93: 1003 | AW93: CCAPI | AX93: 0 | AY93: 0810 | AZ93: 081003 | BA93: 1003-CCAPI
T94: 080506301 | U94: P.S. PAMPAMARCA | V94: 2372 | W94: 3 | X94: 08 | Y94: 05 | Z94: 06 | AA94: 11 | AB94: 04 | AC94: 01 | AD94: 080506 | AE94: 0401 | AF94: 1 | AG94: 308 | AH94: 0401-P.S. PAMPAMARCA | AS94: 08 | AT94: 10 | AU94: 04 | AV94: 1004 | AW94: COLCHA | AX94: 0 | AY94: 0810 | AZ94: 081004 | BA94: 1004-COLCHA
T95: 080507301 | U95: P.S. QUEHUE | V95: 2373 | W95: 3 | X95: 08 | Y95: 05 | Z95: 07 | AA95: 11 | AB95: 04 | AC95: 01 | AD95: 080507 | AE95: 0401 | AF95: 1 | AG95: 308 | AH95: 0401-P.S. QUEHUE | AS95: 08 | AT95: 10 | AU95: 05 | AV95: 1005 | AW95: HUANOQUITE | AX95: 0 | AY95: 0810 | AZ95: 081005 | BA95: 1005-HUANOQUITE
T96: 080507302 | U96: P.S. HUINCHIRI | V96: 2374 | W96: 3 | X96: 08 | Y96: 05 | Z96: 07 | AA96: 11 | AB96: 04 | AC96: 01 | AD96: 080507 | AE96: 0401 | AF96: 9 | AG96: 308 | AH96: 0401-P.S. HUINCHIRI | AS96: 08 | AT96: 10 | AU96: 06 | AV96: 1006 | AW96: OMACHA | AX96: 0 | AY96: 0810 | AZ96: 081006 | BA96: 1006-OMACHA
T97: 080508301 | U97: P.S. SURIMANA | V97: 2375 | W97: 3 | X97: 08 | Y97: 05 | Z97: 08 | AA97: 11 | AB97: 04 | AC97: 01 | AD97: 080508 | AE97: 0401 | AF97: 10 | AG97: 308 | AH97: 0401-P.S. SURIMANA | AS97: 08 | AT97: 10 | AU97: 07 | AV97: 1007 | AW97: PACCARITAMBO | AX97: 0 | AY97: 0810 | AZ97: 081007 | BA97: 1007-PACCARITAMBO
T98: 080508302 | U98: P.S. TUNGASUCA | V98: 2376 | W98: 3 | X98: 08 | Y98: 05 | Z98: 08 | AA98: 11 | AB98: 04 | AC98: 01 | AD98: 080508 | AE98: 0401 | AF98: 3 | AG98: 308 | AH98: 0401-P.S. TUNGASUCA | AS98: 08 | AT98: 10 | AU98: 08 | AV98: 1008 | AW98: PILLPINTO | AX98: 0 | AY98: 0810 | AZ98: 081008 | BA98: 1008-PILLPINTO
T99: 080508303 | U99: P.S. TOCCOCCORI | V99: 2377 | W99: 3 | X99: 08 | Y99: 05 | Z99: 08 | AA99: 11 | AB99: 04 | AC99: 01 | AD99: 080508 | AE99: 0401 | AF99: 4 | AG99: 308 | AH99: 0401-P.S. TOCCOCCORI | AS99: 08 | AT99: 10 | AU99: 09 | AV99: 1009 | AW99: YAURISQUE | AX99: 0 | AY99: 0810 | AZ99: 081009 | BA99: 1009-YAURISQUE
T100: 080601101 | U100: HOSP. SICUANI | V100: 2378 | W100: 1 | X100: 08 | Y100: 06 | Z100: 01 | AA100: 11 | AB100: 04 | AC100: 04 | AD100: 080601 | AE100: 0404 | AH100: 0404-HOSP. SICUANI | AS100: 08 | AT100: 11 | AU100: 01 | AV100: 1101 | AW100: PAUCARTAMBO | AX100: 0 | AY100: 0811 | AZ100: 081101 | BA100: 1101-PAUCARTAMBO
T101: 080601301 | U101: P.S. HERCCA | V101: 2379 | W101: 3 | X101: 08 | Y101: 06 | Z101: 01 | AA101: 11 | AB101: 04 | AC101: 04 | AD101: 080601 | AE101: 0404 | AH101: 0404-P.S. HERCCA | AS101: 08 | AT101: 11 | AU101: 02 | AV101: 1102 | AW101: CAICAY | AX101: 0 | AY101: 0811 | AZ101: 081102 | BA101: 1102-CAICAY
T102: 080601202 | U102: P.S. TECHO OBRERO | V102: 2380 | W102: 3 | X102: 08 | Y102: 06 | Z102: 01 | AA102: 11 | AB102: 04 | AC102: 04 | AD102: 080601 | AE102: 0404 | AF102: 1 | AG102: =CONCATENATE(W102,X102) -> 308 | AH102: 0404-P.S. TECHO OBRERO | AS102: 08 | AT102: 11 | AU102: 03 | AV102: 1103 | AW102: CHALLABAMBA | AX102: 0 | AY102: 0811 | AZ102: 081103 | BA102: 1103-CHALLABAMBA
T103: 080601303 | U103: P.S. QUEHUAR | V103: 2381 | W103: 3 | X103: 08 | Y103: 06 | Z103: 01 | AA103: 11 | AB103: 04 | AC103: 05 | AD103: 080601 | AE103: 0405 | AF103: 3 | AG103: 308 | AH103: 0405-P.S. QUEHUAR | AS103: 08 | AT103: 11 | AU103: 04 | AV103: 1104 | AW103: COLQUEPATA | AX103: 0 | AY103: 0811 | AZ103: 081104 | BA103: 1104-COLQUEPATA
T104: 080601304 | U104: P.S. UZCUPATA | V104: 2382 | W104: 3 | X104: 08 | Y104: 06 | Z104: 01 | AA104: 11 | AB104: 04 | AC104: 05 | AD104: 080601 | AE104: 0405 | AF104: 6 | AG104: 308 | AH104: 0405-P.S. UZCUPATA | AS104: 08 | AT104: 11 | AU104: 05 | AV104: 1105 | AW104: HUANCARANI | AX104: 0 | AY104: 0811 | AZ104: 081105 | BA104: 1105-HUANCARANI
T105: 080601305 | U105: P.S. LA FLORIDA | V105: 2383 | W105: 3 | X105: 08 | Y105: 06 | Z105: 01 | AA105: 11 | AB105: 04 | AC105: 05 | AD105: 080601 | AE105: 0405 | AF105: 6 | AG105: 308 | AH105: 0405-P.S. LA FLORIDA | AS105: 08 | AT105: 11 | AU105: 06 | AV105: 1106 | AW105: KOS¥IPATA | AX105: 0 | AY105: 0811 | AZ105: 081106 | BA105: 1106-KOS¥IPATA
T106: 080601201 | U106: P.S. PAMPAPHALLA | V106: 2384 | W106: 3 | X106: 08 | Y106: 06 | Z106: 01 | AA106: 11 | AB106: 04 | AC106: 05 | AD106: 080601 | AE106: 0405 | AF106: 6 | AG106: 308 | AH106: 0405-P.S. PAMPAPHALLA | AS106: 08 | AT106: 12 | AU106: 01 | AV106: 1201 | AW106: URCOS | AX106: 0 | AY106: 0812 | AZ106: 081201 | BA106: 1201-URCOS
T107: 080602301 | U107: P.S. CHECACUPE | V107: 2385 | W107: 3 | X107: 08 | Y107: 06 | Z107: 02 | AA107: 11 | AB107: 04 | AC107: 03 | AD107: 080602 | AE107: 0403 | AF107: 1 | AG107: 308 | AH107: 0403-P.S. CHECACUPE | AS107: 08 | AT107: 12 | AU107: 02 | AV107: 1202 | AW107: ANDAHUAYLILLAS | AX107: 0 | AY107: 0812 | AZ107: 081202 | BA107: 1202-ANDAHUAYLILLAS
T108: 080603201 | U108: C.S. COMBAPATA | V108: 2386 | W108: 2 | X108: 08 | Y108: 06 | Z108: 03 | AA108: 11 | AB108: 04 | AC108: 03 | AD108: 080603 | AE108: 0403 | AF108: 5 | AG108: 208 | AH108: 0403-C.S. COMBAPATA | AS108: 08 | AT108: 12 | AU108: 03 | AV108: 1203 | AW108: CAMANTI | AX108: 0 | AY108: 0812 | AZ108: 081203 | BA108: 1203-CAMANTI
T109: 080603301 | U109: P.S. CHIARA | V109: 2387 | W109: 3 | X109: 08 | Y109: 06 | Z109: 03 | AA109: 11 | AB109: 04 | AC109: 03 | AD109: 080603 | AE109: 0403 | AF109: 6 | AG109: 308 | AH109: 0403-P.S. CHIARA | AS109: 08 | AT109: 12 | AU109: 04 | AV109: 1204 | AW109: CCARHUAYO | AX109: 0 | AY109: 0812 | AZ109: 081204 | BA109: 1204-CCARHUAYO
T110: 080604201 | U110: C.S. MARANGANI | V110: 2388 | W110: 2 | X110: 08 | Y110: 06 | Z110: 04 | AA110: 11 | AB110: 04 | AC110: 04 | AD110: 080604 | AE110: 0404 | AF110: 7 | AG110: 208 | AH110: 0404-C.S. MARANGANI | AS110: 08 | AT110: 12 | AU110: 05 | AV110: 1205 | AW110: CCATCA | AX110: 0 | AY110: 0812 | AZ110: 081205 | BA110: 1205-CCATCA
T111: 080604301 | U111: P.S. CHECTUYOC | V111: 2389 | W111: 3 | X111: 08 | Y111: 06 | Z111: 04 | AA111: 11 | AB111: 04 | AC111: 04 | AD111: 080604 | AE111: 0404 | AF111: 3 | AG111: 308 | AH111: 0404-P.S. CHECTUYOC | AS111: 08 | AT111: 12 | AU111: 06 | AV111: 1206 | AW111: CUSIPATA | AX111: 0 | AY111: 0812 | AZ111: 081206 | BA111: 1206-CUSIPATA
T112: 080604302 | U112: P.S. CCUYO | V112: 2390 | W112: 3 | X112: 08 | Y112: 06 | Z112: 04 | AA112: 11 | AB112: 04 | AC112: 04 | AD112: 080604 | AE112: 0404 | AF112: 4 | AG112: 308 | AH112: 0404-P.S. CCUYO | AS112: 08 | AT112: 12 | AU112: 07 | AV112: 1207 | AW112: HUARO | AX112: 0 | AY112: 0812 | AZ112: 081207 | BA112: 1207-HUARO
T113: 080604304 | U113: P.S. OCCOBAMBA | V113: 2391 | W113: 3 | X113: 08 | Y113: 06 | Z113: 04 | AA113: 11 | AB113: 04 | AC113: 04 | AD113: 080604 | AE113: 0404 | AF113: 2 | AG113: 308 | AH113: 0404-P.S. OCCOBAMBA | AS113: 08 | AT113: 12 | AU113: 08 | AV113: 1208 | AW113: LUCRE | AX113: 0 | AY113: 0812 | AZ113: 081208 | BA113: 1208-LUCRE
T114: 080605301 | U114: P.S. PITUMARCA | V114: 2392 | W114: 3 | X114: 08 | Y114: 06 | Z114: 05 | AA114: 11 | AB114: 04 | AC114: 03 | AD114: 080605 | AE114: 0403 | AF114: 3 | AG114: 308 | AH114: 0403-P.S. PITUMARCA | AS114: 08 | AT114: 12 | AU114: 09 | AV114: 1209 | AW114: MARCAPATA | AX114: 0 | AY114: 0812 | AZ114: 081209 | BA114: 1209-MARCAPATA
T115: 080605302 | U115: P.S. PHINAYA | V115: 2393 | W115: 3 | X115: 08 | Y115: 06 | Z115: 05 | AA115: 11 | AB115: 04 | AC115: 05 | AD115: 080605 | AE115: 0405 | AF115: 4 | AG115: 308 | AH115: 0405-P.S. PHINAYA | AS115: 08 | AT115: 12 | AU115: 10 | AV115: 1210 | AW115: OCONGATE | AX115: 0 | AY115: 0812 | AZ115: 081210 | BA115: 1210-OCONGATE
T116: 080606301 | U116: P.S. SAN PABLO | V116: 2394 | W116: 3 | X116: 08 | Y116: 06 | Z116: 06 | AA116: 11 | AB116: 04 | AC116: 05 | AD116: 080606 | AE116: 0405 | AF116: 5 | AG116: 308 | AH116: 0405-P.S. SAN PABLO | AS116: 08 | AT116: 12 | AU116: 11 | AV116: 1211 | AW116: OROPESA | AX116: 0 | AY116: 0812 | AZ116: 081211 | BA116: 1211-OROPESA
T117: 080606302 | U117: P.S. SANTA BARBARA | V117: 2395 | W117: 3 | X117: 08 | Y117: 06 | Z117: 06 | AA117: 11 | AB117: 04 | AC117: 05 | AD117: 080606 | AE117: 0405 | AF117: 5 | AG117: 308 | AH117: 0405-P.S. SANTA BARBARA | AS117: 08 | AT117: 12 | AU117: 12 | AV117: 1212 | AW117: QUIQUIJANA | AX117: 0 | AY117: 0812 | AZ117: 081212 | BA117: 1212-QUIQUIJANA
T118: 080607301 | U118: P.S. SAN PEDRO | V118: 2396 | W118: 3 | X118: 08 | Y118: 06 | Z118: 07 | AA118: 11 | AB118: 04 | AC118: 05 | AD118: 080607 | AE118: 0405 | AF118: 6 | AG118: 308 | AH118: 0405-P.S. SAN PEDRO | AS118: 08 | AT118: 13 | AU118: 01 | AV118: 1301 | AW118: URUBAMBA | AX118: 0 | AY118: 0813 | AZ118: 081301 | BA118: 1301-URUBAMBA
T119: 080608201 | U119: P.S. TINTA | V119: 2397 | W119: 3 | X119: 08 | Y119: 06 | Z119: 08 | AA119: 11 | AB119: 04 | AC119: 03 | AD119: 080608 | AE119: 0403 | AF119: 6 | AG119: 308 | AH119: 0403-P.S. TINTA | AS119: 08 | AT119: 13 | AU119: 02 | AV119: 1302 | AW119: CHINCHERO | AX119: 0 | AY119: 0813 | AZ119: 081302 | BA119: 1302-CHINCHERO
T120: 080701101 | U120: HOSP. SANTO TOMAS | V120: 2398 | W120: 1 | X120: 08 | Y120: 07 | Z120: 01 | AA120: 11 | AB120: 01 | AC120: 09 | AD120: 080701 | AE120: 0109 | AF120: 7 | AG120: 108 | AH120: 0109-HOSP. SANTO TOMAS | AS120: 08 | AT120: 13 | AU120: 03 | AV120: 1303 | AW120: HUAYLLABAMBA | AX120: 0 | AY120: 0813 | AZ120: 081303 | BA120: 1303-HUAYLLABAMBA
T121: 080701301 | U121: P.S. PULPERA | V121: 2399 | W121: 3 | X121: 08 | Y121: 07 | Z121: 01 | AA121: 11 | AB121: 01 | AC121: 10 | AD121: 080701 | AE121: 0110 | AF121: 8 | AG121: 308 | AH121: 0110-P.S. PULPERA | AS121: 08 | AT121: 13 | AU121: 04 | AV121: 1304 | AW121: MACHUPICCHU | AX121: 0 | AY121: 0813 | AZ121: 081304 | BA121: 1304-MACHUPICCHU
T122: 080701302 | U122: P.S. ALHUACCHULLO | V122: 2400 | W122: 3 | X122: 08 | Y122: 07 | Z122: 01 | AA122: 11 | AB122: 01 | AC122: 09 | AD122: 080701 | AE122: 0109 | AF122: 3 | AG122: 308 | AH122: 0109-P.S. ALHUACCHULLO | AS122: 08 | AT122: 13 | AU122: 05 | AV122: 1305 | AW122: MARAS | AX122: 0 | AY122: 0813 | AZ122: 081305 | BA122: 1305-MARAS
T123: 080702301 | U123: P.S. CAPACMARCA | V123: 2401 | W123: 3 | X123: 08 | Y123: 07 | Z123: 02 | AA123: 11 | AB123: 01 | AC123: 11 | AD123: 080702 | AE123: 0111 | AF123: 4 | AG123: 308 | AH123: 0111-P.S. CAPACMARCA | AS123: 08 | AT123: 13 | AU123: 06 | AV123: 1306 | AW123: OLLANTAYTAMBO | AX123: 0 | AY123: 0813 | AZ123: 081306 | BA123: 1306-OLLANTAYTAMBO
T124: 080703301 | U124: P.S. CHAMACA | V124: 2402 | W124: 3 | X124: 08 | Y124: 07 | Z124: 03 | AA124: 11 | AB124: 04 | AC124: 01 | AD124: 080703 | AE124: 0401 | AH124: 0401-P.S. CHAMACA | AS124: 08 | AT124: 13 | AU124: 07 | AV124: 1307 | AW124: YUCAY | AX124: 0 | AY124: 0813 | AZ124: 081307 | BA124: 1307-YUCAY
T125: 080703302 | U125: P.S. A¤AHUICHI | V125: 2403 | W125: 3 | X125: 08 | Y125: 07 | Z125: 03 | AA125: 11 | AB125: 04 | AC125: 01 | AD125: 080703 | AE125: 0401 | AF125: 1 | AG125: =CONCATENATE(W125,X125) -> 308 | AH125: 0401-P.S. A¤AHUICHI | AT125: 00 | AV125: 0000 | AW125: (Todas) | BA125: =CONCATENATE(AV125,"-",AW125) -> 0000-(Todas)
T126: 080704201 | U126: P.S. COLQUEMARCA | V126: 2404 | W126: 3 | X126: 08 | Y126: 07 | Z126: 04 | AA126: 11 | AB126: 01 | AC126: 11 | AD126: 080704 | AE126: 0111 | AF126: 1 | AG126: 308 | AH126: 0111-P.S. COLQUEMARCA | AT126: '01 | AV126: 0000 | AW126: (Todas) | BA126: 0000-(Todas)
T127: 080704302 | U127: P.S. CHARAMURAY | V127: 2405 | W127: 3 | X127: 08 | Y127: 07 | Z127: 04 | AA127: 11 | AB127: 01 | AC127: 11 | AD127: 080704 | AE127: 0111 | AF127: 2 | AG127: 308 | AH127: 0111-P.S. CHARAMURAY | AT127: '02 | AV127: 0000 | AW127: (Todas) | BA127: 0000-(Todas)
T128: 080705301 | U128: P.S. LIVITACA | V128: 2406 | W128: 3 | X128: 08 | Y128: 07 | Z128: 05 | AA128: 11 | AB128: 04 | AC128: 01 | AD128: 080705 | AE128: 0401 | AF128: 5 | AG128: 308 | AH128: 0401-P.S. LIVITACA | AT128: '03 | AV128: 0000 | AW128: (Todas) | BA128: 0000-(Todas)
T129: 080706301 | U129: P.S. LLUSCO | V129: 2407 | W129: 3 | X129: 08 | Y129: 07 | Z129: 06 | AA129: 11 | AB129: 01 | AC129: 09 | AD129: 080706 | AE129: 0109 | AF129: 5 | AG129: 308 | AH129: 0109-P.S. LLUSCO | AT129: '04 | AV129: 0000 | AW129: (Todas) | BA129: 0000-(Todas)
T130: 080707301 | U130: P.S. QUI?OTA | V130: 2408 | W130: 3 | X130: 08 | Y130: 07 | Z130: 07 | AA130: 11 | AB130: 01 | AC130: 09 | AD130: 080707 | AE130: 0109 | AF130: 7 | AG130: 308 | AH130: 0109-P.S. QUI?OTA | AT130: '05 | AV130: 0000 | AW130: (Todas) | BA130: 0000-(Todas)
T131: 080708201 | U131: P.S. VELILLE | V131: 2409 | W131: 3 | X131: 08 | Y131: 07 | Z131: 08 | AA131: 11 | AB131: 01 | AC131: 10 | AD131: 080708 | AE131: 0110 | AF131: 7 | AG131: 308 | AH131: 0110-P.S. VELILLE | AT131: '06 | AV131: 0000 | AW131: (Todas) | BA131: 0000-(Todas)
T132: 080801201 | U132: C.S. YAURI | V132: 2410 | W132: 2 | X132: 08 | Y132: 08 | Z132: 01 | AA132: 11 | AB132: 04 | AC132: 06 | AD132: 080801 | AE132: 0406 | AF132: 8 | AG132: 208 | AH132: 0406-C.S. YAURI | AT132: '07 | AV132: 0000 | AW132: (Todas) | BA132: 0000-(Todas)
T133: 080802301 | U133: P.S. CONDOROMA | V133: 2411 | W133: 3 | X133: 08 | Y133: 08 | Z133: 02 | AA133: 11 | AB133: 04 | AC133: 06 | AD133: 080802 | AE133: 0406 | AF133: 8 | AG133: 308 | AH133: 0406-P.S. CONDOROMA | AT133: '08 | AV133: 0000 | AW133: (Todas) | BA133: 0000-(Todas)
T134: 080803301 | U134: P.S. COPORAQUE | V134: 2412 | W134: 3 | X134: 08 | Y134: 08 | Z134: 03 | AA134: 11 | AB134: 04 | AC134: 06 | AD134: 080803 | AE134: 0406 | AF134: 8 | AG134: 308 | AH134: 0406-P.S. COPORAQUE | AT134: '09 | AV134: 0000 | AW134: (Todas) | BA134: 0000-(Todas)
T135: 080803302 | U135: P.S. URINSAYA | V135: 2413 | W135: 3 | X135: 08 | Y135: 08 | Z135: 03 | AA135: 11 | AB135: 04 | AC135: 06 | AD135: 080803 | AE135: 0406 | AF135: 8 | AG135: 308 | AH135: 0406-P.S. URINSAYA | AT135: '10 | AV135: 0000 | AW135: (Todas) | BA135: 0000-(Todas)
T136: 080803303 | U136: P.S. HUAYHUAHUASI | V136: 2414 | W136: 3 | X136: 08 | Y136: 08 | Z136: 03 | AA136: 11 | AB136: 04 | AC136: 06 | AD136: 080803 | AE136: 0406 | AF136: 8 | AG136: 308 | AH136: 0406-P.S. HUAYHUAHUASI | AT136: '11 | AV136: 0000 | AW136: (Todas) | BA136: 0000-(Todas)
T137: 080804301 | U137: P.S. OCCORURO | V137: 2415 | W137: 3 | X137: 08 | Y137: 08 | Z137: 04 | AA137: 11 | AB137: 04 | AC137: 06 | AD137: 080804 | AE137: 0406 | AH137: 0406-P.S. OCCORURO | AT137: '12 | AV137: 0000 | AW137: (Todas) | BA137: 0000-(Todas)
T138: 080805301 | U138: C.S. PALLPATA | V138: 2416 | W138: 2 | X138: 08 | Y138: 08 | Z138: 05 | AA138: 11 | AB138: 04 | AC138: 06 | AD138: 080805 | AE138: 0406 | AH138: 0406-C.S. PALLPATA | AT138: '13 | AV138: 0000 | AW138: (Todas) | BA138: 0000-(Todas)
T139: 080806301 | U139: P.S. PICHIGUA | V139: 2417 | W139: 3 | X139: 08 | Y139: 08 | Z139: 06 | AA139: 11 | AB139: 04 | AC139: 06 | AD139: 080806 | AE139: 0406 | AH139: 0406-P.S. PICHIGUA
T140: 080806302 | U140: P.S. SAN MIGUEL | V140: 2418 | W140: 3 | X140: 08 | Y140: 08 | Z140: 06 | AA140: 11 | AB140: 04 | AC140: 06 | AD140: 080806 | AE140: 0406 | AH140: 0406-P.S. SAN MIGUEL
T141: 080807301 | U141: P.S. SUYCKUTAMBO | V141: 2419 | W141: 3 | X141: 08 | Y141: 08 | Z141: 07 | AA141: 11 | AB141: 04 | AC141: 06 | AD141: 080807 | AE141: 0406 | AF141: 4 | AG141: =CONCATENATE(W141,X141) -> 308 | AH141: 0406-P.S. SUYCKUTAMBO
T142: 080808301 | U142: P.S. ACCOCUNCA | V142: 2420 | W142: 3 | X142: 08 | Y142: 08 | Z142: 08 | AA142: 11 | AB142: 04 | AC142: 06 | AD142: 080808 | AE142: 0406 | AF142: 4 | AG142: 308 | AH142: 0406-P.S. ACCOCUNCA
T143: 080901101 | U143: HOSP. QUILLABAMBA | V143: 2421 | W143: 1 | X143: 08 | Y143: 09 | Z143: 01 | AA143: 11 | AB143: 03 | AC143: 01 | AD143: 080901 | AE143: 0301 | AF143: 5 | AG143: 108 | AH143: 0301-HOSP. QUILLABAMBA
T144: 080901301 | U144: P.S. HUAYANAY | V144: 2422 | W144: 3 | X144: 08 | Y144: 09 | Z144: 01 | AA144: 11 | AB144: 03 | AC144: 01 | AD144: 080901 | AE144: 0301 | AF144: 5 | AG144: 308 | AH144: 0301-P.S. HUAYANAY
T145: 080901302 | U145: P.S. IDMA | V145: 2423 | W145: 3 | X145: 08 | Y145: 09 | Z145: 01 | AA145: 11 | AB145: 03 | AC145: 01 | AD145: 080901 | AE145: 0301 | AF145: 6 | AG145: 308 | AH145: 0301-P.S. IDMA
T146: 080901303 | U146: P.S. POTRERO | V146: 2424 | W146: 3 | X146: 08 | Y146: 09 | Z146: 01 | AA146: 11 | AB146: 03 | AC146: 01 | AD146: 080901 | AE146: 0301 | AF146: 2 | AG146: 308 | AH146: =CONCATENATE(AE146,"-",U146) -> 0301-P.S. POTRERO
T147: 080902327 | U147: C.S. ECHARATE | V147: 2425 | W147: 2 | X147: 08 | Y147: 09 | Z147: 02 | AA147: 11 | AB147: 03 | AC147: 01 | AD147: 080902 | AE147: 0301 | AF147: 1 | AG147: 208 | AH147: 0301-C.S. ECHARATE
T148: 080902328 | U148: C.S. KIRIGUETI | V148: 2426 | W148: 2 | X148: 08 | Y148: 09 | Z148: 02 | AA148: 11 | AB148: 03 | AC148: 05 | AD148: 080902 | AE148: 0305 | AH148: 0305-C.S. KIRIGUETI
T149: 080902203 | U149: C.S. KITENI | V149: 2427 | W149: 2 | X149: 08 | Y149: 09 | Z149: 02 | AA149: 11 | AB149: 03 | AC149: 04 | AD149: 080902 | AE149: 0304 | AH149: 0304-C.S. KITENI
T150: 080902301 | U150: P.S. CHOCORIARI | V150: 2428 | W150: 3 | X150: 08 | Y150: 09 | Z150: 02 | AA150: 11 | AB150: 03 | AC150: 05 | AD150: 080902 | AE150: 0305 | AF150: 7 | AG150: =CONCATENATE(W150,X150) -> 308 | AH150: 0305-P.S. CHOCORIARI
T151: 080902302 | U151: P.S. CIRIALO | V151: 2429 | W151: 3 | X151: 08 | Y151: 09 | Z151: 02 | AA151: 11 | AB151: 03 | AC151: 01 | AD151: 080902 | AE151: 0301 | AH151: 0301-P.S. CIRIALO
T152: 080902303 | U152: P.S. PAMPA CONCEPCION | V152: 2430 | W152: 3 | X152: 08 | Y152: 09 | Z152: 02 | AA152: 11 | AB152: 03 | AC152: 01 | AD152: 080902 | AE152: 0301 | AH152: 0301-P.S. PAMPA CONCEPCION
T153: 080902304 | U153: P.S. IVOCHOTE | V153: 2431 | W153: 3 | X153: 08 | Y153: 09 | Z153: 02 | AA153: 11 | AB153: 03 | AC153: 04 | AD153: 080902 | AE153: 0304 | AH153: 0304-P.S. IVOCHOTE
T154: 080902206 | U154: C.S. KEPASHIATO | V154: 2432 | W154: 2 | X154: 08 | Y154: 09 | Z154: 02 | AA154: 11 | AB154: 03 | AC154: 04 | AD154: 080902 | AE154: 0304 | AH154: 0304-C.S. KEPASHIATO
T155: 080902306 | U155: P.S. KORIVENI | V155: 2433 | W155: 3 | X155: 08 | Y155: 09 | Z155: 02 | AA155: 11 | AB155: 03 | AC155: 01 | AD155: 080902 | AE155: 0301 | AH155: 0301-P.S. KORIVENI
T156: 080902307 | U156: P.S. MATERIATO | V156: 2434 | W156: 3 | X156: 08 | Y156: 09 | Z156: 02 | AA156: 11 | AB156: 03 | AC156: 04 | AD156: 080902 | AE156: 0304 | AH156: 0304-P.S. MATERIATO
T157: 080902308 | U157: P.S. MIARIA | V157: 2435 | W157: 3 | X157: 08 | Y157: 09 | Z157: 02 | AA157: 11 | AB157: 03 | AC157: 05 | AD157: 080902 | AE157: 0305 | AH157: 0305-P.S. MIARIA
T158: 080902309 | U158: P.S. NUEVA LUZ | V158: 2436 | W158: 3 | X158: 08 | Y158: 09 | Z158: 02 | AA158: 11 | AB158: 03 | AC158: 05 | AD158: 080902 | AE158: 0305 | AH158: 0305-P.S. NUEVA LUZ
T159: 080902310 | U159: P.S. NUEVO MUNDO | V159: 2437 | W159: 3 | X159: 08 | Y159: 09 | Z159: 02 | AA159: 11 | AB159: 03 | AC159: 05 | AD159: 080902 | AE159: 0305 | AH159: 0305-P.S. NUEVO MUNDO
T160: 080902311 | U160: P.S. PACHIRI | V160: 2438 | W160: 3 | X160: 08 | Y160: 09 | Z160: 02 | AA160: 11 | AB160: 03 | AC160: 04 | AD160: 080902 | AE160: 0304 | AH160: 0304-P.S. PACHIRI
T161: 080902204 | U161: P.S. PALMA REAL | V161: 2439 | W161: 3 | X161: 08 | Y161: 09 | Z161: 02 | AA161: 11 | AB161: 03 | AC161: 01 | AD161: 080902 | AE161: 0301 | AF161: 8 | AG161: =CONCATENATE(W161,X161) -> 308 | AH161: 0301-P.S. PALMA REAL
T162: 080902313 | U162: P.S. PANGOA | V162: 2440 | W162: 3 | X162: 08 | Y162: 09 | Z162: 02 | AA162: 11 | AB162: 03 | AC162: 04 | AD162: 080902 | AE162: 0304 | AF162: 4 | AG162: 308 | AH162: 0304-P.S. PANGOA
T163: 080902314 | U163: P.S. PUERTO HUALLANA | V163: 2441 | W163: 3 | X163: 08 | Y163: 09 | Z163: 02 | AA163: 11 | AB163: 03 | AC163: 05 | AD163: 080902 | AE163: 0305 | AF163: 8 | AG163: 308 | AH163: 0305-P.S. PUERTO HUALLANA
T164: 080902315 | U164: P.S. PUERTO RICO | V164: 2442 | W164: 3 | X164: 08 | Y164: 09 | Z164: 02 | AA164: 11 | AB164: 03 | AC164: 05 | AD164: 080902 | AE164: 0305 | AF164: 8 | AG164: 308 | AH164: 0305-P.S. PUERTO RICO
T165: 080902316 | U165: P.S. SANIRIATO | V165: 2443 | W165: 3 | X165: 08 | Y165: 09 | Z165: 02 | AA165: 11 | AB165: 03 | AC165: 04 | AD165: 080902 | AE165: 0304 | AF165: 1 | AG165: 308 | AH165: 0304-P.S. SANIRIATO
T166: 080902317 | U166: P.S. SENSA | V166: 2444 | W166: 3 | X166: 08 | Y166: 09 | Z166: 02 | AA166: 11 | AB166: 03 | AC166: 05 | AD166: 080902 | AE166: 0305 | AF166: 1 | AG166: 308 | AH166: 0305-P.S. SENSA
T167: 080902318 | U167: P.S. TIMPIA | V167: 2445 | W167: 3 | X167: 08 | Y167: 09 | Z167: 02 | AA167: 11 | AB167: 03 | AC167: 05 | AD167: 080902 | AE167: 0305 | AF167: 2 | AG167: 308 | AH167: 0305-P.S. TIMPIA
T168: 080902319 | U168: P.S. CHACCO | V168: 2446 | W168: 3 | X168: 08 | Y168: 09 | Z168: 02 | AA168: 11 | AB168: 03 | AC168: 01 | AD168: 080902 | AE168: 0301 | AF168: 7 | AG168: 308 | AH168: 0301-P.S. CHACCO
T169: 080902321 | U169: P.S. KAMANQUIRIATO | V169: 2447 | W169: 3 | X169: 08 | Y169: 09 | Z169: 02 | AA169: 11 | AB169: 03 | AC169: 04 | AD169: 080902 | AE169: 0304 | AF169: 7 | AG169: 308 | AH169: 0304-P.S. KAMANQUIRIATO
T170: 080902205 | U170: P.S. CAMISEA | V170: 2448 | W170: 3 | X170: 08 | Y170: 09 | Z170: 02 | AA170: 11 | AB170: 03 | AC170: 05 | AD170: 080902 | AE170: 0305 | AH170: 0305-P.S. CAMISEA
T171: 080902323 | U171: P.S. ICHIQUIATO BAJO | V171: 2449 | W171: 3 | X171: 08 | Y171: 09 | Z171: 02 | AA171: 11 | AB171: 03 | AC171: 01 | AD171: 080902 | AE171: 0301 | AH171: 0301-P.S. ICHIQUIATO BAJO
T172: 080902324 | U172: P.S. SAN ANTONIO | V172: 2450 | W172: 3 | X172: 08 | Y172: 09 | Z172: 02 | AA172: 11 | AB172: 03 | AC172: 01 | AD172: 080902 | AE172: 0301 | AH172: 0301-P.S. SAN ANTONIO
T173: 080902325 | U173: P.S. CHAHUARES | V173: 2451 | W173: 3 | X173: 08 | Y173: 09 | Z173: 02 | AA173: 11 | AB173: 03 | AC173: 01 | AD173: 080902 | AE173: 0301 | AF173: 1 | AG173: =CONCATENATE(W173,X173) -> 308 | AH173: 0301-P.S. CHAHUARES
T174: 080902326 | U174: P.S. SHIVANKORENI | V174: 2452 | W174: 3 | X174: 08 | Y174: 09 | Z174: 02 | AA174: 11 | AB174: 03 | AC174: 05 | AD174: 080902 | AE174: 0305 | AF174: 1 | AG174: 308 | AH174: 0305-P.S. SHIVANKORENI
T175: 080903201 | U175: C.S. HUYRO | V175: 2453 | W175: 2 | X175: 08 | Y175: 09 | Z175: 03 | AA175: 11 | AB175: 03 | AC175: 02 | AD175: 080903 | AE175: 0302 | AF175: 1 | AG175: 208 | AH175: 0302-C.S. HUYRO
T176: 080903301 | U176: P.S. ALFAMAYO | V176: 2454 | W176: 3 | X176: 08 | Y176: 09 | Z176: 03 | AA176: 11 | AB176: 03 | AC176: 02 | AD176: 080903 | AE176: 0302 | AF176: 1 | AG176: 308 | AH176: 0302-P.S. ALFAMAYO
T177: 080903302 | U177: P.S. HUAYOPATA | V177: 2455 | W177: 3 | X177: 08 | Y177: 09 | Z177: 03 | AA177: 11 | AB177: 03 | AC177: 02 | AD177: 080903 | AE177: 0302 | AF177: 1 | AG177: 308 | AH177: 0302-P.S. HUAYOPATA
T178: 080903303 | U178: P.S. AMAYBAMBA | V178: 2456 | W178: 3 | X178: 08 | Y178: 09 | Z178: 03 | AA178: 11 | AB178: 03 | AC178: 02 | AD178: 080903 | AE178: 0302 | AF178: 5 | AG178: 308 | AH178: 0302-P.S. AMAYBAMBA
T179: 080903304 | U179: P.S. SAN PABLO | V179: 2457 | W179: 3 | X179: 08 | Y179: 09 | Z179: 03 | AA179: 11 | AB179: 03 | AC179: 02 | AD179: 080903 | AE179: 0302 | AF179: 2 | AG179: 308 | AH179: 0302-P.S. SAN PABLO
T180: 080904201 | U180: C.S. MARANURA | V180: 2458 | W180: 2 | X180: 08 | Y180: 09 | Z180: 04 | AA180: 11 | AB180: 03 | AC180: 02 | AD180: 080904 | AE180: 0302 | AF180: 2 | AG180: 208 | AH180: 0302-C.S. MARANURA
T181: 080904302 | U181: P.S. SANTA MARIA | V181: 2460 | W181: 3 | X181: 08 | Y181: 09 | Z181: 04 | AA181: 11 | AB181: 03 | AC181: 02 | AD181: 080904 | AE181: 0302 | AF181: 2 | AG181: 308 | AH181: 0302-P.S. SANTA MARIA
T182: 080904303 | U182: P.S. UCHUMAYO | V182: 2461 | W182: 3 | X182: 08 | Y182: 09 | Z182: 04 | AA182: 11 | AB182: 03 | AC182: 02 | AD182: 080904 | AE182: 0302 | AF182: 2 | AG182: 308 | AH182: 0302-P.S. UCHUMAYO
T183: 080905301 | U183: P.S. OCCOBAMBA | V183: 2462 | W183: 3 | X183: 08 | Y183: 09 | Z183: 05 | AA183: 11 | AB183: 03 | AC183: 03 | AD183: 080905 | AE183: 0303 | AF183: 2 | AG183: 308 | AH183: 0303-P.S. OCCOBAMBA
T184: 080905302 | U184: P.S. CHINGANILLA | V184: 2463 | W184: 3 | X184: 08 | Y184: 09 | Z184: 05 | AA184: 11 | AB184: 03 | AC184: 03 | AD184: 080905 | AE184: 0303 | AF184: 2 | AG184: 308 | AH184: 0303-P.S. CHINGANILLA
T185: 080905303 | U185: P.S. VERSALLES | V185: 2464 | W185: 3 | X185: 08 | Y185: 09 | Z185: 05 | AA185: 11 | AB185: 02 | AC185: 08 | AD185: 080905 | AE185: 0208 | AF185: 2 | AG185: 308 | AH185: 0208-P.S. VERSALLES
T186: 080906201 | U186: C.S. QUELLOUNO | V186: 2465 | W186: 2 | X186: 08 | Y186: 09 | Z186: 06 | AA186: 11 | AB186: 03 | AC186: 03 | AD186: 080906 | AE186: 0303 | AF186: 2 | AG186: 208 | AH186: 0303-C.S. QUELLOUNO
T187: 080906301 | U187: P.S. HUILLCAPAMPA | V187: 2466 | W187: 3 | X187: 08 | Y187: 09 | Z187: 06 | AA187: 11 | AB187: 03 | AC187: 03 | AD187: 080906 | AE187: 0303 | AF187: 2 | AG187: 308 | AH187: 0303-P.S. HUILLCAPAMPA
T188: 080906302 | U188: P.S. PTE. SANTIAGO | V188: 2467 | W188: 3 | X188: 08 | Y188: 09 | Z188: 06 | AA188: 11 | AB188: 02 | AC188: 08 | AD188: 080906 | AE188: 0208 | AF188: 2 | AG188: 308 | AH188: 0208-P.S. PTE. SANTIAGO
T189: 080906303 | U189: P.S. SAN MARTIN | V189: 2468 | W189: 3 | X189: 08 | Y189: 09 | Z189: 06 | AA189: 11 | AB189: 03 | AC189: 03 | AD189: 080906 | AE189: 0303 | AF189: 3 | AG189: 308 | AH189: 0303-P.S. SAN MARTIN
T190: 080907201 | U190: C.S. KIMBIRI | V190: 2469 | W190: 2 | X190: 08 | Y190: 09 | Z190: 07 | AA190: 11 | AB190: 05 | AC190: 07 | AD190: 080907 | AE190: 0507 | AF190: 3 | AG190: 208 | AH190: 0507-C.S. KIMBIRI
T191: 080907301 | U191: P.S. CHIRUMPIARI | V191: 2470 | W191: 3 | X191: 08 | Y191: 09 | Z191: 07 | AA191: 11 | AB191: 05 | AC191: 07 | AD191: 080907 | AE191: 0507 | AF191: 3 | AG191: 308 | AH191: 0507-P.S. CHIRUMPIARI
T192: 080907304 | U192: P.S. LOBO TAHUANTINSUYO | V192: 2471 | W192: 3 | X192: 08 | Y192: 09 | Z192: 07 | AA192: 11 | AB192: 05 | AC192: 07 | AD192: 080907 | AE192: 0507 | AF192: 4 | AG192: 308 | AH192: 0507-P.S. LOBO TAHUANTINSUYO
T193: 080907305 | U193: P.S. MAPITUNARI | V193: 2472 | W193: 3 | X193: 08 | Y193: 09 | Z193: 07 | AA193: 11 | AB193: 05 | AC193: 07 | AD193: 080907 | AE193: 0507 | AF193: 4 | AG193: 308 | AH193: 0507-P.S. MAPITUNARI
T194: 080907306 | U194: P.S. UNION ROSALES | V194: 2473 | W194: 3 | X194: 08 | Y194: 09 | Z194: 07 | AA194: 11 | AB194: 05 | AC194: 07 | AD194: 080907 | AE194: 0507 | AF194: 5 | AG194: 308 | AH194: 0507-P.S. UNION ROSALES
T195: 080907307 | U195: P.S. SAMANIATO | V195: 2474 | W195: 3 | X195: 08 | Y195: 09 | Z195: 07 | AA195: 11 | AB195: 05 | AC195: 07 | AD195: 080907 | AE195: 0507 | AF195: 5 | AG195: 308 | AH195: 0507-P.S. SAMANIATO
T196: 080907308 | U196: P.S. KIMBIRI ALTO | V196: 2475 | W196: 3 | X196: 08 | Y196: 09 | Z196: 07 | AA196: 11 | AB196: 05 | AC196: 07 | AD196: 080907 | AE196: 0507 | AF196: 5 | AG196: 308 | AH196: 0507-P.S. KIMBIRI ALTO
T197: 080908201 | U197: C.S. SANTA TERESA | V197: 2476 | W197: 2 | X197: 08 | Y197: 09 | Z197: 08 | AA197: 11 | AB197: 03 | AC197: 02 | AD197: 080908 | AE197: 0302 | AF197: 6 | AG197: 208 | AH197: 0302-C.S. SANTA TERESA
T198: 080908303 | U198: P.S. SULLUCUYOC | V198: 2477 | W198: 3 | X198: 08 | Y198: 09 | Z198: 08 | AA198: 11 | AB198: 03 | AC198: 02 | AD198: 080908 | AE198: 0302 | AF198: 6 | AG198: 308 | AH198: 0302-P.S. SULLUCUYOC
T199: 080908304 | U199: P.S. TOTORA | V199: 2478 | W199: 3 | X199: 08 | Y199: 09 | Z199: 08 | AA199: 11 | AB199: 03 | AC199: 02 | AD199: 080908 | AE199: 0302 | AF199: 6 | AG199: 308 | AH199: 0302-P.S. TOTORA
T200: 080909302 | U200: C.S. VILLA VIRGEN | V200: 2479 | W200: 2 | X200: 08 | Y200: 09 | Z200: 09 | AA200: 11 | AB200: 05 | AC200: 07 | AD200: 080909 | AE200: 0507 | AF200: 9 | AG200: 208 | AH200: 0507-C.S. VILLA VIRGEN
T201: 080909202 | U201: C.S. PUCYURA | V201: 2480 | W201: 2 | X201: 08 | Y201: 09 | Z201: 09 | AA201: 11 | AB201: 03 | AC201: 06 | AD201: 080909 | AE201: 0306 | AF201: 9 | AG201: 208 | AH201: 0306-C.S. PUCYURA
... 165 more rows

Sheet INICIO
C13: 1 | E13: 3
B28: año | C28: 2010
B29: meses | C29: 1 | D29: 2 | E29: 3 | F29: 4 | G29: 5 | H29: 6 | I29: 7 | J29: 8 | K29: 9 | L29: 10 | M29: 11 | N29: 12
C30: =IF(C29>=1,C29," ") -> 1 | D30: =IF(D29>=1,D29," ") -> 2 | E30: =IF(E29>=1,E29," ") -> 3 | F30: =IF(F29>=1,F29," ") -> 4 | G30: =IF(G29>=1,G29," ") -> 5 | H30: =IF(H29>=1,H29," ") -> 6 | I30: 7 | J30: 8 | K30: 9 | L30: 10 | M30: 11 | N30: 12
B31: redes | C31: 06-(Todas) | E31: =TRIM(MID(C31,4,25)) -> (Todas)
B32: micro red | C32: 06-(Todas) | E32: =TRIM(MID(C32,4,25)) -> (Todas)
B33: establecimiento | C33: 0000-(Todas) | E33: =TRIM(MID(C33,6,25)) -> (Todas)
B34: provincia | C34: 00-(Todas) | E34: =TRIM(MID(C34,4,25)) -> (Todas)
B35: distrito | C35: 0000-(Todas) | E35: =TRIM(MID(C35,6,25)) -> (Todas)
A43: cod_ano | B43: 2025
A44: red | B44: (All)
A45: mred | B45: YAURI
A46: estable | B46: HOSP. ESPINAR
A47: desc_prov | B47: (All)
A48: desc_dist | B48: (All)
B50: Valores
A51: MES | B51: s01 | C51: s02 | D51: s03 | E51: s04 | F51: s05 | G51: s06 | H51: s07 | I51: s08 | J51: s09 | K51: s10 | L51: s11 | M51: s12 | N51: s13 | O51: s14 | P51: s15 | Q51: s16 | R51: s17 | S51: s18 | T51: s19 | U51: s20 | V51: s21 | W51: s22 | X51: s23 | Y51: s24 | Z51: s25 | AA51: s26 | AB51: s27 | AC51: s28 | AD51: s29 | AE51: s30 | AF51: s31 | AG51: s32 | AH51: s33 | AI51: s34 | AJ51: s35 | AK51: s36 | AL51: s37 | AM51: s38 | AN51: s39 | AO51: s40 | AP51: s41 | AQ51: s42 | AR51: s43 | AS51: s44 | AT51: s45 | AU51: s46 | AV51: s47 | AW51: s48 | AX51: s49 | AY51: s50 | AZ51: s51 | BA51: s52 | BB51: s53 | BC51: s54 | BD51: s55 | BE51: s56 | BF51: s57 | BG51: s58 | BH51: s59 | BI51: s60 | BJ51: s61 | BK51: s62 | BL51: s63 | BM51: s64 | BN51: s65 | BO51: s66 | BP51: s67 | BQ51: s68 | BR51: s69 | BS51: s70 | BT51: s71 | BU51: s72 | BV51: s73 | BW51: s74 | BX51: s75 | BY51: s76 | BZ51: s77 | CA51: s78 | CB51: s79 | CC51: s80 | CD51: s81 | CE51: s82 | CF51: s83 | CG51: s84 | CH51: s85 | CI51: s86 | CJ51: s87 | CK51: s88 | CL51: s89 | CM51: s90 | CN51: s91 | CO51: s92 | CP51: s93 | CQ51: s94 | CR51: s95 | CS51: s96 | CT51: s97 | CU51: s98 | CV51: s99 | CW51: s100 | CX51: s101 | CY51: s102 | CZ51: s103 | DA51: s104 | DB51: s105 | DC51: s106 | DD51: s107 | DE51: s108 | DF51: s109 | DG51: s110 | DH51: s111 | DI51: s112 | DJ51: s113 | DK51: s114 | DL51: s115 | DM51: s116 | DN51: s117 | DO51: s118 | DP51: s119 | DQ51: s120 | DR51: s121 | DS51: s122 | DT51: s123 | DU51: s124 | DV51: s125 | DW51: s126 | DX51: s127 | DY51: s128 | DZ51: s129 | EA51: s130 | EB51: s131 | EC51: s132 | ED51: s133 | EE51: s134 | EF51: s135 | EG51: s136 | EH51: s137 | EI51: s138 | EJ51: s139 | EK51: s140 | EL51: s141 | EM51: s142 | EN51: s143 | EO51: s144 | EP51: s145 | EQ51: s146 | ER51: s147 | ES51: s148 | ET51: s149 | EU51: s150 | EV51: s151 | EW51: s152 | EX51: s153 | EY51: s154 | EZ51: s155 | FA51: s156 | FB51: s157 | FC51: s158 | FD51: s159 | FE51: s160 | FF51: s161 | FG51: s162 | FH51: s163 | FI51: s164 | FJ51: s165 | FK51: s166 | FL51: s167 | FM51: s168 | FN51: s169 | FO51: s170 | FP51: s171 | FQ51: s172 | FR51: s173 | FS51: s174 | FT51: s175 | FU51: s176 | FV51: s177 | FW51: s178 | FX51: s179 | FY51: s180 | FZ51: s181 | GA51: s182 | GB51: s183 | GC51: s184 | GD51: s185 | GE51: s186 | GF51: s187 | GG51: s188 | GH51: s189 | GI51: s190 | GJ51: s191 | GK51: s192 | GL51: s193 | GM51: s194 | GN51: s195 | GO51: s196 | GP51: s197 | GQ51: s198 | GR51: s199 | GS51: s200 | GT51: s201 | GU51: s202 | GV51: s203 | GW51: s204 | GX51: s205 | GY51: s206 | GZ51: s207 | HA51: s208 | HB51: s209 | HC51: s210 | HD51: s211 | HE51: s212 | HF51: s213 | HG51: s214 | HH51: s215 | HI51: s216 | HJ51: s217 | HK51: s218 | HL51: s219 | HM51: s220 | HN51: s221 | HO51: s222
A52: 1 | B52: 393 | C52: 0 | D52: 19 | E52: 0 | F52: 0 | G52: 0 | H52: 0 | I52: 0 | J52: 0 | K52: 0 | L52: 469 | M52: 0 | N52: 0 | O52: 0 | P52: 0 | Q52: 0 | R52: 0 | S52: 646 | T52: 0 | U52: 51 | V52: 0 | W52: 0 | X52: 0 | Y52: 0 | Z52: 0 | AA52: 0 | AB52: 0 | AC52: 960 | AD52: 0 | AE52: 0 | AF52: 0 | AG52: 0 | AH52: 0 | AI52: 0 | AJ52: 114 | AK52: 83 | AL52: 0 | AM52: 120 | AN52: 0 | AO52: 0 | AP52: 0 | AQ52: 0 | AR52: 0 | AS52: 0 | AT52: 0 | AU52: 0 | AV52: 235 | AW52: 130 | AX52: 0 | AY52: 143 | AZ52: 0 | BA52: 0 | BB52: 0 | BC52: 0 | BD52: 0 | BE52: 0 | BF52: 0 | BG52: 0 | BH52: 268 | BI52: 0 | BJ52: 723 | BK52: 0 | BL52: 1066 | BM52: 175 | BN52: 166 | BO52: 0 | BP52: 1802 | BQ52: 423 | BR52: 470 | BS52: 0 | BT52: 52 | BU52: 110 | BV52: 124 | BW52: 65 | BX52: 206 | BY52: 304 | BZ52: 191 | CA52: 111 | CB52: 89 | CC52: 55 | CD52: 720 | CE52: 1447 | CF52: 211 | CG52: 150 | CH52: 145 | CI52: 1747 | CJ52: 2324 | CK52: 405 | CL52: 59 | CM52: 17 | CN52: 113 | CO52: 117 | CP52: 50 | CQ52: 79 | CR52: 1172 | CS52: 1232 | CT52: 469 | CU52: 307 | CV52: 0 | CW52: 0 | CX52: 2351 | CY52: 2272 | CZ52: 960 | DA52: 569 | DB52: 0 | DC52: 0 | DD52: 1057 | DE52: 1164 | DF52: 419 | DG52: 138 | DH52: 2209 | DI52: 1822 | DJ52: 643 | DK52: 213 | DL52: 167 | DM52: 106 | DN52: 995 | DO52: 1800 | DP52: 308 | DQ52: 347 | DR52: 267 | DS52: 2358 | DT52: 3050 | DU52: 640 | DV52: 0 | DW52: 0 | DX52: 0 | DY52: 0 | DZ52: 0 | EA52: 0 | EB52: 2873 | EC52: 881 | ED52: 5583 | EE52: 1657 | EF52: 317 | EG52: 508 | EH52: 268 | EI52: 723 | EJ52: 1407 | EK52: 2695 | EL52: 2873 | EM52: 351 | EN52: 5583 | EO52: 812 | EP52: 144 | EQ52: 295 | ER52: 93 | ES52: 356 | ET52: 2873 | EU52: 5583 | EV52: 6154 | EW52: 11549 | EX52: 2778 | EY52: 4887 | EZ52: 273 | FA52: 614 | FB52: 0 | FC52: 0 | FD52: 0 | FE52: 0 | FF52: 0 | FG52: 0 | FH52: 0 | FI52: 0 | FJ52: 0 | FK52: 0 | FL52: 0 | FM52: 0 | FN52: 0 | FO52: 0 | FP52: 0 | FQ52: 0 | FR52: 0 | FS52: 0 | FT52: 0 | FU52: 0 | FV52: 0 | FW52: 0 | FX52: 0 | FY52: 0 | FZ52: 0 | GA52: 0 | GB52: 0 | GC52: 0 | GD52: 0 | GE52: 0 | GF52: 0 | GG52: 0 | GH52: 0 | GI52: 0 | GJ52: 0 | GK52: 0 | GL52: 0 | GM52: 0 | GN52: 0 | GO52: 0 | GP52: 0 | GQ52: 0 | GR52: 0 | GS52: 0 | GT52: 0 | GU52: 0 | GV52: 0 | GW52: 0 | GX52: 0 | GY52: 0 | GZ52: 0 | HA52: 0 | HB52: 0 | HC52: 0 | HD52: 0 | HE52: 0 | HF52: 0 | HG52: 0 | HH52: 0 | HI52: 0 | HJ52: 0 | HK52: 0 | HL52: 0 | HM52: 0 | HN52: 0 | HO52: 0
A53: 2 | B53: 286 | C53: 0 | D53: 13 | E53: 0 | F53: 0 | G53: 0 | H53: 0 | I53: 0 | J53: 0 | K53: 0 | L53: 648 | M53: 0 | N53: 0 | O53: 0 | P53: 0 | Q53: 0 | R53: 0 | S53: 751 | T53: 0 | U53: 43 | V53: 0 | W53: 0 | X53: 0 | Y53: 0 | Z53: 0 | AA53: 0 | AB53: 0 | AC53: 2087 | AD53: 0 | AE53: 0 | AF53: 0 | AG53: 0 | AH53: 0 | AI53: 0 | AJ53: 68 | AK53: 28 | AL53: 0 | AM53: 149 | AN53: 0 | AO53: 0 | AP53: 0 | AQ53: 0 | AR53: 0 | AS53: 0 | AT53: 0 | AU53: 0 | AV53: 223 | AW53: 64 | AX53: 0 | AY53: 234 | AZ53: 0 | BA53: 0 | BB53: 0 | BC53: 0 | BD53: 0 | BE53: 0 | BF53: 0 | BG53: 0 | BH53: 140 | BI53: 0 | BJ53: 507 | BK53: 0 | BL53: 889 | BM53: 131 | BN53: 19 | BO53: 0 | BP53: 2395 | BQ53: 436 | BR53: 227 | BS53: 0 | BT53: 45 | BU53: 134 | BV53: 102 | BW53: 46 | BX53: 351 | BY53: 585 | BZ53: 209 | CA53: 90 | CB53: 60 | CC53: 67 | CD53: 636 | CE53: 1040 | CF53: 241 | CG53: 171 | CH53: 202 | CI53: 1728 | CJ53: 2991 | CK53: 640 | CL53: 54 | CM53: 18 | CN53: 87 | CO53: 115 | CP53: 38 | CQ53: 67 | CR53: 815 | CS53: 908 | CT53: 648 | CU53: 186 | CV53: 0 | CW53: 0 | CX53: 2258 | CY53: 2622 | CZ53: 2087 | DA53: 499 | DB53: 0 | DC53: 0 | DD53: 128 | DE53: 466 | DF53: 297 | DG53: 57 | DH53: 1918 | DI53: 1797 | DJ53: 626 | DK53: 154 | DL53: 101 | DM53: 143 | DN53: 747 | DO53: 1298 | DP53: 286 | DQ53: 433 | DR53: 473 | DS53: 2198 | DT53: 3893 | DU53: 897 | DV53: 0 | DW53: 0 | DX53: 0 | DY53: 0 | DZ53: 0 | EA53: 0 | EB53: 2371 | EC53: 947 | ED53: 6967 | EE53: 2881 | EF53: 245 | EG53: 521 | EH53: 140 | EI53: 507 | EJ53: 1039 | EK53: 3058 | EL53: 2371 | EM53: 327 | EN53: 6967 | EO53: 1235 | EP53: 127 | EQ53: 373 | ER53: 43 | ES53: 312 | ET53: 2371 | EU53: 6967 | EV53: 3523 | EW53: 12389 | EX53: 948 | EY53: 4495 | EZ53: 244 | FA53: 906 | FB53: 0 | FC53: 0 | FD53: 0 | FE53: 0 | FF53: 0 | FG53: 0 | FH53: 0 | FI53: 0 | FJ53: 0 | FK53: 0 | FL53: 0 | FM53: 0 | FN53: 0 | FO53: 0 | FP53: 0 | FQ53: 0 | FR53: 0 | FS53: 0 | FT53: 0 | FU53: 0 | FV53: 0 | FW53: 0 | FX53: 0 | FY53: 0 | FZ53: 0 | GA53: 0 | GB53: 0 | GC53: 0 | GD53: 0 | GE53: 0 | GF53: 0 | GG53: 0 | GH53: 0 | GI53: 0 | GJ53: 0 | GK53: 0 | GL53: 0 | GM53: 0 | GN53: 0 | GO53: 0 | GP53: 0 | GQ53: 0 | GR53: 0 | GS53: 0 | GT53: 0 | GU53: 0 | GV53: 0 | GW53: 0 | GX53: 0 | GY53: 0 | GZ53: 0 | HA53: 0 | HB53: 0 | HC53: 0 | HD53: 0 | HE53: 0 | HF53: 0 | HG53: 0 | HH53: 0 | HI53: 0 | HJ53: 0 | HK53: 0 | HL53: 0 | HM53: 0 | HN53: 0 | HO53: 0
A54: 3 | B54: 228 | C54: 0 | D54: 19 | E54: 0 | F54: 0 | G54: 0 | H54: 0 | I54: 0 | J54: 0 | K54: 0 | L54: 250 | M54: 0 | N54: 0 | O54: 0 | P54: 0 | Q54: 0 | R54: 0 | S54: 597 | T54: 0 | U54: 295 | V54: 0 | W54: 0 | X54: 0 | Y54: 0 | Z54: 0 | AA54: 0 | AB54: 0 | AC54: 667 | AD54: 0 | AE54: 0 | AF54: 0 | AG54: 0 | AH54: 0 | AI54: 0 | AJ54: 77 | AK54: 54 | AL54: 0 | AM54: 103 | AN54: 0 | AO54: 0 | AP54: 0 | AQ54: 0 | AR54: 0 | AS54: 0 | AT54: 0 | AU54: 0 | AV54: 211 | AW54: 111 | AX54: 0 | AY54: 249 | AZ54: 0 | BA54: 0 | BB54: 0 | BC54: 0 | BD54: 0 | BE54: 0 | BF54: 0 | BG54: 0 | BH54: 120 | BI54: 0 | BJ54: 538 | BK54: 0 | BL54: 913 | BM54: 101 | BN54: 13 | BO54: 0 | BP54: 2668 | BQ54: 431 | BR54: 242 | BS54: 0 | BT54: 20 | BU54: 51 | BV54: 50 | BW54: 27 | BX54: 174 | BY54: 233 | BZ54: 135 | CA54: 113 | CB54: 54 | CC54: 40 | CD54: 536 | CE54: 917 | CF54: 183 | CG54: 169 | CH54: 197 | CI54: 1656 | CJ54: 2730 | CK54: 602 | CL54: 59 | CM54: 26 | CN54: 116 | CO54: 123 | CP54: 50 | CQ54: 69 | CR54: 702 | CS54: 926 | CT54: 250 | CU54: 170 | CV54: 0 | CW54: 0 | CX54: 2432 | CY54: 2910 | CZ54: 667 | DA54: 522 | DB54: 0 | DC54: 0 | DD54: 170 | DE54: 346 | DF54: 126 | DG54: 63 | DH54: 2228 | DI54: 1652 | DJ54: 304 | DK54: 188 | DL54: 102 | DM54: 96 | DN54: 659 | DO54: 1155 | DP54: 283 | DQ54: 317 | DR54: 383 | DS54: 2162 | DT54: 3636 | DU54: 923 | DV54: 0 | DW54: 0 | DX54: 0 | DY54: 0 | DZ54: 0 | EA54: 0 | EB54: 1878 | EC54: 497 | ED54: 6009 | EE54: 1559 | EF54: 234 | EG54: 571 | EH54: 120 | EI54: 538 | EJ54: 1027 | EK54: 3341 | EL54: 1878 | EM54: 148 | EN54: 6009 | EO54: 655 | EP54: 94 | EQ54: 366 | ER54: 363 | ES54: 374 | ET54: 1878 | EU54: 6009 | EV54: 3000 | EW54: 11793 | EX54: 705 | EY54: 4372 | EZ54: 198 | FA54: 700 | FB54: 0 | FC54: 0 | FD54: 0 | FE54: 0 | FF54: 0 | FG54: 0 | FH54: 0 | FI54: 0 | FJ54: 0 | FK54: 0 | FL54: 0 | FM54: 0 | FN54: 0 | FO54: 0 | FP54: 0 | FQ54: 0 | FR54: 0 | FS54: 0 | FT54: 0 | FU54: 0 | FV54: 0 | FW54: 0 | FX54: 0 | FY54: 0 | FZ54: 0 | GA54: 0 | GB54: 0 | GC54: 0 | GD54: 0 | GE54: 0 | GF54: 0 | GG54: 0 | GH54: 0 | GI54: 0 | GJ54: 0 | GK54: 0 | GL54: 0 | GM54: 0 | GN54: 0 | GO54: 0 | GP54: 0 | GQ54: 0 | GR54: 0 | GS54: 0 | GT54: 0 | GU54: 0 | GV54: 0 | GW54: 0 | GX54: 0 | GY54: 0 | GZ54: 0 | HA54: 0 | HB54: 0 | HC54: 0 | HD54: 0 | HE54: 0 | HF54: 0 | HG54: 0 | HH54: 0 | HI54: 0 | HJ54: 0 | HK54: 0 | HL54: 0 | HM54: 0 | HN54: 0 | HO54: 0
A55: Grand Total | B55: 907 | C55: 0 | D55: 51 | E55: 0 | F55: 0 | G55: 0 | H55: 0 | I55: 0 | J55: 0 | K55: 0 | L55: 1367 | M55: 0 | N55: 0 | O55: 0 | P55: 0 | Q55: 0 | R55: 0 | S55: 1994 | T55: 0 | U55: 389 | V55: 0 | W55: 0 | X55: 0 | Y55: 0 | Z55: 0 | AA55: 0 | AB55: 0 | AC55: 3714 | AD55: 0 | AE55: 0 | AF55: 0 | AG55: 0 | AH55: 0 | AI55: 0 | AJ55: 259 | AK55: 165 | AL55: 0 | AM55: 372 | AN55: 0 | AO55: 0 | AP55: 0 | AQ55: 0 | AR55: 0 | AS55: 0 | AT55: 0 | AU55: 0 | AV55: 669 | AW55: 305 | AX55: 0 | AY55: 626 | AZ55: 0 | BA55: 0 | BB55: 0 | BC55: 0 | BD55: 0 | BE55: 0 | BF55: 0 | BG55: 0 | BH55: 528 | BI55: 0 | BJ55: 1768 | BK55: 0 | BL55: 2868 | BM55: 407 | BN55: 198 | BO55: 0 | BP55: 6865 | BQ55: 1290 | BR55: 939 | BS55: 0 | BT55: 117 | BU55: 295 | BV55: 276 | BW55: 138 | BX55: 731 | BY55: 1122 | BZ55: 535 | CA55: 314 | CB55: 203 | CC55: 162 | CD55: 1892 | CE55: 3404 | CF55: 635 | CG55: 490 | CH55: 544 | CI55: 5131 | CJ55: 8045 | CK55: 1647 | CL55: 172 | CM55: 61 | CN55: 316 | CO55: 355 | CP55: 138 | CQ55: 215 | CR55: 2689 | CS55: 3066 | CT55: 1367 | CU55: 663 | CV55: 0 | CW55: 0 | CX55: 7041 | CY55: 7804 | CZ55: 3714 | DA55: 1590 | DB55: 0 | DC55: 0 | DD55: 1355 | DE55: 1976 | DF55: 842 | DG55: 258 | DH55: 6355 | DI55: 5271 | DJ55: 1573 | DK55: 555 | DL55: 370 | DM55: 345 | DN55: 2401 | DO55: 4253 | DP55: 877 | DQ55: 1097 | DR55: 1123 | DS55: 6718 | DT55: 10579 | DU55: 2460 | DV55: 0 | DW55: 0 | DX55: 0 | DY55: 0 | DZ55: 0 | EA55: 0 | EB55: 7122 | EC55: 2325 | ED55: 18559 | EE55: 6097 | EF55: 796 | EG55: 1600 | EH55: 528 | EI55: 1768 | EJ55: 3473 | EK55: 9094 | EL55: 7122 | EM55: 826 | EN55: 18559 | EO55: 2702 | EP55: 365 | EQ55: 1034 | ER55: 499 | ES55: 1042 | ET55: 7122 | EU55: 18559 | EV55: 12677 | EW55: 35731 | EX55: 4431 | EY55: 13754 | EZ55: 715 | FA55: 2220 | FB55: 0 | FC55: 0 | FD55: 0 | FE55: 0 | FF55: 0 | FG55: 0 | FH55: 0 | FI55: 0 | FJ55: 0 | FK55: 0 | FL55: 0 | FM55: 0 | FN55: 0 | FO55: 0 | FP55: 0 | FQ55: 0 | FR55: 0 | FS55: 0 | FT55: 0 | FU55: 0 | FV55: 0 | FW55: 0 | FX55: 0 | FY55: 0 | FZ55: 0 | GA55: 0 | GB55: 0 | GC55: 0 | GD55: 0 | GE55: 0 | GF55: 0 | GG55: 0 | GH55: 0 | GI55: 0 | GJ55: 0 | GK55: 0 | GL55: 0 | GM55: 0 | GN55: 0 | GO55: 0 | GP55: 0 | GQ55: 0 | GR55: 0 | GS55: 0 | GT55: 0 | GU55: 0 | GV55: 0 | GW55: 0 | GX55: 0 | GY55: 0 | GZ55: 0 | HA55: 0 | HB55: 0 | HC55: 0 | HD55: 0 | HE55: 0 | HF55: 0 | HG55: 0 | HH55: 0 | HI55: 0 | HJ55: 0 | HK55: 0 | HL55: 0 | HM55: 0 | HN55: 0 | HO55: 0
A70: cod_ano | B70: 2025
A71: red | B71: CANAS-CANCHIS-ESPINAR
A72: mred | B72: YAURI
A73: estable | B73: HOSP. ESPINAR
A74: desc_prov | B74: (All)
A75: desc_dist | B75: (All)
B77: Valores
A78: Row Labels | B78: t01 | C78: t02 | D78: t03 | E78: t04 | F78: t05 | G78: t06 | H78: t07 | I78: t08 | J78: t09 | K78: t10 | L78: t11 | M78: t12 | N78: t13 | O78: t14 | P78: t15 | Q78: t16 | R78: t17 | S78: t18 | T78: t19 | U78: t20 | V78: t21 | W78: t22 | X78: t23 | Y78: t24 | Z78: t25 | AA78: t26 | AB78: t27 | AC78: t28 | AD78: t29 | AE78: t30 | AF78: t31 | AG78: t32 | AH78: t33 | AI78: t34 | AJ78: t35 | AK78: t36 | AL78: t37 | AM78: t38 | AN78: t39 | AO78: t40 | AP78: t41 | AQ78: t42 | AR78: t43 | AS78: t44 | AT78: t45 | AU78: t46 | AV78: t47 | AW78: t48 | AX78: t49 | AY78: t50 | AZ78: t51 | BA78: t52 | BB78: t53 | BC78: t54 | BD78: t55 | BE78: t56 | BF78: t57 | BG78: t58 | BH78: t59 | BI78: t60 | BJ78: t61 | BK78: t62 | BL78: t63 | BM78: t64 | BN78: t65 | BO78: t66 | BP78: t67 | BQ78: t68 | BR78: t69 | BS78: t70 | BT78: t71 | BU78: t72 | BV78: t73 | BW78: t74 | BX78: t75 | BY78: t76 | BZ78: t77 | CA78: t78 | CB78: t79 | CC78: t80 | CD78: t81 | CE78: t82 | CF78: t83 | CG78: t84 | CH78: t85 | CI78: t86 | CJ78: t87 | CK78: t88 | CL78: t89 | CM78: t90 | CN78: t91 | CO78: t92 | CP78: t93 | CQ78: t94 | CR78: t95 | CS78: t96 | CT78: t97 | CU78: t98 | CV78: t99 | CW78: t100 | CX78: t101 | CY78: t102 | CZ78: t103 | DA78: t104 | DB78: t105 | DC78: t106 | DD78: t107 | DE78: t108 | DF78: t109 | DG78: t110 | DH78: t111 | DI78: t112 | DJ78: t113 | DK78: t114 | DL78: t115 | DM78: t116 | DN78: t117 | DO78: t118 | DP78: t119 | DQ78: t120 | DR78: t121 | DS78: t122 | DT78: t123 | DU78: t124 | DV78: t125 | DW78: t126 | DX78: t127 | DY78: t128 | DZ78: t129 | EA78: t130 | EB78: t131 | EC78: t132 | ED78: t133 | EE78: t134 | EF78: t135 | EG78: t136 | EH78: t137 | EI78: t138 | EJ78: t139 | EK78: t140 | EL78: t141 | EM78: t142 | EN78: t143 | EO78: t144 | EP78: t145 | EQ78: t146 | ER78: t147 | ES78: t148 | ET78: t149 | EU78: t150 | EV78: t151 | EW78: t152 | EX78: t153 | EY78: t154 | EZ78: t155 | FA78: t156 | FB78: t157 | FC78: t158 | FD78: t159 | FE78: t160 | FF78: t161 | FG78: t162 | FH78: t163 | FI78: t164 | FJ78: t165 | FK78: t166 | FL78: t167 | FM78: t168 | FN78: t169 | FO78: t170 | FP78: t171 | FQ78: t172 | FR78: t173 | FS78: t174 | FT78: t175 | FU78: t176 | FV78: t177 | FW78: t178 | FX78: t179 | FY78: t180 | FZ78: t181 | GA78: t182 | GB78: t183 | GC78: t184 | GD78: t185 | GE78: t186 | GF78: t187 | GG78: t188 | GH78: t189 | GI78: t190 | GJ78: t191 | GK78: t192 | GL78: t193 | GM78: t194 | GN78: t195 | GO78: t196 | GP78: t197 | GQ78: t198 | GR78: t199 | GS78: t200 | GT78: t201 | GU78: t202 | GV78: t203 | GW78: t204 | GX78: t205 | GY78: t206 | GZ78: t207 | HA78: t208 | HB78: t209 | HC78: t210 | HD78: t211 | HE78: t212 | HF78: t213 | HG78: t214 | HH78: t215 | HI78: t216 | HJ78: t217 | HK78: t218 | HL78: t219 | HM78: t220 | HN78: t221 | HO78: t222
A79: 1 | B79: 0 | C79: 0 | D79: 0 | E79: 0 | F79: 0 | G79: 0 | H79: 0 | I79: 0 | J79: 0 | K79: 0 | L79: 0 | M79: 0 | N79: 0 | O79: 0 | P79: 0 | Q79: 0 | R79: 0 | S79: 0 | T79: 0 | U79: 0 | V79: 0 | W79: 0 | X79: 0 | Y79: 0 | Z79: 0 | AA79: 0 | AB79: 0 | AC79: 0 | AD79: 0 | AE79: 0 | AF79: 0 | AG79: 0 | AH79: 0 | AI79: 0 | AJ79: 0 | AK79: 0 | AL79: 64 | AM79: 20 | AN79: 2 | AO79: 6 | AP79: 0 | AQ79: 0 | AR79: 0 | AS79: 0 | AT79: 0 | AU79: 33 | AV79: 3 | AW79: 32 | AX79: 3 | AY79: 0 | AZ79: 6 | BA79: 7 | BB79: 16 | BC79: 1 | BD79: 0 | BE79: 48 | BF79: 0 | BG79: 96 | BH79: 744 | BI79: 103 | BJ79: 90 | BK79: 2 | BL79: 0 | BM79: 0 | BN79: 0 | BO79: 41 | BP79: 41 | BQ79: 0 | BR79: 6 | BS79: 0 | BT79: 151 | BU79: 151 | BV79: 0 | BW79: 0 | BX79: 0 | BY79: 0 | BZ79: 0 | CA79: 0 | CB79: 0 | CC79: 0 | CD79: 0 | CE79: 0 | CF79: 0 | CG79: 0 | CH79: 0 | CI79: 0 | CJ79: 0 | CK79: 93 | CL79: 0 | CM79: 1 | CN79: 0 | CO79: 0 | CP79: 0 | CQ79: 0 | CR79: 0 | CS79: 0 | CT79: 0 | CU79: 0 | CV79: 0 | CW79: 0 | CX79: 0 | CY79: 0 | CZ79: 0 | DA79: 0 | DB79: 0 | DC79: 0 | DD79: 0 | DE79: 0 | DF79: 0 | DG79: 0 | DH79: 0 | DI79: 0 | DJ79: 0 | DK79: 0 | DL79: 0 | DM79: 0 | DN79: 0 | DO79: 0 | DP79: 0 | DQ79: 0 | DR79: 0 | DS79: 0 | DT79: 0 | DU79: 0 | DV79: 0 | DW79: 0 | DX79: 0 | DY79: 0 | DZ79: 0 | EA79: 0 | EB79: 0 | EC79: 0 | ED79: 0 | EE79: 0 | EF79: 0 | EG79: 0 | EH79: 0 | EI79: 0 | EJ79: 0 | EK79: 0 | EL79: 0 | EM79: 0 | EN79: 0 | EO79: 0 | EP79: 0 | EQ79: 0 | ER79: 0 | ES79: 0 | ET79: 0 | EU79: 0 | EV79: 0 | EW79: 0 | EX79: 0 | EY79: 0 | EZ79: 0 | FA79: 0 | FB79: 0 | FC79: 0 | FD79: 0 | FE79: 0 | FF79: 0 | FG79: 0 | FH79: 0 | FI79: 0 | FJ79: 0 | FK79: 0 | FL79: 0 | FM79: 0 | FN79: 0 | FO79: 0 | FP79: 0 | FQ79: 0 | FR79: 0 | FS79: 0 | FT79: 0 | FU79: 0 | FV79: 0 | FW79: 0 | FX79: 0 | FY79: 0 | FZ79: 0 | GA79: 0 | GB79: 0 | GC79: 0 | GD79: 0 | GE79: 0 | GF79: 0 | GG79: 0 | GH79: 0 | GI79: 0 | GJ79: 0 | GK79: 0 | GL79: 0 | GM79: 0 | GN79: 0 | GO79: 0 | GP79: 0 | GQ79: 0 | GR79: 0 | GS79: 0 | GT79: 0 | GU79: 0 | GV79: 0 | GW79: 0 | GX79: 0 | GY79: 0 | GZ79: 0 | HA79: 0 | HB79: 0 | HC79: 0 | HD79: 0 | HE79: 0 | HF79: 0 | HG79: 0 | HH79: 0 | HI79: 0 | HJ79: 0 | HK79: 0 | HL79: 0 | HM79: 0 | HN79: 0 | HO79: 0
A80: 2 | B80: 0 | C80: 0 | D80: 0 | E80: 0 | F80: 0 | G80: 0 | H80: 0 | I80: 0 | J80: 0 | K80: 0 | L80: 0 | M80: 0 | N80: 0 | O80: 0 | P80: 0 | Q80: 0 | R80: 0 | S80: 0 | T80: 0 | U80: 0 | V80: 0 | W80: 0 | X80: 0 | Y80: 0 | Z80: 0 | AA80: 0 | AB80: 0 | AC80: 0 | AD80: 0 | AE80: 0 | AF80: 0 | AG80: 0 | AH80: 0 | AI80: 0 | AJ80: 0 | AK80: 0 | AL80: 48 | AM80: 11 | AN80: 1 | AO80: 2 | AP80: 0 | AQ80: 0 | AR80: 0 | AS80: 0 | AT80: 0 | AU80: 33 | AV80: 1 | AW80: 26 | AX80: 2 | AY80: 0 | AZ80: 10 | BA80: 1 | BB80: 13 | BC80: 1 | BD80: 0 | BE80: 49 | BF80: 0 | BG80: 74 | BH80: 672 | BI80: 103 | BJ80: 71 | BK80: 0 | BL80: 0 | BM80: 0 | BN80: 0 | BO80: 31 | BP80: 30 | BQ80: 1 | BR80: 7 | BS80: 0 | BT80: 127 | BU80: 127 | BV80: 0 | BW80: 0 | BX80: 0 | BY80: 0 | BZ80: 0 | CA80: 0 | CB80: 0 | CC80: 0 | CD80: 0 | CE80: 0 | CF80: 0 | CG80: 0 | CH80: 0 | CI80: 0 | CJ80: 0 | CK80: 43 | CL80: 0 | CM80: 0 | CN80: 0 | CO80: 0 | CP80: 0 | CQ80: 0 | CR80: 0 | CS80: 0 | CT80: 0 | CU80: 0 | CV80: 0 | CW80: 0 | CX80: 0 | CY80: 0 | CZ80: 0 | DA80: 0 | DB80: 0 | DC80: 0 | DD80: 0 | DE80: 0 | DF80: 0 | DG80: 0 | DH80: 0 | DI80: 0 | DJ80: 0 | DK80: 0 | DL80: 0 | DM80: 0 | DN80: 0 | DO80: 0 | DP80: 0 | DQ80: 0 | DR80: 0 | DS80: 0 | DT80: 0 | DU80: 0 | DV80: 0 | DW80: 0 | DX80: 0 | DY80: 0 | DZ80: 0 | EA80: 0 | EB80: 0 | EC80: 0 | ED80: 0 | EE80: 0 | EF80: 0 | EG80: 0 | EH80: 0 | EI80: 0 | EJ80: 0 | EK80: 0 | EL80: 0 | EM80: 0 | EN80: 0 | EO80: 0 | EP80: 0 | EQ80: 0 | ER80: 0 | ES80: 0 | ET80: 0 | EU80: 0 | EV80: 0 | EW80: 0 | EX80: 0 | EY80: 0 | EZ80: 0 | FA80: 0 | FB80: 0 | FC80: 0 | FD80: 0 | FE80: 0 | FF80: 0 | FG80: 0 | FH80: 0 | FI80: 0 | FJ80: 0 | FK80: 0 | FL80: 0 | FM80: 0 | FN80: 0 | FO80: 0 | FP80: 0 | FQ80: 0 | FR80: 0 | FS80: 0 | FT80: 0 | FU80: 0 | FV80: 0 | FW80: 0 | FX80: 0 | FY80: 0 | FZ80: 0 | GA80: 0 | GB80: 0 | GC80: 0 | GD80: 0 | GE80: 0 | GF80: 0 | GG80: 0 | GH80: 0 | GI80: 0 | GJ80: 0 | GK80: 0 | GL80: 0 | GM80: 0 | GN80: 0 | GO80: 0 | GP80: 0 | GQ80: 0 | GR80: 0 | GS80: 0 | GT80: 0 | GU80: 0 | GV80: 0 | GW80: 0 | GX80: 0 | GY80: 0 | GZ80: 0 | HA80: 0 | HB80: 0 | HC80: 0 | HD80: 0 | HE80: 0 | HF80: 0 | HG80: 0 | HH80: 0 | HI80: 0 | HJ80: 0 | HK80: 0 | HL80: 0 | HM80: 0 | HN80: 0 | HO80: 0
A81: 3 | B81: 0 | C81: 0 | D81: 0 | E81: 0 | F81: 0 | G81: 0 | H81: 0 | I81: 0 | J81: 0 | K81: 0 | L81: 0 | M81: 0 | N81: 0 | O81: 0 | P81: 0 | Q81: 0 | R81: 0 | S81: 0 | T81: 0 | U81: 0 | V81: 0 | W81: 0 | X81: 0 | Y81: 0 | Z81: 0 | AA81: 0 | AB81: 0 | AC81: 0 | AD81: 0 | AE81: 0 | AF81: 0 | AG81: 0 | AH81: 0 | AI81: 0 | AJ81: 0 | AK81: 0 | AL81: 49 | AM81: 17 | AN81: 0 | AO81: 4 | AP81: 0 | AQ81: 0 | AR81: 0 | AS81: 0 | AT81: 0 | AU81: 23 | AV81: 5 | AW81: 33 | AX81: 5 | AY81: 0 | AZ81: 3 | BA81: 6 | BB81: 19 | BC81: 1 | BD81: 0 | BE81: 51 | BF81: 0 | BG81: 82 | BH81: 744 | BI81: 103 | BJ81: 80 | BK81: 0 | BL81: 0 | BM81: 0 | BN81: 0 | BO81: 40 | BP81: 40 | BQ81: 0 | BR81: 5 | BS81: 0 | BT81: 131 | BU81: 131 | BV81: 0 | BW81: 0 | BX81: 0 | BY81: 0 | BZ81: 0 | CA81: 0 | CB81: 0 | CC81: 0 | CD81: 0 | CE81: 0 | CF81: 0 | CG81: 0 | CH81: 0 | CI81: 0 | CJ81: 0 | CK81: 42 | CL81: 0 | CM81: 0 | CN81: 0 | CO81: 0 | CP81: 0 | CQ81: 0 | CR81: 0 | CS81: 0 | CT81: 0 | CU81: 0 | CV81: 0 | CW81: 0 | CX81: 0 | CY81: 0 | CZ81: 0 | DA81: 0 | DB81: 0 | DC81: 0 | DD81: 0 | DE81: 0 | DF81: 0 | DG81: 0 | DH81: 0 | DI81: 0 | DJ81: 0 | DK81: 0 | DL81: 0 | DM81: 0 | DN81: 0 | DO81: 0 | DP81: 0 | DQ81: 0 | DR81: 0 | DS81: 0 | DT81: 0 | DU81: 0 | DV81: 0 | DW81: 0 | DX81: 0 | DY81: 0 | DZ81: 0 | EA81: 0 | EB81: 0 | EC81: 0 | ED81: 0 | EE81: 0 | EF81: 0 | EG81: 0 | EH81: 0 | EI81: 0 | EJ81: 0 | EK81: 0 | EL81: 0 | EM81: 0 | EN81: 0 | EO81: 0 | EP81: 0 | EQ81: 0 | ER81: 0 | ES81: 0 | ET81: 0 | EU81: 0 | EV81: 0 | EW81: 0 | EX81: 0 | EY81: 0 | EZ81: 0 | FA81: 0 | FB81: 0 | FC81: 0 | FD81: 0 | FE81: 0 | FF81: 0 | FG81: 0 | FH81: 0 | FI81: 0 | FJ81: 0 | FK81: 0 | FL81: 0 | FM81: 0 | FN81: 0 | FO81: 0 | FP81: 0 | FQ81: 0 | FR81: 0 | FS81: 0 | FT81: 0 | FU81: 0 | FV81: 0 | FW81: 0 | FX81: 0 | FY81: 0 | FZ81: 0 | GA81: 0 | GB81: 0 | GC81: 0 | GD81: 0 | GE81: 0 | GF81: 0 | GG81: 0 | GH81: 0 | GI81: 0 | GJ81: 0 | GK81: 0 | GL81: 0 | GM81: 0 | GN81: 0 | GO81: 0 | GP81: 0 | GQ81: 0 | GR81: 0 | GS81: 0 | GT81: 0 | GU81: 0 | GV81: 0 | GW81: 0 | GX81: 0 | GY81: 0 | GZ81: 0 | HA81: 0 | HB81: 0 | HC81: 0 | HD81: 0 | HE81: 0 | HF81: 0 | HG81: 0 | HH81: 0 | HI81: 0 | HJ81: 0 | HK81: 0 | HL81: 0 | HM81: 0 | HN81: 0 | HO81: 0
A82: Grand Total | B82: 0 | C82: 0 | D82: 0 | E82: 0 | F82: 0 | G82: 0 | H82: 0 | I82: 0 | J82: 0 | K82: 0 | L82: 0 | M82: 0 | N82: 0 | O82: 0 | P82: 0 | Q82: 0 | R82: 0 | S82: 0 | T82: 0 | U82: 0 | V82: 0 | W82: 0 | X82: 0 | Y82: 0 | Z82: 0 | AA82: 0 | AB82: 0 | AC82: 0 | AD82: 0 | AE82: 0 | AF82: 0 | AG82: 0 | AH82: 0 | AI82: 0 | AJ82: 0 | AK82: 0 | AL82: 161 | AM82: 48 | AN82: 3 | AO82: 12 | AP82: 0 | AQ82: 0 | AR82: 0 | AS82: 0 | AT82: 0 | AU82: 89 | AV82: 9 | AW82: 91 | AX82: 10 | AY82: 0 | AZ82: 19 | BA82: 14 | BB82: 48 | BC82: 3 | BD82: 0 | BE82: 148 | BF82: 0 | BG82: 252 | BH82: 2160 | BI82: 309 | BJ82: 241 | BK82: 2 | BL82: 0 | BM82: 0 | BN82: 0 | BO82: 112 | BP82: 111 | BQ82: 1 | BR82: 18 | BS82: 0 | BT82: 409 | BU82: 409 | BV82: 0 | BW82: 0 | BX82: 0 | BY82: 0 | BZ82: 0 | CA82: 0 | CB82: 0 | CC82: 0 | CD82: 0 | CE82: 0 | CF82: 0 | CG82: 0 | CH82: 0 | CI82: 0 | CJ82: 0 | CK82: 178 | CL82: 0 | CM82: 1 | CN82: 0 | CO82: 0 | CP82: 0 | CQ82: 0 | CR82: 0 | CS82: 0 | CT82: 0 | CU82: 0 | CV82: 0 | CW82: 0 | CX82: 0 | CY82: 0 | CZ82: 0 | DA82: 0 | DB82: 0 | DC82: 0 | DD82: 0 | DE82: 0 | DF82: 0 | DG82: 0 | DH82: 0 | DI82: 0 | DJ82: 0 | DK82: 0 | DL82: 0 | DM82: 0 | DN82: 0 | DO82: 0 | DP82: 0 | DQ82: 0 | DR82: 0 | DS82: 0 | DT82: 0 | DU82: 0 | DV82: 0 | DW82: 0 | DX82: 0 | DY82: 0 | DZ82: 0 | EA82: 0 | EB82: 0 | EC82: 0 | ED82: 0 | EE82: 0 | EF82: 0 | EG82: 0 | EH82: 0 | EI82: 0 | EJ82: 0 | EK82: 0 | EL82: 0 | EM82: 0 | EN82: 0 | EO82: 0 | EP82: 0 | EQ82: 0 | ER82: 0 | ES82: 0 | ET82: 0 | EU82: 0 | EV82: 0 | EW82: 0 | EX82: 0 | EY82: 0 | EZ82: 0 | FA82: 0 | FB82: 0 | FC82: 0 | FD82: 0 | FE82: 0 | FF82: 0 | FG82: 0 | FH82: 0 | FI82: 0 | FJ82: 0 | FK82: 0 | FL82: 0 | FM82: 0 | FN82: 0 | FO82: 0 | FP82: 0 | FQ82: 0 | FR82: 0 | FS82: 0 | FT82: 0 | FU82: 0 | FV82: 0 | FW82: 0 | FX82: 0 | FY82: 0 | FZ82: 0 | GA82: 0 | GB82: 0 | GC82: 0 | GD82: 0 | GE82: 0 | GF82: 0 | GG82: 0 | GH82: 0 | GI82: 0 | GJ82: 0 | GK82: 0 | GL82: 0 | GM82: 0 | GN82: 0 | GO82: 0 | GP82: 0 | GQ82: 0 | GR82: 0 | GS82: 0 | GT82: 0 | GU82: 0 | GV82: 0 | GW82: 0 | GX82: 0 | GY82: 0 | GZ82: 0 | HA82: 0 | HB82: 0 | HC82: 0 | HD82: 0 | HE82: 0 | HF82: 0 | HG82: 0 | HH82: 0 | HI82: 0 | HJ82: 0 | HK82: 0 | HL82: 0 | HM82: 0 | HN82: 0 | HO82: 0
A95: cod_ano | B95: 2025
A96: red | B96: CANAS-CANCHIS-ESPINAR
A97: mred | B97: YAURI
A98: estable | B98: HOSP. ESPINAR
A99: desc_prov | B99: (All)
A100: desc_dist | B100: (All)
B102: Valores
A103: Row Labels | B103: u01 | C103: u02 | D103: u03 | E103: u04 | F103: u05 | G103: u06 | H103: u07 | I103: u08 | J103: u09 | K103: u10 | L103: u11 | M103: u12 | N103: u13 | O103: u14 | P103: u15 | Q103: u16 | R103: u17 | S103: u18 | T103: u19 | U103: u20 | V103: u21 | W103: u22 | X103: u23 | Y103: u24 | Z103: u25 | AA103: u26 | AB103: u27 | AC103: u28 | AD103: u29 | AE103: u30 | AF103: u31 | AG103: u32 | AH103: u33 | AI103: u34 | AJ103: u35 | AK103: u36 | AL103: u37 | AM103: u38 | AN103: u39 | AO103: u40 | AP103: u41 | AQ103: u42 | AR103: u43 | AS103: u44 | AT103: u45 | AU103: u46 | AV103: u47 | AW103: u48 | AX103: u49 | AY103: u50 | AZ103: u51 | BA103: u52 | BB103: u53 | BC103: u54 | BD103: u55 | BE103: u56 | BF103: u57 | BG103: u58 | BH103: u59 | BI103: u60 | BJ103: u61 | BK103: u62 | BL103: u63 | BM103: u64 | BN103: u65 | BO103: u66 | BP103: u67 | BQ103: u68 | BR103: u69 | BS103: u70 | BT103: u71 | BU103: u72 | BV103: u73 | BW103: u74 | BX103: u75 | BY103: u76 | BZ103: u77 | CA103: u78 | CB103: u79 | CC103: u80 | CD103: u81 | CE103: u82 | CF103: u83 | CG103: u84 | CH103: u85 | CI103: u86 | CJ103: u87 | CK103: u88 | CL103: u89 | CM103: u90 | CN103: u91 | CO103: u92 | CP103: u93 | CQ103: u94 | CR103: u95 | CS103: u96 | CT103: u97 | CU103: u98 | CV103: u99 | CW103: u100 | CX103: u101 | CY103: u102 | CZ103: u103 | DA103: u104 | DB103: u105 | DC103: u106 | DD103: u107 | DE103: u108 | DF103: u109 | DG103: u110 | DH103: u111 | DI103: u112 | DJ103: u113 | DK103: u114 | DL103: u115 | DM103: u116 | DN103: u117 | DO103: u118 | DP103: u119 | DQ103: u120 | DR103: u121 | DS103: u122 | DT103: u123 | DU103: u124 | DV103: u125 | DW103: u126 | DX103: u127 | DY103: u128 | DZ103: u129 | EA103: u130 | EB103: u131 | EC103: u132 | ED103: u133 | EE103: u134 | EF103: u135 | EG103: u136 | EH103: u137 | EI103: u138 | EJ103: u139 | EK103: u140 | EL103: u141 | EM103: u142 | EN103: u143 | EO103: u144 | EP103: u145 | EQ103: u146 | ER103: u147 | ES103: u148 | ET103: u149 | EU103: u150 | EV103: u151 | EW103: u152 | EX103: u153 | EY103: u154 | EZ103: u155 | FA103: u156 | FB103: u157 | FC103: u158 | FD103: u159 | FE103: u160 | FF103: u161 | FG103: u162 | FH103: u163 | FI103: u164 | FJ103: u165 | FK103: u166 | FL103: u167 | FM103: u168 | FN103: u169 | FO103: u170 | FP103: u171 | FQ103: u172 | FR103: u173 | FS103: u174 | FT103: u175 | FU103: u176 | FV103: u177 | FW103: u178 | FX103: u179 | FY103: u180 | FZ103: u181 | GA103: u182 | GB103: u183 | GC103: u184 | GD103: u185 | GE103: u186 | GF103: u187 | GG103: u188 | GH103: u189 | GI103: u190 | GJ103: u191 | GK103: u192 | GL103: u193 | GM103: u194 | GN103: u195 | GO103: u196 | GP103: u197 | GQ103: u198 | GR103: u199 | GS103: u200 | GT103: u201 | GU103: u202 | GV103: u203 | GW103: u204 | GX103: u205 | GY103: u206 | GZ103: u207 | HA103: u208 | HB103: u209 | HC103: u210 | HD103: u211 | HE103: u212 | HF103: u213 | HG103: u214 | HH103: u215 | HI103: u216 | HJ103: u217 | HK103: u218 | HL103: u219 | HM103: u220 | HN103: u221 | HO103: u222
A104: 1 | B104: 2691 | C104: 1106 | D104: 1585 | E104: 1562 | F104: 0 | G104: 0 | H104: 0 | I104: 0 | J104: 2641 | K104: 0 | L104: 180 | M104: 0 | N104: 180 | O104: 446 | P104: 21 | Q104: 0 | R104: 0 | S104: 0 | T104: 5 | U104: 2 | V104: 2 | W104: 4 | X104: 11 | Y104: 0 | Z104: 0 | AA104: 0 | AB104: 0 | AC104: 0 | AD104: 0 | AE104: 0 | AF104: 0 | AG104: 0 | AH104: 0 | AI104: 0 | AJ104: 43 | AK104: 13 | AL104: 20 | AM104: 15 | AN104: 23 | AO104: 0 | AP104: 175 | AQ104: 0 | AR104: 0 | AS104: 0 | AT104: 0 | AU104: 0 | AV104: 0 | AW104: 0 | AX104: 0 | AY104: 0 | AZ104: 34 | BA104: 19 | BB104: 20 | BC104: 44 | BD104: 30 | BE104: 0 | BF104: 0 | BG104: 0 | BH104: 0 | BI104: 0 | BJ104: 0 | BK104: 0 | BL104: 0 | BM104: 186 | BN104: 352 | BO104: 0 | BP104: 0 | BQ104: 32 | BR104: 57 | BS104: 0 | BT104: 11 | BU104: 684 | BV104: 606 | BW104: 0 | BX104: 0 | BY104: 433 | BZ104: 49 | CA104: 0 | CB104: 63 | CC104: 635 | CD104: 781 | CE104: 0 | CF104: 0 | CG104: 188 | CH104: 286 | CI104: 0 | CJ104: 33 | CK104: 2692 | CL104: 38 | CM104: 16 | CN104: 0 | CO104: 0 | CP104: 0 | CQ104: 0 | CR104: 0 | CS104: 106 | CT104: 593 | CU104: 79 | CV104: 1 | CW104: 3 | CX104: 0 | CY104: 0 | CZ104: 0 | DA104: 0 | DB104: 0 | DC104: 0 | DD104: 4 | DE104: 56 | DF104: 82 | DG104: 1714 | DH104: 6108 | DI104: 77 | DJ104: 1 | DK104: 0 | DL104: 0 | DM104: 0 | DN104: 0 | DO104: 0 | DP104: 4 | DQ104: 1824 | DR104: 389 | DS104: 0 | DT104: 0 | DU104: 104 | DV104: 2 | DW104: 0 | DX104: 0 | DY104: 0 | DZ104: 834 | EA104: 2 | EB104: 12 | EC104: 1991 | ED104: 868 | EE104: 0 | EF104: 0 | EG104: 0 | EH104: 0 | EI104: 0 | EJ104: 0 | EK104: 0 | EL104: 0 | EM104: 0 | EN104: 0 | EO104: 0 | EP104: 0 | EQ104: 0 | ER104: 0 | ES104: 0 | ET104: 0 | EU104: 0 | EV104: 0 | EW104: 0 | EX104: 0 | EY104: 0 | EZ104: 0 | FA104: 0 | FB104: 2228 | FC104: 11 | FD104: 343 | FE104: 0 | FF104: 0 | FG104: 0 | FH104: 0 | FI104: 0 | FJ104: 0 | FK104: 0 | FL104: 0 | FM104: 0 | FN104: 0 | FO104: 0 | FP104: 0 | FQ104: 0 | FR104: 0 | FS104: 0 | FT104: 0 | FU104: 0 | FV104: 0 | FW104: 0 | FX104: 0 | FY104: 0 | FZ104: 0 | GA104: 0 | GB104: 0 | GC104: 0 | GD104: 0 | GE104: 0 | GF104: 0 | GG104: 0 | GH104: 0 | GI104: 0 | GJ104: 0 | GK104: 0 | GL104: 0 | GM104: 0 | GN104: 0 | GO104: 0 | GP104: 0 | GQ104: 0 | GR104: 0 | GS104: 0 | GT104: 0 | GU104: 0 | GV104: 0 | GW104: 0 | GX104: 0 | GY104: 0 | GZ104: 0 | HA104: 0 | HB104: 0 | HC104: 0 | HD104: 0 | HE104: 0 | HF104: 0 | HG104: 0 | HH104: 0 | HI104: 0 | HJ104: 0 | HK104: 0 | HL104: 0 | HM104: 0 | HN104: 0 | HO104: 0
A105: 2 | B105: 2390 | C105: 910 | D105: 1480 | E105: 779 | F105: 0 | G105: 0 | H105: 0 | I105: 0 | J105: 2445 | K105: 0 | L105: 168 | M105: 0 | N105: 168 | O105: 418 | P105: 14 | Q105: 0 | R105: 0 | S105: 0 | T105: 2 | U105: 1 | V105: 2 | W105: 3 | X105: 4 | Y105: 0 | Z105: 0 | AA105: 0 | AB105: 0 | AC105: 0 | AD105: 0 | AE105: 0 | AF105: 0 | AG105: 0 | AH105: 0 | AI105: 0 | AJ105: 43 | AK105: 13 | AL105: 0 | AM105: 17 | AN105: 34 | AO105: 0 | AP105: 187 | AQ105: 0 | AR105: 0 | AS105: 0 | AT105: 0 | AU105: 0 | AV105: 0 | AW105: 0 | AX105: 0 | AY105: 0 | AZ105: 33 | BA105: 8 | BB105: 0 | BC105: 49 | BD105: 17 | BE105: 0 | BF105: 0 | BG105: 0 | BH105: 0 | BI105: 0 | BJ105: 0 | BK105: 0 | BL105: 0 | BM105: 185 | BN105: 287 | BO105: 0 | BP105: 0 | BQ105: 28 | BR105: 42 | BS105: 0 | BT105: 4 | BU105: 708 | BV105: 415 | BW105: 0 | BX105: 0 | BY105: 456 | BZ105: 46 | CA105: 0 | CB105: 53 | CC105: 628 | CD105: 568 | CE105: 0 | CF105: 0 | CG105: 141 | CH105: 234 | CI105: 0 | CJ105: 39 | CK105: 4784 | CL105: 61 | CM105: 11 | CN105: 0 | CO105: 0 | CP105: 0 | CQ105: 0 | CR105: 0 | CS105: 66 | CT105: 1462 | CU105: 374 | CV105: 0 | CW105: 0 | CX105: 153 | CY105: 0 | CZ105: 0 | DA105: 0 | DB105: 0 | DC105: 693 | DD105: 3 | DE105: 38 | DF105: 1386 | DG105: 537 | DH105: 1925 | DI105: 18 | DJ105: 0 | DK105: 22 | DL105: 2 | DM105: 0 | DN105: 0 | DO105: 0 | DP105: 125 | DQ105: 5 | DR105: 33 | DS105: 0 | DT105: 2 | DU105: 0 | DV105: 8 | DW105: 0 | DX105: 0 | DY105: 0 | DZ105: 1710 | EA105: 0 | EB105: 0 | EC105: 0 | ED105: 0 | EE105: 1608 | EF105: 145 | EG105: 95 | EH105: 15 | EI105: 6 | EJ105: 3 | EK105: 0 | EL105: 1 | EM105: 140 | EN105: 325 | EO105: 220 | EP105: 4 | EQ105: 0 | ER105: 10 | ES105: 30 | ET105: 12 | EU105: 0 | EV105: 2 | EW105: 315 | EX105: 0 | EY105: 0 | EZ105: 0 | FA105: 285 | FB105: 1752 | FC105: 6 | FD105: 376 | FE105: 0 | FF105: 0 | FG105: 0 | FH105: 0 | FI105: 0 | FJ105: 0 | FK105: 0 | FL105: 0 | FM105: 0 | FN105: 0 | FO105: 0 | FP105: 0 | FQ105: 0 | FR105: 0 | FS105: 0 | FT105: 0 | FU105: 0 | FV105: 0 | FW105: 0 | FX105: 0 | FY105: 0 | FZ105: 0 | GA105: 0 | GB105: 0 | GC105: 0 | GD105: 0 | GE105: 0 | GF105: 0 | GG105: 0 | GH105: 0 | GI105: 0 | GJ105: 0 | GK105: 0 | GL105: 0 | GM105: 0 | GN105: 0 | GO105: 0 | GP105: 0 | GQ105: 0 | GR105: 0 | GS105: 0 | GT105: 0 | GU105: 0 | GV105: 0 | GW105: 0 | GX105: 0 | GY105: 0 | GZ105: 0 | HA105: 0 | HB105: 0 | HC105: 0 | HD105: 0 | HE105: 0 | HF105: 0 | HG105: 0 | HH105: 0 | HI105: 0 | HJ105: 0 | HK105: 0 | HL105: 0 | HM105: 0 | HN105: 0 | HO105: 0
A106: 3 | B106: 2460 | C106: 895 | D106: 1565 | E106: 849 | F106: 0 | G106: 0 | H106: 0 | I106: 0 | J106: 2177 | K106: 0 | L106: 170 | M106: 0 | N106: 170 | O106: 504 | P106: 10 | Q106: 0 | R106: 0 | S106: 0 | T106: 3 | U106: 1 | V106: 2 | W106: 2 | X106: 5 | Y106: 0 | Z106: 0 | AA106: 0 | AB106: 0 | AC106: 0 | AD106: 0 | AE106: 0 | AF106: 0 | AG106: 0 | AH106: 0 | AI106: 0 | AJ106: 36 | AK106: 31 | AL106: 49 | AM106: 26 | AN106: 0 | AO106: 0 | AP106: 216 | AQ106: 0 | AR106: 0 | AS106: 0 | AT106: 0 | AU106: 0 | AV106: 0 | AW106: 0 | AX106: 0 | AY106: 0 | AZ106: 45 | BA106: 12 | BB106: 49 | BC106: 33 | BD106: 25 | BE106: 0 | BF106: 0 | BG106: 0 | BH106: 0 | BI106: 0 | BJ106: 0 | BK106: 0 | BL106: 0 | BM106: 175 | BN106: 257 | BO106: 0 | BP106: 0 | BQ106: 38 | BR106: 43 | BS106: 0 | BT106: 7 | BU106: 859 | BV106: 573 | BW106: 0 | BX106: 0 | BY106: 463 | BZ106: 22 | CA106: 0 | CB106: 54 | CC106: 566 | CD106: 509 | CE106: 0 | CF106: 0 | CG106: 171 | CH106: 253 | CI106: 0 | CJ106: 31 | CK106: 3913 | CL106: 56 | CM106: 13 | CN106: 0 | CO106: 0 | CP106: 0 | CQ106: 0 | CR106: 0 | CS106: 59 | CT106: 1375 | CU106: 324 | CV106: 0 | CW106: 0 | CX106: 108 | CY106: 0 | CZ106: 0 | DA106: 0 | DB106: 0 | DC106: 607 | DD106: 2 | DE106: 97 | DF106: 1229 | DG106: 43 | DH106: 1976 | DI106: 29 | DJ106: 0 | DK106: 17 | DL106: 0 | DM106: 0 | DN106: 0 | DO106: 0 | DP106: 125 | DQ106: 9 | DR106: 25 | DS106: 0 | DT106: 1 | DU106: 2 | DV106: 7 | DW106: 0 | DX106: 0 | DY106: 0 | DZ106: 1761 | EA106: 0 | EB106: 0 | EC106: 0 | ED106: 0 | EE106: 1613 | EF106: 70 | EG106: 50 | EH106: 10 | EI106: 0 | EJ106: 10 | EK106: 0 | EL106: 0 | EM106: 154 | EN106: 200 | EO106: 302 | EP106: 5 | EQ106: 0 | ER106: 20 | ES106: 31 | ET106: 10 | EU106: 0 | EV106: 0 | EW106: 380 | EX106: 0 | EY106: 0 | EZ106: 0 | FA106: 371 | FB106: 0 | FC106: 0 | FD106: 0 | FE106: 1938 | FF106: 0 | FG106: 4 | FH106: 0 | FI106: 437 | FJ106: 0 | FK106: 0 | FL106: 0 | FM106: 0 | FN106: 0 | FO106: 0 | FP106: 0 | FQ106: 0 | FR106: 0 | FS106: 0 | FT106: 0 | FU106: 0 | FV106: 0 | FW106: 0 | FX106: 0 | FY106: 0 | FZ106: 0 | GA106: 0 | GB106: 0 | GC106: 0 | GD106: 0 | GE106: 0 | GF106: 0 | GG106: 0 | GH106: 0 | GI106: 0 | GJ106: 0 | GK106: 0 | GL106: 0 | GM106: 0 | GN106: 0 | GO106: 0 | GP106: 0 | GQ106: 0 | GR106: 0 | GS106: 0 | GT106: 0 | GU106: 0 | GV106: 0 | GW106: 0 | GX106: 0 | GY106: 0 | GZ106: 0 | HA106: 0 | HB106: 0 | HC106: 0 | HD106: 0 | HE106: 0 | HF106: 0 | HG106: 0 | HH106: 0 | HI106: 0 | HJ106: 0 | HK106: 0 | HL106: 0 | HM106: 0 | HN106: 0 | HO106: 0
A107: Grand Total | B107: 7541 | C107: 2911 | D107: 4630 | E107: 3190 | F107: 0 | G107: 0 | H107: 0 | I107: 0 | J107: 7263 | K107: 0 | L107: 518 | M107: 0 | N107: 518 | O107: 1368 | P107: 45 | Q107: 0 | R107: 0 | S107: 0 | T107: 10 | U107: 4 | V107: 6 | W107: 9 | X107: 20 | Y107: 0 | Z107: 0 | AA107: 0 | AB107: 0 | AC107: 0 | AD107: 0 | AE107: 0 | AF107: 0 | AG107: 0 | AH107: 0 | AI107: 0 | AJ107: 122 | AK107: 57 | AL107: 69 | AM107: 58 | AN107: 57 | AO107: 0 | AP107: 578 | AQ107: 0 | AR107: 0 | AS107: 0 | AT107: 0 | AU107: 0 | AV107: 0 | AW107: 0 | AX107: 0 | AY107: 0 | AZ107: 112 | BA107: 39 | BB107: 69 | BC107: 126 | BD107: 72 | BE107: 0 | BF107: 0 | BG107: 0 | BH107: 0 | BI107: 0 | BJ107: 0 | BK107: 0 | BL107: 0 | BM107: 546 | BN107: 896 | BO107: 0 | BP107: 0 | BQ107: 98 | BR107: 142 | BS107: 0 | BT107: 22 | BU107: 2251 | BV107: 1594 | BW107: 0 | BX107: 0 | BY107: 1352 | BZ107: 117 | CA107: 0 | CB107: 170 | CC107: 1829 | CD107: 1858 | CE107: 0 | CF107: 0 | CG107: 500 | CH107: 773 | CI107: 0 | CJ107: 103 | CK107: 11389 | CL107: 155 | CM107: 40 | CN107: 0 | CO107: 0 | CP107: 0 | CQ107: 0 | CR107: 0 | CS107: 231 | CT107: 3430 | CU107: 777 | CV107: 1 | CW107: 3 | CX107: 261 | CY107: 0 | CZ107: 0 | DA107: 0 | DB107: 0 | DC107: 1300 | DD107: 9 | DE107: 191 | DF107: 2697 | DG107: 2294 | DH107: 10009 | DI107: 124 | DJ107: 1 | DK107: 39 | DL107: 2 | DM107: 0 | DN107: 0 | DO107: 0 | DP107: 254 | DQ107: 1838 | DR107: 447 | DS107: 0 | DT107: 3 | DU107: 106 | DV107: 17 | DW107: 0 | DX107: 0 | DY107: 0 | DZ107: 4305 | EA107: 2 | EB107: 12 | EC107: 1991 | ED107: 868 | EE107: 3221 | EF107: 215 | EG107: 145 | EH107: 25 | EI107: 6 | EJ107: 13 | EK107: 0 | EL107: 1 | EM107: 294 | EN107: 525 | EO107: 522 | EP107: 9 | EQ107: 0 | ER107: 30 | ES107: 61 | ET107: 22 | EU107: 0 | EV107: 2 | EW107: 695 | EX107: 0 | EY107: 0 | EZ107: 0 | FA107: 656 | FB107: 3980 | FC107: 17 | FD107: 719 | FE107: 1938 | FF107: 0 | FG107: 4 | FH107: 0 | FI107: 437 | FJ107: 0 | FK107: 0 | FL107: 0 | FM107: 0 | FN107: 0 | FO107: 0 | FP107: 0 | FQ107: 0 | FR107: 0 | FS107: 0 | FT107: 0 | FU107: 0 | FV107: 0 | FW107: 0 | FX107: 0 | FY107: 0 | FZ107: 0 | GA107: 0 | GB107: 0 | GC107: 0 | GD107: 0 | GE107: 0 | GF107: 0 | GG107: 0 | GH107: 0 | GI107: 0 | GJ107: 0 | GK107: 0 | GL107: 0 | GM107: 0 | GN107: 0 | GO107: 0 | GP107: 0 | GQ107: 0 | GR107: 0 | GS107: 0 | GT107: 0 | GU107: 0 | GV107: 0 | GW107: 0 | GX107: 0 | GY107: 0 | GZ107: 0 | HA107: 0 | HB107: 0 | HC107: 0 | HD107: 0 | HE107: 0 | HF107: 0 | HG107: 0 | HH107: 0 | HI107: 0 | HJ107: 0 | HK107: 0 | HL107: 0 | HM107: 0 | HN107: 0 | HO107: 0
F117: ATENCIONES POR SERVICIO
C118: =CHOOSE(A52,"ENERO","FEBRERO","MARZO","ABRIL","MAYO","JUNIO","JULIO","AGOSTO","SETIEMBRE","OCTUBRE","NOVIEMBRE","DICIEMBRE") -> ENERO | D118: =CHOOSE(A53,"ENERO","FEBRERO","MARZO","ABRIL","MAYO","JUNIO","JULIO","AGOSTO","SETIEMBRE","OCTUBRE","NOVIEMBRE","DICIEMBRE") -> FEBRERO | E118: =CHOOSE(A54,"ENERO","FEBRERO","MARZO","ABRIL","MAYO","JUNIO","JULIO","AGOSTO","SETIEMBRE","OCTUBRE","NOVIEMBRE","DICIEMBRE") -> MARZO | F118: =CHOOSE(A55,"ENERO","FEBRERO","MARZO","ABRIL","MAYO","JUNIO","JULIO","AGOSTO","SETIEMBRE","OCTUBRE","NOVIEMBRE","DICIEMBRE") ->  | G118: =CHOOSE(A56,"ENERO","FEBRERO","MARZO","ABRIL","MAYO","JUNIO","JULIO","AGOSTO","SETIEMBRE","OCTUBRE","NOVIEMBRE","DICIEMBRE") ->  | H118: =CHOOSE(A57,"ENERO","FEBRERO","MARZO","ABRIL","MAYO","JUNIO","JULIO","AGOSTO","SETIEMBRE","OCTUBRE","NOVIEMBRE","DICIEMBRE") ->  | I118: =CHOOSE(A58,"ENERO","FEBRERO","MARZO","ABRIL","MAYO","JUNIO","JULIO","AGOSTO","SETIEMBRE","OCTUBRE","NOVIEMBRE","DICIEMBRE") ->  | J118: =CHOOSE(A59,"ENERO","FEBRERO","MARZO","ABRIL","MAYO","JUNIO","JULIO","AGOSTO","SETIEMBRE","OCTUBRE","NOVIEMBRE","DICIEMBRE") ->  | K118: =CHOOSE(A60,"ENERO","FEBRERO","MARZO","ABRIL","MAYO","JUNIO","JULIO","AGOSTO","SETIEMBRE","OCTUBRE","NOVIEMBRE","DICIEMBRE") ->  | L118: =CHOOSE(A61,"ENERO","FEBRERO","MARZO","ABRIL","MAYO","JUNIO","JULIO","AGOSTO","SETIEMBRE","OCTUBRE","NOVIEMBRE","DICIEMBRE") ->  | M118: =CHOOSE(K52,"ENERO","FEBRERO","MARZO","ABRIL","MAYO","JUNIO","JULIO","AGOSTO","SETIEMBRE","OCTUBRE","NOVIEMBRE","DICIEMBRE") ->  | N118: =CHOOSE(K53,"ENERO","FEBRERO","MARZO","ABRIL","MAYO","JUNIO","JULIO","AGOSTO","SETIEMBRE","OCTUBRE","NOVIEMBRE","DICIEMBRE") ->  | O118: =CHOOSE(M52,"ENERO","FEBRERO","MARZO","ABRIL","MAYO","JUNIO","JULIO","AGOSTO","SETIEMBRE","OCTUBRE","NOVIEMBRE","DICIEMBRE") -> 
B119: MEDICINA | C119: =GETPIVOTDATA(" s18",$A$50,"mes",1) -> 646 | D119: =GETPIVOTDATA(" s18",$A$50,"mes",2) -> 751 | E119: =GETPIVOTDATA(" s18",$A$50,"mes",3) -> 597 | F119: =GETPIVOTDATA(" s18",$A$50,"mes",4) ->  | G119: =GETPIVOTDATA(" s18",$A$50,"mes",5) ->  | H119: =GETPIVOTDATA(" s18",$A$50,"mes",6) ->  | I119: =GETPIVOTDATA(" s18",$A$50,"mes",7) ->  | J119: =GETPIVOTDATA(" s18",$A$50,"mes",8) ->  | K119: =GETPIVOTDATA(" s18",$A$50,"mes",9) ->  | L119: =GETPIVOTDATA(" s18",$A$50,"mes",10) ->  | M119: =GETPIVOTDATA(" s18",$A$50,"mes",11) ->  | N119: =GETPIVOTDATA(" s18",$A$50,"mes",12) ->  | O119: =SUM(C119:N119) -> 
B120: ODONTOLOGIA | C120: =GETPIVOTDATA(" s104",$A$50,"mes",1) -> 569 | D120: =GETPIVOTDATA(" s104",$A$50,"mes",2) -> 499 | E120: =GETPIVOTDATA(" s104",$A$50,"mes",3) -> 522 | F120: =GETPIVOTDATA(" s104",$A$50,"mes",4) ->  | G120: =GETPIVOTDATA(" s104",$A$50,"mes",5) ->  | H120: =GETPIVOTDATA(" s104",$A$50,"mes",6) ->  | I120: =GETPIVOTDATA(" s104",$A$50,"mes",7) ->  | J120: =GETPIVOTDATA(" s104",$A$50,"mes",8) ->  | K120: =GETPIVOTDATA(" s104",$A$50,"mes",9) ->  | L120: =GETPIVOTDATA(" s104",$A$50,"mes",10) ->  | M120: =GETPIVOTDATA(" s104",$A$50,"mes",11) ->  | N120: =GETPIVOTDATA(" s104",$A$50,"mes",12) ->  | O120: =SUM(C120:N120) -> 
B121: OBSTETRICIA | C121: =GETPIVOTDATA(" s67",$A$50,"mes",1) -> 1802 | D121: =GETPIVOTDATA(" s67",$A$50,"mes",2) -> 2395 | E121: =GETPIVOTDATA(" s67",$A$50,"mes",3) -> 2668 | F121: =GETPIVOTDATA(" s67",$A$50,"mes",4) ->  | G121: =GETPIVOTDATA(" s67",$A$50,"mes",5) ->  | H121: =GETPIVOTDATA(" s67",$A$50,"mes",6) ->  | I121: =GETPIVOTDATA(" s67",$A$50,"mes",7) ->  | J121: =GETPIVOTDATA(" s67",$A$50,"mes",8) ->  | K121: =GETPIVOTDATA(" s67",$A$50,"mes",9) ->  | L121: =GETPIVOTDATA(" s67",$A$50,"mes",10) ->  | M121: =GETPIVOTDATA(" s67",$A$50,"mes",11) ->  | N121: =GETPIVOTDATA(" s67",$A$50,"mes",12) ->  | O121: =SUM(C121:N121) -> 
B122: PEDIATRIA | C122: =GETPIVOTDATA(" s61",$A$50,"mes",1) -> 723 | D122: =GETPIVOTDATA(" s61",$A$50,"mes",2) -> 507 | E122: =GETPIVOTDATA(" s61",$A$50,"mes",3) -> 538 | F122: =GETPIVOTDATA(" s61",$A$50,"mes",4) ->  | G122: =GETPIVOTDATA(" s61",$A$50,"mes",5) ->  | H122: =GETPIVOTDATA(" s61",$A$50,"mes",6) ->  | I122: =GETPIVOTDATA(" s61",$A$50,"mes",7) ->  | J122: =GETPIVOTDATA(" s61",$A$50,"mes",8) ->  | K122: =GETPIVOTDATA(" s61",$A$50,"mes",9) ->  | L122: =GETPIVOTDATA(" s61",$A$50,"mes",10) ->  | M122: =GETPIVOTDATA(" s61",$A$50,"mes",11) ->  | N122: =GETPIVOTDATA(" s61",$A$50,"mes",12) -> 
B123: GINECOLOGIA | C123: =GETPIVOTDATA(" s68",$A$50,"mes",1) -> 423 | D123: =GETPIVOTDATA(" s68",$A$50,"mes",2) -> 436 | E123: =GETPIVOTDATA(" s68",$A$50,"mes",3) -> 431 | F123: =GETPIVOTDATA(" s68",$A$50,"mes",4) ->  | G123: =GETPIVOTDATA(" s68",$A$50,"mes",5) ->  | H123: =GETPIVOTDATA(" s68",$A$50,"mes",6) ->  | I123: =GETPIVOTDATA(" s68",$A$50,"mes",7) ->  | J123: =GETPIVOTDATA(" s68",$A$50,"mes",8) ->  | K123: =GETPIVOTDATA(" s68",$A$50,"mes",9) ->  | L123: =GETPIVOTDATA(" s68",$A$50,"mes",10) ->  | M123: =GETPIVOTDATA(" s68",$A$50,"mes",11) ->  | N123: =GETPIVOTDATA(" s68",$A$50,"mes",12) -> 
B124: PLAN. FAMILIAR | C124: =GETPIVOTDATA(" s69",$A$50,"mes",1) -> 470 | D124: =GETPIVOTDATA(" s69",$A$50,"mes",2) -> 227 | E124: =GETPIVOTDATA(" s69",$A$50,"mes",3) -> 242 | F124: =GETPIVOTDATA(" s69",$A$50,"mes",4) ->  | G124: =GETPIVOTDATA(" s69",$A$50,"mes",5) ->  | H124: =GETPIVOTDATA(" s69",$A$50,"mes",6) ->  | I124: =GETPIVOTDATA(" s69",$A$50,"mes",7) ->  | J124: =GETPIVOTDATA(" s69",$A$50,"mes",8) ->  | K124: =GETPIVOTDATA(" s69",$A$50,"mes",9) ->  | L124: =GETPIVOTDATA(" s69",$A$50,"mes",10) ->  | M124: =GETPIVOTDATA(" s69",$A$50,"mes",11) ->  | N124: =GETPIVOTDATA(" s69",$A$50,"mes",12) -> 
B125: PSICOLOGIA | C125: =GETPIVOTDATA(" s103",$A$50,"mes",1) -> 960 | D125: =GETPIVOTDATA(" s103",$A$50,"mes",2) -> 2087 | E125: =GETPIVOTDATA(" s103",$A$50,"mes",3) -> 667 | F125: =GETPIVOTDATA(" s103",$A$50,"mes",4) ->  | G125: =GETPIVOTDATA(" s103",$A$50,"mes",5) ->  | H125: =GETPIVOTDATA(" s103",$A$50,"mes",6) ->  | I125: =GETPIVOTDATA(" s103",$A$50,"mes",7) ->  | J125: =GETPIVOTDATA(" s103",$A$50,"mes",8) ->  | K125: =GETPIVOTDATA(" s103",$A$50,"mes",9) ->  | L125: =GETPIVOTDATA(" s103",$A$50,"mes",10) ->  | M125: =GETPIVOTDATA(" s103",$A$50,"mes",11) ->  | N125: =GETPIVOTDATA(" s103",$A$50,"mes",12) -> 
B126: CIRUGIA | C126: =GETPIVOTDATA(" s47",$A$50,"mes",1) -> 235 | D126: =GETPIVOTDATA(" s47",$A$50,"mes",2) -> 223 | E126: =GETPIVOTDATA(" s47",$A$50,"mes",3) -> 211 | F126: =GETPIVOTDATA(" s47",$A$50,"mes",4) ->  | G126: =GETPIVOTDATA(" s47",$A$50,"mes",5) ->  | H126: =GETPIVOTDATA(" s47",$A$50,"mes",6) ->  | I126: =GETPIVOTDATA(" s47",$A$50,"mes",7) ->  | J126: =GETPIVOTDATA(" s47",$A$50,"mes",8) ->  | K126: =GETPIVOTDATA(" s47",$A$50,"mes",9) ->  | L126: =GETPIVOTDATA(" s47",$A$50,"mes",10) ->  | M126: =GETPIVOTDATA(" s47",$A$50,"mes",11) ->  | N126: =GETPIVOTDATA(" s47",$A$50,"mes",12) -> 
B127: MEDICINA INTER | C127: =GETPIVOTDATA(" s19",$A$50,"mes",1) -> 0 | D127: =GETPIVOTDATA(" s19",$A$50,"mes",2) -> 0 | E127: =GETPIVOTDATA(" s19",$A$50,"mes",3) -> 0 | F127: =GETPIVOTDATA(" s19",$A$50,"mes",4) ->  | G127: =GETPIVOTDATA(" s19",$A$50,"mes",5) ->  | H127: =GETPIVOTDATA(" s19",$A$50,"mes",6) ->  | I127: =GETPIVOTDATA(" s19",$A$50,"mes",7) ->  | J127: =GETPIVOTDATA(" s19",$A$50,"mes",8) ->  | K127: =GETPIVOTDATA(" s19",$A$50,"mes",9) ->  | L127: =GETPIVOTDATA(" s19",$A$50,"mes",10) ->  | M127: =GETPIVOTDATA(" s19",$A$50,"mes",11) ->  | N127: =GETPIVOTDATA(" s19",$A$50,"mes",12) -> 
C128: =SUM(C119:C127) -> 5828 | D128: =SUM(D119:D127) -> 7125 | E128: =SUM(E119:E127) -> 5876 | F128: =SUM(F119:F127) ->  | G128: =SUM(G119:G127) -> 

Sheet SES1
A1: DIRECCION REGIONAL DE SALUD CUSCO
A2: DIRECCION DE ESTADISTICA E INFORMATICA
A3: INFORMACION MENSUAL DE SES39
A6: RED DE SALUD | D6: MICRO RED | I6: PROVINCIA
A7: =MID(INICIO!E31,1,50) -> (Todas) | D7: =MID(INICIO!E32,1,50) -> (Todas) | I7: =MID(INICIO!E34,1,50) -> (Todas)
A9: ESTABLECIMIENTO | D9: DISTRITO | I9: AÑO | K9: =INICIO!B43 -> 2025 | N9: INI | P9: FIN
A10: =MID(INICIO!E33,1,50) -> (Todas) | D10: =MID(INICIO!E35,1,50) -> (Todas) | I10: =MID(INICIO!C27,1,50) ->  | M10: MES | N10: 1 | O10: A | P10: 3
B12: Datos
B13: mmg_1 | C13: mmi_1 | D13: mneum_1 | E13: mcardio_1 | F13: mneuro_1 | G13: mgastro_1 | H13: mderma_1 | I13: minfec_1 | J13: mnefro_1 | K13: mendoc_1 | L13: mpsicol_1 | M13: mhemat_1 | N13: motros_1 | O13: mmg_2 | P13: mmi_2 | Q13: mneum_2 | R13: mcardio_2 | S13: mneuro_2 | T13: mgastro_2 | U13: mderma_2 | V13: minfec_2 | W13: mnefro_2 | X13: mendoc_2 | Y13: mpsicol_2 | Z13: mhemat_2 | AA13: motros_2 | AB13: ccg_1 | AC13: ctrauma_1 | AD13: coftalm_1 | AE13: ccvascular | AF13: ccpedia_1 | AG13: ccirugplas | AH13: crehab_1 | AI13: concolo_1 | AJ13: cotros_1 | AK13: ppediat_1 | AL13: pneonat_1 | AM13: oobst_1 | AN13: oginec_1 | AO13: oplanifam_ | AP13: ccg_2 | AQ13: ctrauma_2 | AR13: cotorrino2 | AS13: coftalm_2 | AT13: curologia2 | AU13: ccvascula2 | AV13: ccpedia_2 | AW13: cneurocir2 | AX13: ccirugpla2 | AY13: crehab_2 | AZ13: concolo_2 | BA13: cotros_2 | BB13: ppediat_2 | BC13: pneonat_2 | BD13: oobst_2 | BE13: oginec_2 | BF13: oplanifam2 | BG13: gem1a_1 | BH13: ge1_4a_1 | BI13: ge5_9a_1 | BJ13: ge10_14a_1 | BK13: ge15_19a_1 | BL13: ge20_59a_1 | BM13: ge60amas_1 | BN13: gem1a_2 | BO13: ge1_4a_2 | BP13: ge5_9a_2 | BQ13: ge10_14a_2 | BR13: ge15_19a_2 | BS13: ge20_59a_2 | BT13: ge60amas_2 | BU13: pacatd_me2 | BV13: e_0_9a | BW13: e_10_19 | BX13: e_20_59 | BY13: e_60amas | BZ13: ce_me_1 | CA13: ce_obt_1 | CB13: ce_psc_1 | CC13: ce_odon_1 | CD13: ce_enf_1 | CE13: ce_tenf_1 | CF13: ce_me_2 | CG13: ce_obt_2 | CH13: ce_psc_2 | CI13: ce_odon_2 | CJ13: ce_enf_2 | CK13: ce_tenf_2 | CL13: ppm1a_1 | CM13: pp1_4a_1 | CN13: pp5_9_1 | CO13: pp10_14_1 | CP13: pp15_19_1 | CQ13: pp20_59_1 | CR13: pp60mas_1 | CS13: ppm1a_2 | CT13: pp1_4a_2 | CU13: pp5_9_2 | CV13: pp10_14_2 | CW13: pp15_19_2 | CX13: pp20_59_2 | CY13: pp60mas_2 | CZ13: ssce_p | DA13: sshosp_p | DB13: sssp_p | DC13: ssce_t | DD13: sshosp_t | DE13: sssp_t | DF13: mhosmg_1 | DG13: mhosneum_1 | DH13: mhoscard_1 | DI13: mhosneur_1 | DJ13: mhosgast_1 | DK13: mhosderm_1 | DL13: mhosotrc_1 | DM13: ccgen_1 | DN13: ctraum_1 | DO13: cotorrin_1 | DP13: coftal_1 | DQ13: curolog_1 | DR13: ciotros_1 | DS13: mhosmg_2 | DT13: mhosneum_2 | DU13: mhoscard_2 | DV13: mhosneur_2 | DW13: mhosgast_2 | DX13: mhosderm_2 | DY13: mhosnefro_2 | DZ13: mhossiqui_2 | EA13: mhosotrc_2 | EB13: ccgen_2 | EC13: ctraum_2 | ED13: cotorrin_2 | EE13: coftal_2 | EF13: curolog_2 | EG13: ciotros_2 | EH13: mhosmg_3 | EI13: mhosneum_3 | EJ13: mhoscard_3 | EK13: mhosneur_3 | EL13: mhosgast_3 | EM13: mhosderm_3 | EN13: mhosnefro_3 | EO13: mhossiqui_3 | EP13: mhosotrc_3 | EQ13: ccgen_3 | ER13: ctraum_3 | ES13: cotorrin_3 | ET13: coftal_3 | EU13: curolog_3 | EV13: ciotros_3 | EW13: mhosmg_4 | EX13: mhosneum_4 | EY13: mhoscard_4 | EZ13: mhosneur_4 | FA13: mhosgast_4 | FB13: mhosderm_4 | FC13: mhosnefro_4 | FD13: mhossiqui_4 | FE13: mhosotrc_4 | FF13: ccgen_4 | FG13: ctraum_4 | FH13: cotorrin_4 | FI13: coftal_4 | FJ13: curolog_4 | FK13: ciotros_4 | FL13: mhosmg_5 | FM13: mhosneum_5 | FN13: mhoscard_5 | FO13: mhosneur_5 | FP13: mhosgast_5 | FQ13: mhosderm_5 | FR13: mhosnefro_5 | FS13: mhossiqui_5 | FT13: mhosotrc_5 | FU13: ccgen_5 | FV13: ctraum_5 | FW13: cotorrin_5 | FX13: coftal_5 | FY13: curolog_5 | FZ13: ciotros_5 | GA13: mhosmg_6 | GB13: mhosneum_6 | GC13: mhoscard_6 | GD13: mhosneur_6 | GE13: mhosgast_6 | GF13: mhosderm_6 | GG13: mhosnefro_6 | GH13: mhossiqui_6 | GI13: mhosotrc_6 | GJ13: ccgen_6 | GK13: ctraum_6 | GL13: cotorrin_6 | GM13: coftal_6 | GN13: curolog_6 | GO13: ciotros_6 | GP13: mhosmg_7 | GQ13: mhosneum_7 | GR13: mhoscard_7 | GS13: mhosneur_7 | GT13: mhosgast_7 | GU13: mhosderm_7 | GV13: mhosnefro_7 | GW13: mhossiqui_7 | GX13: mhosotrc_7 | GY13: ccgen_7 | GZ13: ctraum_7 | HA13: cotorrin_7 | HB13: coftal_7 | HC13: curolog_7 | HD13: ciotros_7 | HE13: mhosmg_8 | HF13: mhosneum_8 | HG13: mhoscard_8 | HH13: mhosneur_8 | HI13: mhosgast_8 | HJ13: mhosderm_8 | HK13: mhosnefro_8 | HL13: mhossiqui_8 | HM13: mhosotrc_8 | HN13: ccgen_8 | HO13: ctraum_8 | HP13: cotorrin_8 | HQ13: coftal_8 | HR13: curolog_8 | HS13: ciotros_8 | HT13: mhosmg_9 | HU13: mhosneum_9 | HV13: mhoscard_9 | HW13: mhosneur_9 | HX13: mhosgast_9 | HY13: mhosderm_9 | HZ13: mhosnefro_9 | IA13: mhossiqui_9 | IB13: mhosotrc_9 | IC13: ccgen_9 | ID13: ctraum_9 | IE13: cotorrin_9 | IF13: coftal_9 | IG13: curolog_9 | IH13: ciotros_9 | II13: Suma de cotorrino_1 | IJ13: Suma de curologia_1 | IK13: Suma de cneurocir_1 | IL13: Suma de mhosnefro_1 | IM13: Suma de mhossiqui_1
A14: Total | B14: 212556 | C14: 1978 | D14: 367 | E14: 1538 | F14: 1310 | G14: 813 | H14: 1520 | I14: 114 | J14: 231 | K14: 757 | L14: 19586 | M14: 396 | N14: 693 | O14: 582938 | P14: 3257 | Q14: 1070 | R14: 2446 | S14: 1990 | T14: 1132 | U14: 1809 | V14: 223 | W14: 467 | X14: 1201 | Y14: 28030 | Z14: 562 | AA14: 1423 | AB14: 2089 | AC14: 1563 | AD14: 949 | AE14: 134 | AF14: 116 | AG14: 238 | AH14: 627 | AI14: 149 | AJ14: 93 | AK14: 57457 | AL14: 525 | AM14: 37054 | AN14: 10035 | AO14: 48511 | AP14: 4925 | AQ14: 3721 | AR14: 2408 | AS14: 2491 | AT14: 1521 | AU14: 230 | AV14: 331 | AW14: 168 | AX14: 356 | AY14: 764 | AZ14: 353 | BA14: 240 | BB14: 179952 | BC14: 875 | BD14: 158887 | BE14: 29016 | BF14: 142235 | BG14: 20891 | BH14: 39554 | BI14: 34825 | BJ14: 33656 | BK14: 40527 | BL14: 205597 | BM14: 28711 | BN14: 71020 | BO14: 140893 | BP14: 99233 | BQ14: 81747 | BR14: 102844 | BS14: 589925 | BT14: 69560 | BU14: 6954 | BV14: 11364 | BW14: 7066 | BX14: 20992 | BY14: 4836 | BZ14: 257083 | CA14: 125290 | CB14: 21174 | CC14: 96432 | CD14: 146472 | CE14: 65050 | CF14: 680185 | CG14: 443631 | CH14: 30879 | CI14: 206988 | CJ14: 439104 | CK14: 216625 | CL14: 75257 | CM14: 118182 | CN14: 103699 | CO14: 90303 | CP14: 78680 | CQ14: 303627 | CR14: 42598 | CS14: 259515 | CT14: 413212 | CU14: 274672 | CV14: 220093 | CW14: 194687 | CX14: 858385 | CY14: 107313 | CZ14: 1327 | DA14: 1132 | DB14: 196 | DC14: 2444 | DD14: 2119 | DE14: 414 | DF14: 2057 | DG14: 0 | DH14: 0 | DI14: 0 | DJ14: 0 | DK14: 0 | DL14: 24 | DM14: 1039 | DN14: 387 | DO14: 2 | DP14: 0 | DQ14: 0 | DR14: 1 | DS14: 578 | DT14: 0 | DU14: 0 | DV14: 0 | DW14: 0 | DX14: 0 | DY14: 0 | DZ14: 0 | EA14: 6 | EB14: 577 | EC14: 182 | ED14: 0 | EE14: 0 | EF14: 0 | EG14: 0 | EH14: 5302 | EI14: 11 | EJ14: 0 | EK14: 0 | EL14: 0 | EM14: 0 | EN14: 0 | EO14: 0 | EP14: 32 | EQ14: 2428 | ER14: 627 | ES14: 7 | ET14: 0 | EU14: 0 | EV14: 0 | EW14: 101 | EX14: 0 | EY14: 0 | EZ14: 0 | FA14: 0 | FB14: 0 | FC14: 0 | FD14: 0 | FE14: 1 | FF14: 99 | FG14: 6 | FH14: 0 | FI14: 0 | FJ14: 0 | FK14: 0 | FL14: 82 | FM14: 0 | FN14: 0 | FO14: 0 | FP14: 0 | FQ14: 0 | FR14: 0 | FS14: 0 | FT14: 1 | FU14: 94 | FV14: 5 | FW14: 0 | FX14: 0 | FY14: 0 | FZ14: 0 | GA14: 5226 | GB14: 11 | GC14: 0 | GD14: 0 | GE14: 0 | GF14: 0 | GG14: 0 | GH14: 0 | GI14: 28 | GJ14: 2388 | GK14: 576 | GL14: 7 | GM14: 0 | GN14: 0 | GO14: 0 | GP14: 26076 | GQ14: 32 | GR14: 0 | GS14: 0 | GT14: 0 | GU14: 0 | GV14: 0 | GW14: 0 | GX14: 84 | GY14: 19821 | GZ14: 5984 | HA14: 13 | HB14: 0 | HC14: 0 | HD14: 0 | HE14: 26374 | HF14: 32 | HG14: 0 | HH14: 0 | HI14: 0 | HJ14: 0 | HK14: 0 | HL14: 0 | HM14: 273 | HN14: 20612 | HO14: 6410 | HP14: 13 | HQ14: 0 | HR14: 0 | HS14: 0 | HT14: 80012 | HU14: 174 | HV14: 0 | HW14: 0 | HX14: 0 | HY14: 0 | HZ14: 0 | IA14: 0 | IB14: 630 | IC14: 37167 | ID14: 11892 | IE14: 62 | IF14: 0 | IG14: 0 | IH14: 31 | II14: 952 | IJ14: 283 | IK14: 54 | IL14: 0 | IM14: 0
A16: I. Consultorio | C16: Consulta Externa | F16: II Grupos Etareos | N16: Atendidos | S16: Atenciones
C17: Atendidos | D17: Atenciones | F17: 00. Total | N17: =IF($N$10=$P$10,GETPIVOTDATA(" s141",INICIO!$A$50,"mes",$N$10),SUM(GETPIVOTDATA(" s141",INICIO!$A$50))) -> 7122 | S17: =IF($N$10=$P$10,GETPIVOTDATA(" s143",INICIO!$A$50,"mes",$N$10),SUM(GETPIVOTDATA(" s143",INICIO!$A$50))) -> 18559 | Z17: =N17-C18 -> 0
A18: Total | C18: =IF($N$10=$P$10,GETPIVOTDATA(" s131",INICIO!$A$50,"mes",$N$10),SUM(GETPIVOTDATA(" s131",INICIO!$A$50))) -> 7122 | D18: =IF($N$10=$P$10,GETPIVOTDATA(" s133",INICIO!$A$50,"mes",$N$10),SUM(GETPIVOTDATA(" s133",INICIO!$A$50))) -> 18559 | F18: 10:00:00 | G18: Grupo Niño (0 -11 Años) | N18: =IF($N$10=$P$10,GETPIVOTDATA(" s142",INICIO!$A$50,"mes",$N$10),SUM(GETPIVOTDATA(" s142",INICIO!$A$50))) -> 826 | S18: =IF($N$10=$P$10,GETPIVOTDATA(" s144",INICIO!$A$50,"mes",$N$10),SUM(GETPIVOTDATA(" s144",INICIO!$A$50))) -> 2702
A19: 10 | B19: Medicina | C19: =IF($N$10=$P$10,GETPIVOTDATA(" s132",INICIO!$A$50,"mes",$N$10),SUM(GETPIVOTDATA(" s132",INICIO!$A$50))) -> 2325 | D19: =IF($N$10=$P$10,GETPIVOTDATA(" s134",INICIO!$A$50,"mes",$N$10),SUM(GETPIVOTDATA(" s134",INICIO!$A$50))) -> 6097 | F19: 1 | G19: Menor de 1 año | N19: =IF($N$10=$P$10,GETPIVOTDATA(" s71",INICIO!$A$50,"mes",$N$10),SUM(GETPIVOTDATA(" s71",INICIO!$A$50))) -> 117 | S19: =IF($N$10=$P$10,GETPIVOTDATA(" s75",INICIO!$A$50,"mes",$N$10),SUM(GETPIVOTDATA(" s75",INICIO!$A$50))) -> 731
A20: 1 | B20: Medicina General | C20: =IF($N$10=$P$10,GETPIVOTDATA(" s01",INICIO!$A$50,"mes",$N$10),SUM(GETPIVOTDATA(" s01",INICIO!$A$50))) -> 907 | D20: =IF($N$10=$P$10,GETPIVOTDATA(" s18",INICIO!$A$50,"mes",$N$10),SUM(GETPIVOTDATA(" s18",INICIO!$A$50))) -> 1994 | F20: 2 | G20: 1 - 4 Años | N20: =IF($N$10=$P$10,GETPIVOTDATA(" s72",INICIO!$A$50,"mes",$N$10),SUM(GETPIVOTDATA(" s72",INICIO!$A$50))) -> 295 | S20: =IF($N$10=$P$10,GETPIVOTDATA(" s76",INICIO!$A$50,"mes",$N$10),SUM(GETPIVOTDATA(" s76",INICIO!$A$50))) -> 1122
A21: 2 | B21: Medicina Interna | C21: =IF($N$9=$P$9,GETPIVOTDATA(" s02",INICIO!$A$50,"mes",$N$9),SUM(GETPIVOTDATA(" s02",INICIO!$A$50))) -> 0 | D21: =IF($N$9=$P$9,GETPIVOTDATA(" s19",INICIO!$A$50,"mes",$N$9),SUM(GETPIVOTDATA(" s19",INICIO!$A$50))) -> 0 | F21: 3 | G21: 5 - 9 Años | N21: =IF($N$10=$P$10,GETPIVOTDATA(" s73",INICIO!$A$50,"mes",$N$10),SUM(GETPIVOTDATA(" s73",INICIO!$A$50))) -> 276 | S21: =IF($N$10=$P$10,GETPIVOTDATA(" s77",INICIO!$A$50,"mes",$N$10),SUM(GETPIVOTDATA(" s77",INICIO!$A$50))) -> 535
A22: 3 | B22: Neumologia | C22: =IF($N$9=$P$9,GETPIVOTDATA(" s03",INICIO!$A$50,"mes",$N$9),SUM(GETPIVOTDATA(" s03",INICIO!$A$50))) -> 51 | D22: =IF($N$9=$P$9,GETPIVOTDATA(" s20",INICIO!$A$50,"mes",$N$9),SUM(GETPIVOTDATA(" s20",INICIO!$A$50))) -> 389 | F22: 4 | G22: 10-11Años | N22: =IF($N$10=$P$10,GETPIVOTDATA(" s74",INICIO!$A$50,"mes",$N$10),SUM(GETPIVOTDATA(" s74",INICIO!$A$50))) -> 138 | S22: =IF($N$10=$P$10,GETPIVOTDATA(" s78",INICIO!$A$50,"mes",$N$10),SUM(GETPIVOTDATA(" s78",INICIO!$A$50))) -> 314
A23: 4 | B23: Cardiologia | C23: =IF($N$9=$P$9,GETPIVOTDATA(" s04",INICIO!$A$50,"mes",$N$9),SUM(GETPIVOTDATA(" s04",INICIO!$A$50))) -> 0 | D23: =IF($N$9=$P$9,GETPIVOTDATA(" s21",INICIO!$A$50,"mes",$N$9),SUM(GETPIVOTDATA(" s21",INICIO!$A$50))) -> 0 | F23: 11 | G23: Adolescente (12-17 Años) | N23: =IF($N$10=$P$10,GETPIVOTDATA(" s145",INICIO!$A$50,"mes",$N$10),SUM(GETPIVOTDATA(" s145",INICIO!$A$50))) -> 365 | S23: =IF($N$10=$P$10,GETPIVOTDATA(" s146",INICIO!$A$50,"mes",$N$10),SUM(GETPIVOTDATA(" s146",INICIO!$A$50))) -> 1034
A24: 5 | B24: Neurología | C24: =IF($N$9=$P$9,GETPIVOTDATA(" s05",INICIO!$A$50,"mes",$N$9),SUM(GETPIVOTDATA(" s05",INICIO!$A$50))) -> 0 | D24: =IF($N$9=$P$9,GETPIVOTDATA(" s22",INICIO!$A$50,"mes",$N$9),SUM(GETPIVOTDATA(" s22",INICIO!$A$50))) -> 0 | F24: 1 | G24: 12-14 Años | N24: =IF($N$10=$P$10,GETPIVOTDATA(" s79",INICIO!$A$50,"mes",$N$10),SUM(GETPIVOTDATA(" s79",INICIO!$A$50))) -> 203 | S24: =IF($N$10=$P$10,GETPIVOTDATA(" s84",INICIO!$A$50,"mes",$N$10),SUM(GETPIVOTDATA(" s84",INICIO!$A$50))) -> 490
A25: 6 | B25: Gastroenterología | C25: =IF($N$9=$P$9,GETPIVOTDATA(" s06",INICIO!$A$50,"mes",$N$9),SUM(GETPIVOTDATA(" s06",INICIO!$A$50))) -> 0 | D25: =IF($N$9=$P$9,GETPIVOTDATA(" s23",INICIO!$A$50,"mes",$N$9),SUM(GETPIVOTDATA(" s23",INICIO!$A$50))) -> 0 | F25: 2 | G25: 15 -17Años | N25: =IF($N$10=$P$10,GETPIVOTDATA(" s80",INICIO!$A$50,"mes",$N$10),SUM(GETPIVOTDATA(" s80",INICIO!$A$50))) -> 162 | S25: =IF($N$10=$P$10,GETPIVOTDATA(" s85",INICIO!$A$50,"mes",$N$10),SUM(GETPIVOTDATA(" s85",INICIO!$A$50))) -> 544
A26: 7 | B26: Dermatología | C26: =IF($N$9=$P$9,GETPIVOTDATA(" s07",INICIO!$A$50,"mes",$N$9),SUM(GETPIVOTDATA(" s07",INICIO!$A$50))) -> 0 | D26: =IF($N$9=$P$9,GETPIVOTDATA(" s24",INICIO!$A$50,"mes",$N$9),SUM(GETPIVOTDATA(" s24",INICIO!$A$50))) -> 0 | F26: 12 | G26: Joven (18-29 Años) | N26: =IF($N$10=$P$10,GETPIVOTDATA(" s81",INICIO!$A$50,"mes",$N$10),SUM(GETPIVOTDATA(" s81",INICIO!$A$50))) -> 1892 | S26: =IF($N$10=$P$10,GETPIVOTDATA(" s86",INICIO!$A$50,"mes",$N$10),SUM(GETPIVOTDATA(" s86",INICIO!$A$50))) -> 5131
A27: 8 | B27: Infectología | C27: =IF($N$9=$P$9,GETPIVOTDATA(" s08",INICIO!$A$50,"mes",$N$9),SUM(GETPIVOTDATA(" s08",INICIO!$A$50))) -> 0 | D27: =IF($N$9=$P$9,GETPIVOTDATA(" s25",INICIO!$A$50,"mes",$N$9),SUM(GETPIVOTDATA(" s25",INICIO!$A$50))) -> 0 | F27: 13 | G27: Grupo Adulto (30-59 Años) | N27: =IF($N$10=$P$10,GETPIVOTDATA(" s82",INICIO!$A$50,"mes",$N$10),SUM(GETPIVOTDATA(" s82",INICIO!$A$50))) -> 3404 | S27: =IF($N$10=$P$10,GETPIVOTDATA(" s87",INICIO!$A$50,"mes",$N$10),SUM(GETPIVOTDATA(" s87",INICIO!$A$50))) -> 8045 | AC27: =7529+1462 -> 8991
A28: 9 | B28: Nefrología | C28: =IF($N$9=$P$9,GETPIVOTDATA(" s09",INICIO!$A$50,"mes",$N$9),SUM(GETPIVOTDATA(" s09",INICIO!$A$50))) -> 0 | D28: =IF($N$9=$P$9,GETPIVOTDATA(" s26",INICIO!$A$50,"mes",$N$9),SUM(GETPIVOTDATA(" s26",INICIO!$A$50))) -> 0 | F28: 14 | G28: Grupo Adulto Mayor (60 A+ Años) | N28: =IF($N$10=$P$10,GETPIVOTDATA(" s83",INICIO!$A$50,"mes",$N$10),SUM(GETPIVOTDATA(" s83",INICIO!$A$50))) -> 635 | S28: =IF($N$10=$P$10,GETPIVOTDATA(" s88",INICIO!$A$50,"mes",$N$10),SUM(GETPIVOTDATA(" s88",INICIO!$A$50))) -> 1647
A29: 10 | B29: Endocrinología | C29: =IF($N$9=$P$9,GETPIVOTDATA(" s10",INICIO!$A$50,"mes",$N$9),SUM(GETPIVOTDATA(" s10",INICIO!$A$50))) -> 0 | D29: =IF($N$9=$P$9,GETPIVOTDATA(" s27",INICIO!$A$50,"mes",$N$9),SUM(GETPIVOTDATA(" s27",INICIO!$A$50))) -> 0
A30: 11 | B30: Psicología | C30: =IF($N$9=$P$9,GETPIVOTDATA(" s11",INICIO!$A$50,"mes",$N$9),SUM(GETPIVOTDATA(" s11",INICIO!$A$50))) -> 1367 | D30: =IF($N$9=$P$9,GETPIVOTDATA(" s28",INICIO!$A$50,"mes",$N$9),SUM(GETPIVOTDATA(" s28",INICIO!$A$50))) -> 3714 | F30: 40: Pacientes en Observación : | N30: < 24 Hrs | Z30: 22680 | AA30: 100
A31: 12 | B31: Hematología | C31: =IF($N$9=$P$9,GETPIVOTDATA(" s12",INICIO!$A$50,"mes",$N$9),SUM(GETPIVOTDATA(" s12",INICIO!$A$50))) -> 0 | D31: =IF($N$9=$P$9,GETPIVOTDATA(" s29",INICIO!$A$50,"mes",$N$9),SUM(GETPIVOTDATA(" s29",INICIO!$A$50))) -> 0 | F31: 1 | G31: Nro. Pacientes Atendidos | N31: =IF($N$10=$P$10,GETPIVOTDATA(" s147",INICIO!$A$50,"mes",$N$10),SUM(GETPIVOTDATA(" s147",INICIO!$A$50))) -> 499 | Z31: 7 | AA31: =Z31*AA30/Z30 -> 0.03086419753
A32: 13 | B32: Reumatologia | C32: =IF($N$9=$P$9,GETPIVOTDATA(" s13",INICIO!$A$50,"mes",$N$9),SUM(GETPIVOTDATA(" s13",INICIO!$A$50))) -> 0 | D32: =IF($N$9=$P$9,GETPIVOTDATA(" s30",INICIO!$A$50,"mes",$N$9),SUM(GETPIVOTDATA(" s30",INICIO!$A$50))) -> 0 | F32: 50: Atenciones de Emergencia: | N32: =IF($N$10=$P$10,GETPIVOTDATA(" s148",INICIO!$A$50,"mes",$N$10),SUM(GETPIVOTDATA(" s148",INICIO!$A$50))) -> 1042 | Y32: 7 | Z32: =Y32/N31*100 -> 1.402805611
A33: 14 | B33: Gereatria | C33: =IF($N$9=$P$9,GETPIVOTDATA(" s14",INICIO!$A$50,"mes",$N$9),SUM(GETPIVOTDATA(" s14",INICIO!$A$50))) -> 0 | D33: =IF($N$9=$P$9,GETPIVOTDATA(" s31",INICIO!$A$50,"mes",$N$9),SUM(GETPIVOTDATA(" s31",INICIO!$A$50))) -> 0 | F33: 1 | G33: Niño 0-11A | N33: =IF($N$10=$P$10,GETPIVOTDATA(" s89",INICIO!$A$50,"mes",$N$10),SUM(GETPIVOTDATA(" s89",INICIO!$A$50))) -> 172
A34: 15 | B34: Psiquiatria | C34: =IF($N$9=$P$9,GETPIVOTDATA(" s15",INICIO!$A$50,"mes",$N$9),SUM(GETPIVOTDATA(" s15",INICIO!$A$50))) -> 0 | D34: =IF($N$9=$P$9,GETPIVOTDATA(" s32",INICIO!$A$50,"mes",$N$9),SUM(GETPIVOTDATA(" s32",INICIO!$A$50))) -> 0 | F34: 2 | G34: Adolescente 12-17A | N34: =IF($N$10=$P$10,GETPIVOTDATA(" s90",INICIO!$A$50,"mes",$N$10),SUM(GETPIVOTDATA(" s90",INICIO!$A$50))) -> 61
A35: 16 | B35: Medicina Familiar | C35: =IF($N$9=$P$9,GETPIVOTDATA(" s16",INICIO!$A$50,"mes",$N$9),SUM(GETPIVOTDATA(" s16",INICIO!$A$50))) -> 0 | D35: =IF($N$9=$P$9,GETPIVOTDATA(" s33",INICIO!$A$50,"mes",$N$9),SUM(GETPIVOTDATA(" s33",INICIO!$A$50))) -> 0 | F35: 3 | G35: Joven 18-29 A | N35: =IF($N$10=$P$10,GETPIVOTDATA(" s91",INICIO!$A$50,"mes",$N$10),SUM(GETPIVOTDATA(" s91",INICIO!$A$50))) -> 316
A36: 14 | B36: Otros | C36: =IF($N$9=$P$9,GETPIVOTDATA(" s17",INICIO!$A$50,"mes",$N$9),SUM(GETPIVOTDATA(" s17",INICIO!$A$50))) -> 0 | D36: =IF($N$9=$P$9,GETPIVOTDATA(" s34",INICIO!$A$50,"mes",$N$9),SUM(GETPIVOTDATA(" s34",INICIO!$A$50))) -> 0 | F36: 4 | G36: Adulto 30-59A | N36: =IF($N$10=$P$10,GETPIVOTDATA(" s92",INICIO!$A$50,"mes",$N$10),SUM(GETPIVOTDATA(" s92",INICIO!$A$50))) -> 355
A37: 20 | B37: Cirugia | C37: =IF($N$9=$P$9,GETPIVOTDATA(" s135",INICIO!$A$50,"mes",$N$9),SUM(GETPIVOTDATA(" s135",INICIO!$A$50))) -> 796 | D37: =IF($N$9=$P$9,GETPIVOTDATA(" s136",INICIO!$A$50,"mes",$N$9),SUM(GETPIVOTDATA(" s136",INICIO!$A$50))) -> 1600 | F37: 5 | G37: Adulto Mayor 60A + | N37: =IF($N$10=$P$10,GETPIVOTDATA(" s93",INICIO!$A$50,"mes",$N$10),SUM(GETPIVOTDATA(" s93",INICIO!$A$50))) -> 138
A38: 1 | B38: Cirugía General | C38: =IF($N$10=$P$10,GETPIVOTDATA(" s35",INICIO!$A$50,"mes",$N$10),SUM(GETPIVOTDATA(" s35",INICIO!$A$50))) -> 259 | D38: =IF($N$10=$P$10,GETPIVOTDATA(" s47",INICIO!$A$50,"mes",$N$10),SUM(GETPIVOTDATA(" s47",INICIO!$A$50))) -> 669 | F38: 6 | G38: Emergencias Obstetricas | N38: =IF($N$10=$P$10,GETPIVOTDATA(" s94",INICIO!$A$50,"mes",$N$10),SUM(GETPIVOTDATA(" s94",INICIO!$A$50))) -> 215
A39: 2 | B39: Traum. y Ortopedia | C39: =IF($N$9=$P$9,GETPIVOTDATA(" s36",INICIO!$A$50,"mes",$N$9),SUM(GETPIVOTDATA(" s36",INICIO!$A$50))) -> 165 | D39: =IF($N$9=$P$9,GETPIVOTDATA(" s48",INICIO!$A$50,"mes",$N$9),SUM(GETPIVOTDATA(" s48",INICIO!$A$50))) -> 305 | F39: III Consulta Externa Según Tipo de Profesional
A40: 3 | B40: Otorrinolaringología | C40: =IF($N$9=$P$9,GETPIVOTDATA(" s37",INICIO!$A$50,"mes",$N$9),SUM(GETPIVOTDATA(" s37",INICIO!$A$50))) -> 0 | D40: =IF($N$9=$P$9,GETPIVOTDATA(" s49",INICIO!$A$50,"mes",$N$9),SUM(GETPIVOTDATA(" s49",INICIO!$A$50))) -> 0 | F40: Tipo de Profesional | H40: Atendidos | L40: Atenciones | P40: Horas
A41: 4 | B41: Oftalmología | C41: =IF($N$9=$P$9,GETPIVOTDATA(" s38",INICIO!$A$50,"mes",$N$9),SUM(GETPIVOTDATA(" s38",INICIO!$A$50))) -> 372 | D41: =IF($N$9=$P$9,GETPIVOTDATA(" s50",INICIO!$A$50,"mes",$N$9),SUM(GETPIVOTDATA(" s50",INICIO!$A$50))) -> 626 | P41: Trabajadas | T41: Programadas
A42: 5 | B42: Urología | C42: =IF($N$9=$P$9,GETPIVOTDATA(" s39",INICIO!$A$50,"mes",$N$9),SUM(GETPIVOTDATA(" s39",INICIO!$A$50))) -> 0 | D42: =IF($N$9=$P$9,GETPIVOTDATA(" s51",INICIO!$A$50,"mes",$N$9),SUM(GETPIVOTDATA(" s51",INICIO!$A$50))) -> 0 | F42: Total | H42: =IF($N$10=$P$10,GETPIVOTDATA(" s149",INICIO!$A$50,"mes",$N$10),SUM(GETPIVOTDATA(" s149",INICIO!$A$50))) -> 7122 | L42: =IF($N$10=$P$10,GETPIVOTDATA(" s150",INICIO!$A$50,"mes",$N$10),SUM(GETPIVOTDATA(" s150",INICIO!$A$50))) -> 18559 | P42: 0 | T42: 0
A43: 6 | B43: Cirugía Vascular | C43: =IF($N$9=$P$9,GETPIVOTDATA(" s40",INICIO!$A$50,"mes",$N$9),SUM(GETPIVOTDATA(" s40",INICIO!$A$50))) -> 0 | D43: =IF($N$9=$P$9,GETPIVOTDATA(" s52",INICIO!$A$50,"mes",$N$9),SUM(GETPIVOTDATA(" s52",INICIO!$A$50))) -> 0 | F43: 0 | G43: Medico | H43: =IF($N$10=$P$10,GETPIVOTDATA(" s95",INICIO!$A$50,"mes",$N$10),SUM(GETPIVOTDATA(" s95",INICIO!$A$50))) -> 2689 | L43: =IF($N$10=$P$10,GETPIVOTDATA(" s101",INICIO!$A$50,"mes",$N$10),SUM(GETPIVOTDATA(" s101",INICIO!$A$50))) -> 7041
A44: 7 | B44: Cirugía Pediatría | C44: =IF($N$9=$P$9,GETPIVOTDATA(" s41",INICIO!$A$50,"mes",$N$9),SUM(GETPIVOTDATA(" s41",INICIO!$A$50))) -> 0 | D44: =IF($N$9=$P$9,GETPIVOTDATA(" s53",INICIO!$A$50,"mes",$N$9),SUM(GETPIVOTDATA(" s53",INICIO!$A$50))) -> 0 | F44: 1 | G44: Obstetriz | H44: =IF($N$10=$P$10,GETPIVOTDATA(" s96",INICIO!$A$50,"mes",$N$10),SUM(GETPIVOTDATA(" s96",INICIO!$A$50))) -> 3066 | L44: =IF($N$10=$P$10,GETPIVOTDATA(" s102",INICIO!$A$50,"mes",$N$10),SUM(GETPIVOTDATA(" s102",INICIO!$A$50))) -> 7804
A45: 8 | B45: Neurocirugía | C45: =IF($N$9=$P$9,GETPIVOTDATA(" s42",INICIO!$A$50,"mes",$N$9),SUM(GETPIVOTDATA(" s42",INICIO!$A$50))) -> 0 | D45: =IF($N$9=$P$9,GETPIVOTDATA(" s54",INICIO!$A$50,"mes",$N$9),SUM(GETPIVOTDATA(" s54",INICIO!$A$50))) -> 0 | F45: 2 | G45: Psicólogo | H45: =IF($N$10=$P$10,GETPIVOTDATA(" s97",INICIO!$A$50,"mes",$N$10),SUM(GETPIVOTDATA(" s97",INICIO!$A$50))) -> 1367 | L45: =IF($N$10=$P$10,GETPIVOTDATA(" s103",INICIO!$A$50,"mes",$N$10),SUM(GETPIVOTDATA(" s103",INICIO!$A$50))) -> 3714
A46: 9 | B46: Cirugía Plástica | C46: =IF($N$9=$P$9,GETPIVOTDATA(" s43",INICIO!$A$50,"mes",$N$9),SUM(GETPIVOTDATA(" s43",INICIO!$A$50))) -> 0 | D46: =IF($N$9=$P$9,GETPIVOTDATA(" s55",INICIO!$A$50,"mes",$N$9),SUM(GETPIVOTDATA(" s55",INICIO!$A$50))) -> 0 | F46: 3 | G46: Odontólogo | H46: =IF($N$10=$P$10,GETPIVOTDATA(" s98",INICIO!$A$50,"mes",$N$10),SUM(GETPIVOTDATA(" s98",INICIO!$A$50))) -> 663 | L46: =IF($N$10=$P$10,GETPIVOTDATA(" s104",INICIO!$A$50,"mes",$N$10),SUM(GETPIVOTDATA(" s104",INICIO!$A$50))) -> 1590
A47: 10 | B47: Rehabilitación y Fisioterapia | C47: =IF($N$9=$P$9,GETPIVOTDATA(" s44",INICIO!$A$50,"mes",$N$9),SUM(GETPIVOTDATA(" s44",INICIO!$A$50))) -> 0 | D47: =IF($N$9=$P$9,GETPIVOTDATA(" s56",INICIO!$A$50,"mes",$N$9),SUM(GETPIVOTDATA(" s56",INICIO!$A$50))) -> 0 | F47: 4 | G47: Enfermera | H47: =IF($N$9=$P$9,GETPIVOTDATA(" s99",INICIO!$A$50,"mes",$N$9),SUM(GETPIVOTDATA(" s99",INICIO!$A$50))) -> 0 | L47: =IF($N$9=$P$9,GETPIVOTDATA(" s105",INICIO!$A$50,"mes",$N$9),SUM(GETPIVOTDATA(" s105",INICIO!$A$50))) -> 0
A48: 11 | B48: Oncología | C48: =IF($N$9=$P$9,GETPIVOTDATA(" s45",INICIO!$A$50,"mes",$N$9),SUM(GETPIVOTDATA(" s45",INICIO!$A$50))) -> 0 | D48: =IF($N$9=$P$9,GETPIVOTDATA(" s57",INICIO!$A$50,"mes",$N$9),SUM(GETPIVOTDATA(" s57",INICIO!$A$50))) -> 0 | F48: 5 | G48: Técnico en Enfermería | H48: =IF($N$9=$P$9,GETPIVOTDATA(" s100",INICIO!$A$50,"mes",$N$9),SUM(GETPIVOTDATA(" s100",INICIO!$A$50))) -> 0 | L48: =IF($N$9=$P$9,GETPIVOTDATA(" s106",INICIO!$A$50,"mes",$N$9),SUM(GETPIVOTDATA(" s106",INICIO!$A$50))) -> 0
A49: 12 | B49: Cirujia de Cabeza y Cuello | C49: =IF($N$9=$P$9,GETPIVOTDATA(" s46",INICIO!$A$50,"mes",$N$9),SUM(GETPIVOTDATA(" s46",INICIO!$A$50))) -> 0 | D49: =IF($N$9=$P$9,GETPIVOTDATA(" s58",INICIO!$A$50,"mes",$N$9),SUM(GETPIVOTDATA(" s58",INICIO!$A$50))) -> 0 | F49: IV.-Producción del Establecimiento por todo tipo de personal
A50: 30 | B50: Pediatria | C50: =IF($N$10=$P$10,GETPIVOTDATA(" s137",INICIO!$A$50,"mes",$N$10),SUM(GETPIVOTDATA(" s137",INICIO!$A$50))) -> 528 | D50: =IF($N$10=$P$10,GETPIVOTDATA(" s138",INICIO!$A$50,"mes",$N$10),SUM(GETPIVOTDATA(" s138",INICIO!$A$50))) -> 1768 | F50: Grupos de Edad | I50: Población | L50: Atendidos | O50: Atenciones | R50: Extensión | U50: Intensidad
A51: 1 | B51: Pediatría General | C51: =IF($N$10=$P$10,GETPIVOTDATA(" s59",INICIO!$A$50,"mes",$N$10),SUM(GETPIVOTDATA(" s59",INICIO!$A$50))) -> 528 | D51: =IF($N$10=$P$10,GETPIVOTDATA(" s61",INICIO!$A$50,"mes",$N$10),SUM(GETPIVOTDATA(" s61",INICIO!$A$50))) -> 1768 | R51: de Uso | U51: de Uso
A52: 2 | B52: Neonatologia | C52: =IF($N$9=$P$9,GETPIVOTDATA(" s60",INICIO!$A$50,"mes",$N$9),SUM(GETPIVOTDATA(" s60",INICIO!$A$50))) -> 0 | D52: =IF($N$9=$P$9,GETPIVOTDATA(" s62",INICIO!$A$50,"mes",$N$9),SUM(GETPIVOTDATA(" s62",INICIO!$A$50))) -> 0 | F52: Total | I52: =+I53+I58+I61+I62+I63 -> 17053 | L52: =IF($N$10=$P$10,GETPIVOTDATA(" s151",INICIO!$A$50,"mes",$N$10),SUM(GETPIVOTDATA(" s151",INICIO!$A$50))) -> 12677 | O52: =IF($N$10=$P$10,GETPIVOTDATA(" s152",INICIO!$A$50,"mes",$N$10),SUM(GETPIVOTDATA(" s152",INICIO!$A$50))) -> 35731 | R52: =O52/I52*100 -> 209.5291151 | U52: =O52/L52 -> 2.818569062
F53: 10 | G53: Niñ (0 -11 Años) | I53: =SUM(I54:K57) -> 4416 | L53: =IF($N$10=$P$10,GETPIVOTDATA(" s153",INICIO!$A$50,"mes",$N$10),SUM(GETPIVOTDATA(" s153",INICIO!$A$50))) -> 4431 | O53: =IF($N$10=$P$10,GETPIVOTDATA(" s154",INICIO!$A$50,"mes",$N$10),SUM(GETPIVOTDATA(" s154",INICIO!$A$50))) -> 13754 | R53: =O53/I53*100 -> 311.4583333 | U53: =O53/L53 -> 3.10403972
A54: 40 | B54: Obstetricia y Ginecologia | C54: =IF($N$10=$P$10,GETPIVOTDATA(" s139",INICIO!$A$50,"mes",$N$10),SUM(GETPIVOTDATA(" s139",INICIO!$A$50))) -> 3473 | D54: =IF($N$10=$P$10,GETPIVOTDATA(" s140",INICIO!$A$50,"mes",$N$10),SUM(GETPIVOTDATA(" s140",INICIO!$A$50))) -> 9094 | F54: 1 | G54: Menor de 1 año | I54: 295 | L54: =IF($N$10=$P$10,GETPIVOTDATA(" s107",INICIO!$A$50,"mes",$N$10),SUM(GETPIVOTDATA(" s107",INICIO!$A$50))) -> 1355 | O54: =IF($N$10=$P$10,GETPIVOTDATA(" s111",INICIO!$A$50,"mes",$N$10),SUM(GETPIVOTDATA(" s111",INICIO!$A$50))) -> 6355 | R54: 2154.237288 | U54: 4.6900369
F55: 2 | G55: 1 - 4 años | I55: 1353 | L55: =IF($N$10=$P$10,GETPIVOTDATA(" s108",INICIO!$A$50,"mes",$N$10),SUM(GETPIVOTDATA(" s108",INICIO!$A$50))) -> 1976 | O55: =IF($N$10=$P$10,GETPIVOTDATA(" s112",INICIO!$A$50,"mes",$N$10),SUM(GETPIVOTDATA(" s112",INICIO!$A$50))) -> 5271 | R55: 389.578714 | U55: 2.667510121
A56: 1 | B56: Obstetricia | C56: =IF($N$10=$P$10,GETPIVOTDATA(" s63",INICIO!$A$50,"mes",$N$10),SUM(GETPIVOTDATA(" s63",INICIO!$A$50))) -> 2868 | D56: =IF($N$10=$P$10,GETPIVOTDATA(" s67",INICIO!$A$50,"mes",$N$10),SUM(GETPIVOTDATA(" s67",INICIO!$A$50))) -> 6865 | F56: 3 | G56: 5 - 9 años | I56: 1983 | L56: =IF($N$10=$P$10,GETPIVOTDATA(" s109",INICIO!$A$50,"mes",$N$10),SUM(GETPIVOTDATA(" s109",INICIO!$A$50))) -> 842 | O56: =IF($N$10=$P$10,GETPIVOTDATA(" s113",INICIO!$A$50,"mes",$N$10),SUM(GETPIVOTDATA(" s113",INICIO!$A$50))) -> 1573 | R56: 79.32425618 | U56: 1.868171021
A57: 2 | B57: Ginecologia | C57: =IF($N$10=$P$10,GETPIVOTDATA(" s64",INICIO!$A$50,"mes",$N$10),SUM(GETPIVOTDATA(" s64",INICIO!$A$50))) -> 407 | D57: =IF($N$10=$P$10,GETPIVOTDATA(" s68",INICIO!$A$50,"mes",$N$10),SUM(GETPIVOTDATA(" s68",INICIO!$A$50))) -> 1290 | F57: 4 | G57: 10-11 años | I57: 785 | L57: =IF($N$10=$P$10,GETPIVOTDATA(" s110",INICIO!$A$50,"mes",$N$10),SUM(GETPIVOTDATA(" s110",INICIO!$A$50))) -> 258 | O57: =IF($N$10=$P$10,GETPIVOTDATA(" s114",INICIO!$A$50,"mes",$N$10),SUM(GETPIVOTDATA(" s114",INICIO!$A$50))) -> 555 | R57: 70.70063694 | U57: 2.151162791
A58: 3 | B58: Planificación Familiar | C58: =IF($N$10=$P$10,GETPIVOTDATA(" s65",INICIO!$A$50,"mes",$N$10),SUM(GETPIVOTDATA(" s65",INICIO!$A$50))) -> 198 | D58: =IF($N$10=$P$10,GETPIVOTDATA(" s69",INICIO!$A$50,"mes",$N$10),SUM(GETPIVOTDATA(" s69",INICIO!$A$50))) -> 939 | F58: 11 | G58: Adolescente (12-17 Años) | I58: =SUM(I59:K60) -> 2067 | L58: =IF($N$10=$P$10,GETPIVOTDATA(" s155",INICIO!$A$50,"mes",$N$10),SUM(GETPIVOTDATA(" s155",INICIO!$A$50))) -> 715 | O58: =IF($N$10=$P$10,GETPIVOTDATA(" s156",INICIO!$A$50,"mes",$N$10),SUM(GETPIVOTDATA(" s156",INICIO!$A$50))) -> 2220 | R58: 107.4020319 | U58: 3.104895105
A59: 4 | B59: Histerectomia | C59: =IF($N$9=$P$9,GETPIVOTDATA(" s66",INICIO!$A$50,"mes",$N$9),SUM(GETPIVOTDATA(" s66",INICIO!$A$50))) -> 0 | D59: =IF($N$9=$P$9,GETPIVOTDATA(" s70",INICIO!$A$50,"mes",$N$9),SUM(GETPIVOTDATA(" s70",INICIO!$A$50))) -> 0 | F59: 1 | G59: 12 - 14 años | I59: 1090 | L59: =IF($N$10=$P$10,GETPIVOTDATA(" s115",INICIO!$A$50,"mes",$N$10),SUM(GETPIVOTDATA(" s115",INICIO!$A$50))) -> 370 | O59: =IF($N$10=$P$10,GETPIVOTDATA(" s120",INICIO!$A$50,"mes",$N$10),SUM(GETPIVOTDATA(" s120",INICIO!$A$50))) -> 1097 | R59: 100.6422018 | U59: 2.964864865
F60: 2 | G60: 15 - 17 años | I60: 977 | L60: =IF($N$10=$P$10,GETPIVOTDATA(" s116",INICIO!$A$50,"mes",$N$10),SUM(GETPIVOTDATA(" s116",INICIO!$A$50))) -> 345 | O60: =IF($N$10=$P$10,GETPIVOTDATA(" s121",INICIO!$A$50,"mes",$N$10),SUM(GETPIVOTDATA(" s121",INICIO!$A$50))) -> 1123 | R60: 114.9437052 | U60: 3.255072464
F61: 12 | G61: Joven (18-29 Años) | I61: 3664 | L61: =IF($N$10=$P$10,GETPIVOTDATA(" s117",INICIO!$A$50,"mes",$N$10),SUM(GETPIVOTDATA(" s117",INICIO!$A$50))) -> 2401 | O61: =IF($N$10=$P$10,GETPIVOTDATA(" s122",INICIO!$A$50,"mes",$N$10),SUM(GETPIVOTDATA(" s122",INICIO!$A$50))) -> 6718 | R61: 183.3515284 | U61: 2.798000833
F62: 13 | G62: Adulto (30-59 Años) | I62: 5389 | L62: =IF($N$10=$P$10,GETPIVOTDATA(" s118",INICIO!$A$50,"mes",$N$10),SUM(GETPIVOTDATA(" s118",INICIO!$A$50))) -> 4253 | O62: =IF($N$10=$P$10,GETPIVOTDATA(" s123",INICIO!$A$50,"mes",$N$10),SUM(GETPIVOTDATA(" s123",INICIO!$A$50))) -> 10579 | R62: 196.3072926 | U62: 2.487420644
F63: 14 | G63: Adulto Mayor 60A+ | I63: 1517 | L63: =IF($N$10=$P$10,GETPIVOTDATA(" s119",INICIO!$A$50,"mes",$N$10),SUM(GETPIVOTDATA(" s119",INICIO!$A$50))) -> 877 | O63: =IF($N$10=$P$10,GETPIVOTDATA(" s124",INICIO!$A$50,"mes",$N$10),SUM(GETPIVOTDATA(" s124",INICIO!$A$50))) -> 2460 | R63: =O63/I63*100 -> 162.1621622 | U63: 2.805017104
F64: V. Servicio Social
F65: Procedencia | J65: Indigencias | S65: Total
J66: Parciales | N66: Totales | S66: General
F67: Totales | J67: =IF($N$10=$P$10,GETPIVOTDATA(" s157",INICIO!$A$50,"mes",$N$10),SUM(GETPIVOTDATA(" s157",INICIO!$A$50))) -> 0 | N67: =IF($N$10=$P$10,GETPIVOTDATA(" s158",INICIO!$A$50,"mes",$N$10),SUM(GETPIVOTDATA(" s158",INICIO!$A$50))) -> 0 | S67: =SUM(J67:R67) -> 0
F68: 1 | G68: Consulta Externa | J68: =IF($N$10=$P$10,GETPIVOTDATA(" s125",INICIO!$A$50,"mes",$N$10),SUM(GETPIVOTDATA(" s125",INICIO!$A$50))) -> 0 | N68: =IF($N$10=$P$10,GETPIVOTDATA(" s128",INICIO!$A$50,"mes",$N$10),SUM(GETPIVOTDATA(" s128",INICIO!$A$50))) -> 0 | S68: =SUM(J68:R68) -> 0
F69: 2 | G69: Hospitalización | J69: =IF($N$10=$P$10,GETPIVOTDATA(" s126",INICIO!$A$50,"mes",$N$10),SUM(GETPIVOTDATA(" s126",INICIO!$A$50))) -> 0 | N69: =IF($N$10=$P$10,GETPIVOTDATA(" s129",INICIO!$A$50,"mes",$N$10),SUM(GETPIVOTDATA(" s129",INICIO!$A$50))) -> 0 | S69: 0
F70: 3 | G70: Servicio Periférico | J70: =IF($N$10=$P$10,GETPIVOTDATA(" s127",INICIO!$A$50,"mes",$N$10),SUM(GETPIVOTDATA(" s127",INICIO!$A$50))) -> 0 | N70: =IF($N$10=$P$10,GETPIVOTDATA(" s130",INICIO!$A$50,"mes",$N$10),SUM(GETPIVOTDATA(" s130",INICIO!$A$50))) -> 0 | S70: 0
A74: Total | C74: N° CAMAS
A75: 1 | B75: Niño | C75: =IF($N$9=$P$9,GETPIVOTDATA(" t01",INICIO!$A$77,"mes",$N$9),SUM(GETPIVOTDATA(" t01",INICIO!$A$77))) -> 0 | F75: TOTAL | H75: N° CAMAS
A76: 2 | B76: Adolescente | C76: =IF($N$9=$P$9,GETPIVOTDATA(" t02",INICIO!$A$77,"mes",$N$9),SUM(GETPIVOTDATA(" t02",INICIO!$A$77))) -> 0 | F76: 20 | G76: Cirugia | H76: =IF($N$9=$P$9,GETPIVOTDATA(" t19",INICIO!$A$77,"mes",$N$9),SUM(GETPIVOTDATA(" t19",INICIO!$A$77))) -> 0
A77: 3 | B77: Adulto | C77: =IF($N$9=$P$9,GETPIVOTDATA(" t03",INICIO!$A$77,"mes",$N$9),SUM(GETPIVOTDATA(" t03",INICIO!$A$77))) -> 0 | F77: 1 | G77: Cirugía General | H77: =IF($N$9=$P$9,GETPIVOTDATA(" t20",INICIO!$A$77,"mes",$N$9),SUM(GETPIVOTDATA(" t20",INICIO!$A$77))) -> 0
A78: 4 | B78: Adulto Mayor | C78: =IF($N$9=$P$9,GETPIVOTDATA(" t04",INICIO!$A$77,"mes",$N$9),SUM(GETPIVOTDATA(" t04",INICIO!$A$77))) -> 0 | F78: 2 | G78: Traum. y Ortopedia | H78: =IF($N$9=$P$9,GETPIVOTDATA(" t21",INICIO!$A$77,"mes",$N$9),SUM(GETPIVOTDATA(" t21",INICIO!$A$77))) -> 0
A79: Sub Total | C79: =IF($N$9=$P$9,GETPIVOTDATA(" t05",INICIO!$A$77,"mes",$N$9),SUM(GETPIVOTDATA(" t05",INICIO!$A$77))) -> 0 | F79: 3 | G79: Otorrinolaringología | H79: =IF($N$9=$P$9,GETPIVOTDATA(" t22",INICIO!$A$77,"mes",$N$9),SUM(GETPIVOTDATA(" t22",INICIO!$A$77))) -> 0
A80: 10 | B80: Medicina | C80: =IF($N$9=$P$9,GETPIVOTDATA(" t06",INICIO!$A$77,"mes",$N$9),SUM(GETPIVOTDATA(" t06",INICIO!$A$77))) -> 0 | F80: 4 | G80: Oftalmología | H80: =IF($N$9=$P$9,GETPIVOTDATA(" t23",INICIO!$A$77,"mes",$N$9),SUM(GETPIVOTDATA(" t23",INICIO!$A$77))) -> 0
A81: 1 | B81: Medicina General | C81: =IF($N$9=$P$9,GETPIVOTDATA(" t07",INICIO!$A$77,"mes",$N$9),SUM(GETPIVOTDATA(" t07",INICIO!$A$77))) -> 0 | F81: 5 | G81: Urología | H81: =IF($N$9=$P$9,GETPIVOTDATA(" t24",INICIO!$A$77,"mes",$N$9),SUM(GETPIVOTDATA(" t24",INICIO!$A$77))) -> 0
A82: 2 | B82: Neumología | C82: =IF($N$9=$P$9,GETPIVOTDATA(" t08",INICIO!$A$77,"mes",$N$9),SUM(GETPIVOTDATA(" t08",INICIO!$A$77))) -> 0 | F82: 6 | G82: Oncología | H82: =IF($N$9=$P$9,GETPIVOTDATA(" t25",INICIO!$A$77,"mes",$N$9),SUM(GETPIVOTDATA(" t25",INICIO!$A$77))) -> 0
A83: 3 | B83: Cardiología | C83: =IF($N$9=$P$9,GETPIVOTDATA(" t09",INICIO!$A$77,"mes",$N$9),SUM(GETPIVOTDATA(" t09",INICIO!$A$77))) -> 0 | F83: 7 | G83: Otros | H83: =IF($N$9=$P$9,GETPIVOTDATA(" t26",INICIO!$A$77,"mes",$N$9),SUM(GETPIVOTDATA(" t26",INICIO!$A$77))) -> 0
A84: 4 | B84: Neurología | C84: =IF($N$9=$P$9,GETPIVOTDATA(" t10",INICIO!$A$77,"mes",$N$9),SUM(GETPIVOTDATA(" t10",INICIO!$A$77))) -> 0 | F84: 30 | G84: Pediatria | H84: =IF($N$9=$P$9,GETPIVOTDATA(" t27",INICIO!$A$77,"mes",$N$9),SUM(GETPIVOTDATA(" t27",INICIO!$A$77))) -> 0
A85: 5 | B85: Gastroenterología | C85: =IF($N$9=$P$9,GETPIVOTDATA(" t11",INICIO!$A$77,"mes",$N$9),SUM(GETPIVOTDATA(" t11",INICIO!$A$77))) -> 0 | F85: 1 | G85: Lactantes(-1 años) | H85: =IF($N$9=$P$9,GETPIVOTDATA(" t28",INICIO!$A$77,"mes",$N$9),SUM(GETPIVOTDATA(" t28",INICIO!$A$77))) -> 0
A86: 6 | B86: Dermatología | C86: =IF($N$9=$P$9,GETPIVOTDATA(" t12",INICIO!$A$77,"mes",$N$9),SUM(GETPIVOTDATA(" t12",INICIO!$A$77))) -> 0 | F86: 2 | G86: Pre escolar 1-4 años | H86: =IF($N$9=$P$9,GETPIVOTDATA(" t29",INICIO!$A$77,"mes",$N$9),SUM(GETPIVOTDATA(" t29",INICIO!$A$77))) -> 0
A87: 7 | B87: Nefrología | C87: =IF($N$9=$P$9,GETPIVOTDATA(" t13",INICIO!$A$77,"mes",$N$9),SUM(GETPIVOTDATA(" t13",INICIO!$A$77))) -> 0 | F87: 3 | G87: Pre escolar 5 años | H87: =IF($N$9=$P$9,GETPIVOTDATA(" t30",INICIO!$A$77,"mes",$N$9),SUM(GETPIVOTDATA(" t30",INICIO!$A$77))) -> 0
A88: 8 | B88: Psiquiatría | C88: =IF($N$9=$P$9,GETPIVOTDATA(" t14",INICIO!$A$77,"mes",$N$9),SUM(GETPIVOTDATA(" t14",INICIO!$A$77))) -> 0 | F88: 4 | G88: Neonatología | H88: =IF($N$9=$P$9,GETPIVOTDATA(" t31",INICIO!$A$77,"mes",$N$9),SUM(GETPIVOTDATA(" t31",INICIO!$A$77))) -> 0
A89: 9 | B89: Otros CLINICA | C89: =IF($N$9=$P$9,GETPIVOTDATA(" t15",INICIO!$A$77,"mes",$N$9),SUM(GETPIVOTDATA(" t15",INICIO!$A$77))) -> 0 | F89: 5 | G89: Escolar (6-14 años) | H89: =IF($N$9=$P$9,GETPIVOTDATA(" t32",INICIO!$A$77,"mes",$N$9),SUM(GETPIVOTDATA(" t32",INICIO!$A$77))) -> 0
A90: 10 | B90: Endocrinología | C90: =IF($N$9=$P$9,GETPIVOTDATA(" t16",INICIO!$A$77,"mes",$N$9),SUM(GETPIVOTDATA(" t16",INICIO!$A$77))) -> 0 | F90: 40 | G90: Obst. y Ginec. | H90: =IF($N$9=$P$9,GETPIVOTDATA(" t33",INICIO!$A$77,"mes",$N$9),SUM(GETPIVOTDATA(" t33",INICIO!$A$77))) -> 0
A91: 11 | B91: Hematología | C91: =IF($N$9=$P$9,GETPIVOTDATA(" t17",INICIO!$A$77,"mes",$N$9),SUM(GETPIVOTDATA(" t17",INICIO!$A$77))) -> 0 | F91: 1 | G91: Obstetricia | H91: =IF($N$9=$P$9,GETPIVOTDATA(" t34",INICIO!$A$77,"mes",$N$9),SUM(GETPIVOTDATA(" t34",INICIO!$A$77))) -> 0
A92: 12 | B92: Reumatologia | C92: =IF($N$9=$P$9,GETPIVOTDATA(" t18",INICIO!$A$77,"mes",$N$9),SUM(GETPIVOTDATA(" t18",INICIO!$A$77))) -> 0 | F92: 2 | G92: Ginecología | H92: =IF($N$9=$P$9,GETPIVOTDATA(" t35",INICIO!$A$77,"mes",$N$9),SUM(GETPIVOTDATA(" t35",INICIO!$A$77))) -> 0
G93: UCI | H93: =IF($N$9=$P$9,GETPIVOTDATA(" t36",INICIO!$A$77,"mes",$N$9),SUM(GETPIVOTDATA(" t36",INICIO!$A$77))) -> 0

Sheet SES2
A1: DIRECCION REGIONAL DE SALUD CUSCO
A2: DIRECCION DE ESTADISTICA E INFORMATICA
A3: INFORMACION MENSUAL DE SES39
A6: RED DE SALUD | D6: MICRO RED | H6: PROVINCIA
A7: =MID(INICIO!E31,1,50) -> (Todas) | D7: =MID(INICIO!E32,1,50) -> (Todas) | H7: =MID(INICIO!E34,1,50) -> (Todas)
A9: ESTABLECIMIENTO | D9: DISTRITO
A10: =MID(INICIO!E33,1,50) -> (Todas) | D10: =MID(INICIO!E35,1,50) -> (Todas)
B12: Datos
B13: mhosmg_1 | D13: mhosneum_1 | I13: mhoscard_1 | J13: mhosneur_1 | K13: mhosgast_1 | L13: mhosderm_1 | M13: mhosnefro_1 | N13: mhossiqui_1 | O13: mhosotrc_1 | P13: ccgen_1 | Q13: ctraum_1 | R13: cotorrin_1 | S13: coftal_1 | T13: curolog_1 | U13: ciotros_1 | V13: mhosmg_2 | W13: mhosneum_2 | X13: mhoscard_2 | Y13: mhosneur_2 | Z13: mhosgast_2 | AA13: mhosderm_2 | AB13: mhosnefro_2 | AC13: mhossiqui_2 | AD13: mhosotrc_2 | AE13: ccgen_2 | AF13: ctraum_2 | AG13: cotorrin_2 | AH13: coftal_2 | AI13: curolog_2 | AJ13: ciotros_2 | AK13: mhosmg_3 | AL13: mhosneum_3 | AM13: mhoscard_3 | AN13: mhosneur_3 | AO13: mhosgast_3 | AP13: mhosderm_3 | AQ13: mhosnefro_3 | AR13: mhossiqui_3 | AS13: mhosotrc_3 | AT13: ccgen_3 | AU13: ctraum_3 | AV13: cotorrin_3 | AW13: coftal_3 | AX13: curolog_3 | AY13: ciotros_3 | AZ13: mhosmg_4 | BA13: mhosneum_4 | BB13: mhoscard_4 | BC13: mhosneur_4 | BD13: mhosgast_4 | BE13: mhosderm_4 | BF13: mhosnefro_4 | BG13: mhossiqui_4 | BH13: mhosotrc_4 | BI13: ccgen_4 | BJ13: ctraum_4 | BK13: cotorrin_4 | BL13: coftal_4 | BM13: curolog_4 | BN13: ciotros_4 | BO13: mhosmg_5 | BP13: mhosneum_5 | BQ13: mhoscard_5 | BR13: mhosneur_5 | BS13: mhosgast_5 | BT13: mhosderm_5 | BU13: mhosnefro_5 | BV13: mhossiqui_5 | BW13: mhosotrc_5 | BX13: ccgen_5 | BY13: ctraum_5 | BZ13: cotorrin_5 | CA13: coftal_5 | CB13: curolog_5 | CC13: ciotros_5 | CD13: mhosmg_6 | CE13: mhosneum_6 | CF13: mhoscard_6 | CG13: mhosneur_6 | CH13: mhosgast_6 | CI13: mhosderm_6 | CJ13: mhosnefro_6 | CK13: mhossiqui_6 | CL13: mhosotrc_6 | CM13: ccgen_6 | CN13: ctraum_6 | CO13: cotorrin_6 | CP13: coftal_6 | CQ13: curolog_6 | CR13: ciotros_6 | CS13: mhosmg_7 | CT13: mhosneum_7 | CU13: mhoscard_7 | CV13: mhosneur_7 | CW13: mhosgast_7 | CX13: mhosderm_7 | CY13: mhosnefro_7 | CZ13: mhossiqui_7 | DA13: mhosotrc_7 | DB13: ccgen_7 | DC13: ctraum_7 | DD13: cotorrin_7 | DE13: coftal_7 | DF13: curolog_7 | DG13: ciotros_7 | DH13: mhosmg_8 | DI13: mhosneum_8 | DJ13: mhoscard_8 | DK13: mhosneur_8 | DL13: mhosgast_8 | DM13: mhosderm_8 | DN13: mhosnefro_8 | DO13: mhossiqui_8 | DP13: mhosotrc_8 | DQ13: ccgen_8 | DR13: ctraum_8 | DS13: cotorrin_8 | DT13: coftal_8 | DU13: curolog_8 | DV13: ciotros_8 | DW13: mhosmg_9 | DX13: mhosneum_9 | DY13: mhoscard_9 | DZ13: mhosneur_9 | EA13: mhosgast_9 | EB13: mhosderm_9 | EC13: mhosnefro_9 | ED13: mhossiqui_9 | EE13: mhosotrc_9 | EF13: ccgen_9 | EG13: ctraum_9 | EH13: cotorrin_9 | EI13: coftal_9 | EJ13: curolog_9 | EK13: ciotros_9 | EL13: obs_gin_1 | EM13: obs_gin_2 | EN13: obs_gin_3 | EO13: obs_gin_4 | EP13: obs_gin_5 | EQ13: obs_gin_6 | ER13: obs_gin_7 | ES13: obs_gin_8 | ET13: obs_gin_9 | EU13: obsuci_1 | EV13: obsuci_2 | EW13: obsuci_3 | EX13: obsuci_4 | EY13: obsuci_5 | EZ13: obsuci_6 | FA13: obsuci_7 | FB13: obsuci_8 | FC13: obsuci_9 | FD13: pesc4_1 | FE13: pesc4_2 | FF13: pesc4_3 | FG13: pesc4_4 | FH13: pesc4_5 | FI13: pesc4_6 | FJ13: pesc4_7 | FK13: pesc4_8 | FL13: pesc4_9 | FM13: pesc5_1 | FN13: pesc5_2 | FO13: pesc5_3 | FP13: pesc5_4 | FQ13: pesc5_5 | FR13: pesc5_6 | FS13: pesc5_7 | FT13: pesc5_8 | FU13: pesc5_9 | FV13: pesc6_1 | FW13: pesc6_2 | FX13: pesc6_3 | FY13: pesc6_4 | FZ13: pesc6_5 | GA13: pesc6_6 | GB13: pesc6_7 | GC13: pesc6_8 | GD13: pesc6_9 | GE13: plact_1 | GF13: plact_2 | GG13: plact_3 | GH13: plact_4 | GI13: plact_5 | GJ13: plact_6 | GK13: plact_7 | GL13: plact_8 | GM13: plact_9 | GN13: pneona_1 | GO13: pneona_2 | GP13: pneona_3 | GQ13: pneona_4 | GR13: pneona_5 | GS13: pneona_6 | GT13: pneona_7 | GU13: pneona_8 | GV13: pneona_9 | GW13: ginec_1 | GX13: ginec_2 | GY13: ginec_3 | GZ13: ginec_4 | HA13: ginec_5 | HB13: ginec_6 | HC13: ginec_7 | HD13: ginec_8 | HE13: ginec_9
A14: Total | B14: 1729 | D14: 0 | I14: 0 | J14: 0 | K14: 0 | L14: 0 | M14: 0 | N14: 0 | O14: 36 | P14: 2047 | Q14: 805 | R14: 0 | S14: 0 | T14: 0 | U14: 28 | V14: 1095 | W14: 0 | X14: 0 | Y14: 0 | Z14: 0 | AA14: 0 | AB14: 0 | AC14: 0 | AD14: 9 | AE14: 1330 | AF14: 497 | AG14: 0 | AH14: 0 | AI14: 0 | AJ14: 17 | AK14: 4983 | AL14: 0 | AM14: 0 | AN14: 0 | AO14: 0 | AP14: 0 | AQ14: 0 | AR14: 0 | AS14: 52 | AT14: 5199 | AU14: 1222 | AV14: 0 | AW14: 0 | AX14: 0 | AY14: 64 | AZ14: 192 | BA14: 0 | BB14: 0 | BC14: 0 | BD14: 0 | BE14: 0 | BF14: 0 | BG14: 0 | BH14: 1 | BI14: 227 | BJ14: 36 | BK14: 0 | BL14: 0 | BM14: 0 | BN14: 3 | BO14: 182 | BP14: 0 | BQ14: 0 | BR14: 0 | BS14: 0 | BT14: 0 | BU14: 0 | BV14: 0 | BW14: 0 | BX14: 182 | BY14: 24 | BZ14: 0 | CA14: 0 | CB14: 0 | CC14: 3 | CD14: 4958 | CE14: 0 | CF14: 0 | CG14: 0 | CH14: 0 | CI14: 0 | CJ14: 0 | CK14: 0 | CL14: 53 | CM14: 5247 | CN14: 1229 | CO14: 0 | CP14: 0 | CQ14: 0 | CR14: 64 | CS14: 32855 | CT14: 0 | CU14: 0 | CV14: 0 | CW14: 0 | CX14: 0 | CY14: 0 | CZ14: 0 | DA14: 167 | DB14: 40710 | DC14: 14769 | DD14: 0 | DE14: 0 | DF14: 0 | DG14: 695 | DH14: 36338 | DI14: 0 | DJ14: 0 | DK14: 0 | DL14: 0 | DM14: 0 | DN14: 0 | DO14: 0 | DP14: 153 | DQ14: 42783 | DR14: 15988 | DS14: 0 | DT14: 0 | DU14: 0 | DV14: 420 | DW14: 58284 | DX14: 0 | DY14: 0 | DZ14: 0 | EA14: 0 | EB14: 0 | EC14: 0 | ED14: 0 | EE14: 1095 | EF14: 67630 | EG14: 24500 | EH14: 0 | EI14: 0 | EJ14: 0 | EK14: 868 | EL14: 1265 | EM14: 732 | EN14: 9808 | EO14: 22 | EP14: 110 | EQ14: 9716 | ER14: 23640 | ES14: 27209 | ET14: 43212 | EU14: 69 | EV14: 55 | EW14: 229 | EX14: 54 | EY14: 86 | EZ14: 194 | FA14: 1032 | FB14: 1844 | FC14: 2007 | FD14: 181 | FE14: 110 | FF14: 1017 | FG14: 5 | FH14: 7 | FI14: 1003 | FJ14: 4020 | FK14: 4282 | FL14: 7179 | FM14: 15 | FN14: 6 | FO14: 49 | FP14: 0 | FQ14: 1 | FR14: 48 | FS14: 224 | FT14: 243 | FU14: 791 | FV14: 409 | FW14: 271 | FX14: 1258 | FY14: 18 | FZ14: 20 | GA14: 1265 | GB14: 8219 | GC14: 8862 | GD14: 14007 | GE14: 709 | GF14: 316 | GG14: 1427 | GH14: 11 | GI14: 9 | GJ14: 1383 | GK14: 9146 | GL14: 10973 | GM14: 23239 | GN14: 329 | GO14: 242 | GP14: 1248 | GQ14: 0 | GR14: 6 | GS14: 1240 | GT14: 7729 | GU14: 9015 | GV14: 12351 | GW14: 541 | GX14: 295 | GY14: 3099 | GZ14: 100 | HA14: 35 | HB14: 3167 | HC14: 8764 | HD14: 11047 | HE14: 19346
D15: AÑO | H15: INI | J15: FIN
D16: =INICIO!B43 -> 2025 | G16: MES | H16: 1 | I16: A | J16: 3
A19: INTERVENCIONES QUIRURGICAS : | C19: N° | E19: INTERVENCIONES QUIRURGICAS : | J19: N"
A20: CIRUGIA MAYOR | B20: TOTAL | C20: =IF($H$16=$J$16,GETPIVOTDATA(" t37",INICIO!$A$77,"mes",$H$16),SUM(GETPIVOTDATA(" t37",INICIO!$A$77))) -> 161 | E20: N° DE UTILIZADAS SALA DE OPERACIONES | J20: 1
B21: CESAREAS | C21: =IF($H$16=$J$146,GETPIVOTDATA(" t38",INICIO!$A$77,"mes",$H$16),SUM(GETPIVOTDATA(" t38",INICIO!$A$77))) -> 48 | E21: ATENCIONES EN U. HEMODIALISIS | J21: =IF($H$16=$J$146,GETPIVOTDATA(" t55",INICIO!$A$77,"mes",$H$16),SUM(GETPIVOTDATA(" t55",INICIO!$A$77))) -> 0
B22: HISTERECTOMIA | C22: =IF($H$16=$J$146,GETPIVOTDATA(" t39",INICIO!$A$77,"mes",$H$16),SUM(GETPIVOTDATA(" t39",INICIO!$A$77))) -> 3 | E22: N° DE INTERVENCIONES QUIRURGICAS PROGRAMADAS | J22: =IF($H$16=$J$146,GETPIVOTDATA(" t56",INICIO!$A$77,"mes",$H$16),SUM(GETPIVOTDATA(" t56",INICIO!$A$77))) -> 148
B23: TRAUMATOLOGIA ORTOPEDIA | C23: =IF($H$16=$J$146,GETPIVOTDATA(" t40",INICIO!$A$77,"mes",$H$16),SUM(GETPIVOTDATA(" t40",INICIO!$A$77))) -> 12 | E23: N° DE INTERVENCIONES QUIRURGICAS SUSPENDIDAS | J23: =IF($H$16=$J$146,GETPIVOTDATA(" t57",INICIO!$A$77,"mes",$H$16),SUM(GETPIVOTDATA(" t57",INICIO!$A$77))) -> 0
B24: CARDIOVASCULARES | C24: =IF($H$16=$J$146,GETPIVOTDATA(" t41",INICIO!$A$77,"mes",$H$16),SUM(GETPIVOTDATA(" t41",INICIO!$A$77))) -> 0 | E24: N° DE INTERVENCIONES QUIRURGICAS REALIZADAS | J24: =IF($H$16=$J$146,GETPIVOTDATA(" t58",INICIO!$A$77,"mes",$H$16),SUM(GETPIVOTDATA(" t58",INICIO!$A$77))) -> 252
B25: NEUROLOGICAS | C25: =IF($H$16=$J$146,GETPIVOTDATA(" t42",INICIO!$A$77,"mes",$H$16),SUM(GETPIVOTDATA(" t42",INICIO!$A$77))) -> 0 | E25: N° HORAS QUIRURGICAS DISPONIBLES | J25: =IF($H$16=$J$146,GETPIVOTDATA(" t59",INICIO!$A$77,"mes",$H$16),SUM(GETPIVOTDATA(" t59",INICIO!$A$77))) -> 2160
B26: TORAXICAS | C26: =IF($H$16=$J$146,GETPIVOTDATA(" t43",INICIO!$A$77,"mes",$H$16),SUM(GETPIVOTDATA(" t43",INICIO!$A$77))) -> 0 | E26: N° HORAS QUIRURGICAS EFECTIVAS | J26: =IF($H$16=$J$146,GETPIVOTDATA(" t60",INICIO!$A$77,"mes",$H$16),SUM(GETPIVOTDATA(" t60",INICIO!$A$77))) -> 309
B27: UROLOGICAS | C27: =IF($H$16=$J$146,GETPIVOTDATA(" t44",INICIO!$A$77,"mes",$H$16),SUM(GETPIVOTDATA(" t44",INICIO!$A$77))) -> 0 | E27: N° PACIENTES OPERADOS | J27: =IF($H$16=$J$146,GETPIVOTDATA(" t61",INICIO!$A$77,"mes",$H$16),SUM(GETPIVOTDATA(" t61",INICIO!$A$77))) -> 241
B28: ONCOLOGICAS | C28: =IF($H$16=$J$146,GETPIVOTDATA(" t45",INICIO!$A$77,"mes",$H$16),SUM(GETPIVOTDATA(" t45",INICIO!$A$77))) -> 0 | E28: N° PACIENTES REINTERVENIDOS | J28: =IF($H$16=$J$146,GETPIVOTDATA(" t62",INICIO!$A$77,"mes",$H$16),SUM(GETPIVOTDATA(" t62",INICIO!$A$77))) -> 2
B29: GASTROINTESTINALES | C29: =IF($H$16=$J$146,GETPIVOTDATA(" t46",INICIO!$A$77,"mes",$H$16),SUM(GETPIVOTDATA(" t46",INICIO!$A$77))) -> 89 | E29: N° PACIENTES CON ENCEFALOPATIA HIPOXICA POST ACTO QUIRURGICO | J29: =IF($H$16=$J$146,GETPIVOTDATA(" t63",INICIO!$A$77,"mes",$H$16),SUM(GETPIVOTDATA(" t63",INICIO!$A$77))) -> 0
B30: OTRAS CIRUGIAS MAYORES | C30: =IF($H$16=$J$146,GETPIVOTDATA(" t47",INICIO!$A$77,"mes",$H$16),SUM(GETPIVOTDATA(" t47",INICIO!$A$77))) -> 9 | E30: N° DE DEFUNCIONES CENTRO QUIRURGICO | J30: =IF($H$16=$J$146,GETPIVOTDATA(" t64",INICIO!$A$77,"mes",$H$16),SUM(GETPIVOTDATA(" t64",INICIO!$A$77))) -> 0
A31: CIRUGIA MENOR | B31: TOTAL | C31: =IF($H$16=$J$146,GETPIVOTDATA(" t48",INICIO!$A$77,"mes",$H$16),SUM(GETPIVOTDATA(" t48",INICIO!$A$77))) -> 91 | E31: N° NECROPSIAS REALIZADAS | J31: =IF($H$16=$J$146,GETPIVOTDATA(" t65",INICIO!$A$77,"mes",$H$16),SUM(GETPIVOTDATA(" t65",INICIO!$A$77))) -> 0
B32: PQRR:LIGADURA DE TROMPAS | C32: =IF($H$16=$J$146,GETPIVOTDATA(" t49",INICIO!$A$77,"mes",$H$16),SUM(GETPIVOTDATA(" t49",INICIO!$A$77))) -> 10
B33: PQRR:VASECTOMIA | C33: =IF($H$16=$J$146,GETPIVOTDATA(" t50",INICIO!$A$77,"mes",$H$16),SUM(GETPIVOTDATA(" t50",INICIO!$A$77))) -> 0
B34: LEGRADO UTERINO POR ABORTO | C34: =IF($H$16=$J$146,GETPIVOTDATA(" t51",INICIO!$A$77,"mes",$H$16),SUM(GETPIVOTDATA(" t51",INICIO!$A$77))) -> 19
B35: LEGRADO UTERINO POR OTRAS CAUSAS | C35: =IF($H$16=$J$146,GETPIVOTDATA(" t52",INICIO!$A$77,"mes",$H$16),SUM(GETPIVOTDATA(" t52",INICIO!$A$77))) -> 14
B36: OTRAS CIRUGIAS MENORES | C36: =IF($H$16=$J$146,GETPIVOTDATA(" t53",INICIO!$A$77,"mes",$H$16),SUM(GETPIVOTDATA(" t53",INICIO!$A$77))) -> 48
A38: Descripcion | C38: Hospital | D38: Periferie
A39: Partos | C39: =IF($H$16=$J$146,GETPIVOTDATA(" t66",INICIO!$A$77,"mes",$H$16),SUM(GETPIVOTDATA(" t66",INICIO!$A$77))) -> 112 | D39: =IF($H$16=$J$146,GETPIVOTDATA(" t77",INICIO!$A$77,"mes",$H$16),SUM(GETPIVOTDATA(" t77",INICIO!$A$77))) -> 0
A40: Nacido vivo | C40: =IF($H$16=$J$146,GETPIVOTDATA(" t67",INICIO!$A$77,"mes",$H$16),SUM(GETPIVOTDATA(" t67",INICIO!$A$77))) -> 111 | D40: =IF($H$16=$J$146,GETPIVOTDATA(" t78",INICIO!$A$77,"mes",$H$16),SUM(GETPIVOTDATA(" t78",INICIO!$A$77))) -> 0 | L40: ABORTOS | M40: GEST | N40: TASA
A41: Defun.Fetal | C41: =IF($H$16=$J$146,GETPIVOTDATA(" t68",INICIO!$A$77,"mes",$H$16),SUM(GETPIVOTDATA(" t68",INICIO!$A$77))) -> 1 | D41: =IF($H$16=$J$146,GETPIVOTDATA(" t79",INICIO!$A$77,"mes",$H$16),SUM(GETPIVOTDATA(" t79",INICIO!$A$77))) -> 0 | L41: 72 | M41: 298 | N41: =C42/M41*100 -> 6.040268456
A42: Abortos | C42: =IF($H$16=$J$146,GETPIVOTDATA(" t69",INICIO!$A$77,"mes",$H$16),SUM(GETPIVOTDATA(" t69",INICIO!$A$77))) -> 18 | D42: =IF($H$16=$J$146,GETPIVOTDATA(" t80",INICIO!$A$77,"mes",$H$16),SUM(GETPIVOTDATA(" t80",INICIO!$A$77))) -> 0
A43: Def.Materna | C43: =IF($H$16=$J$146,GETPIVOTDATA(" t70",INICIO!$A$77,"mes",$H$16),SUM(GETPIVOTDATA(" t70",INICIO!$A$77))) -> 0 | D43: =IF($H$16=$J$146,GETPIVOTDATA(" t81",INICIO!$A$77,"mes",$H$16),SUM(GETPIVOTDATA(" t81",INICIO!$A$77))) -> 0
A44: 80:Pac Egres | C44: =IF($H$16=$J$146,GETPIVOTDATA(" t71",INICIO!$A$77,"mes",$H$16),SUM(GETPIVOTDATA(" t71",INICIO!$A$77))) -> 409 | D44: =IF($H$16=$J$146,GETPIVOTDATA(" t82",INICIO!$A$77,"mes",$H$16),SUM(GETPIVOTDATA(" t82",INICIO!$A$77))) -> 0
A45: 81 Vivos | C45: =IF($H$16=$J$146,GETPIVOTDATA(" t72",INICIO!$A$77,"mes",$H$16),SUM(GETPIVOTDATA(" t72",INICIO!$A$77))) -> 409 | D45: =IF($H$16=$J$146,GETPIVOTDATA(" t83",INICIO!$A$77,"mes",$H$16),SUM(GETPIVOTDATA(" t83",INICIO!$A$77))) -> 0
A46: 82 fallecidos | C46: =IF($H$16=$J$146,GETPIVOTDATA(" t73",INICIO!$A$77,"mes",$H$16),SUM(GETPIVOTDATA(" t73",INICIO!$A$77))) -> 0 | D46: =IF($H$16=$J$146,GETPIVOTDATA(" t84",INICIO!$A$77,"mes",$H$16),SUM(GETPIVOTDATA(" t84",INICIO!$A$77))) -> 0
B47: 83 <24 hrs | C47: =IF($H$16=$J$146,GETPIVOTDATA(" t74",INICIO!$A$77,"mes",$H$16),SUM(GETPIVOTDATA(" t74",INICIO!$A$77))) -> 0 | D47: =IF($H$16=$J$146,GETPIVOTDATA(" t85",INICIO!$A$77,"mes",$H$16),SUM(GETPIVOTDATA(" t85",INICIO!$A$77))) -> 0
B48: 84 24-48 hrs | C48: =IF($H$16=$J$146,GETPIVOTDATA(" t75",INICIO!$A$77,"mes",$H$16),SUM(GETPIVOTDATA(" t75",INICIO!$A$77))) -> 0 | D48: =IF($H$16=$J$146,GETPIVOTDATA(" t86",INICIO!$A$77,"mes",$H$16),SUM(GETPIVOTDATA(" t86",INICIO!$A$77))) -> 0
B49: 85 >48 hrs | C49: =IF($H$16=$J$146,GETPIVOTDATA(" t76",INICIO!$A$77,"mes",$H$16),SUM(GETPIVOTDATA(" t76",INICIO!$A$77))) -> 0 | D49: =IF($H$16=$J$146,GETPIVOTDATA(" t87",INICIO!$A$77,"mes",$H$16),SUM(GETPIVOTDATA(" t87",INICIO!$A$77))) -> 0
A51: EMERGENCIAS :
A52: SALA DE OBSERVACION | C52: <24horas | D52: >=24 Horas
A53: N° Pacientes en Sala de Observacion | C53: =IF($H$16=$J$146,GETPIVOTDATA(" t88",INICIO!$A$77,"mes",$H$16),SUM(GETPIVOTDATA(" t88",INICIO!$A$77))) -> 178 | D53: =IF($H$16=$J$146,GETPIVOTDATA(" t90",INICIO!$A$77,"mes",$H$16),SUM(GETPIVOTDATA(" t90",INICIO!$A$77))) -> 1
A54: N° Reingresoso en sala de Observacion | C54: =IF($H$16=$J$146,GETPIVOTDATA(" t89",INICIO!$A$77,"mes",$H$16),SUM(GETPIVOTDATA(" t89",INICIO!$A$77))) -> 0 | D54: =IF($H$16=$J$146,GETPIVOTDATA(" t91",INICIO!$A$77,"mes",$H$16),SUM(GETPIVOTDATA(" t91",INICIO!$A$77))) -> 0

Sheet SES3
A1: DIRECCION REGIONAL DE SALUD CUSCO
A2: DIRECCION DE ESTADISTICA E INFORMATICA
A3: INFORMACION MENSUAL DE SES39
A6: RED DE SALUD | D6: MICRO RED | I6: PROVINCIA
A7: =MID(INICIO!E31,1,50) -> (Todas) | D7: =MID(INICIO!E32,1,50) -> (Todas) | I7: =MID(INICIO!E34,1,50) -> (Todas)
O8: INI | Q8: FIN
A9: ESTABLECIMIENTO | D9: DISTRITO | I9: AÑO | J9: =INICIO!B43 -> 2025 | N9: MES | O9: 1 | P9: A | Q9: 3
A10: =MID(INICIO!E33,1,50) -> (Todas) | D10: =MID(INICIO!E35,1,50) -> (Todas)
B14: Datos
B15: Suma de h1 | C15: Suma de h2 | D15: Suma de h3 | E15: Suma de h4 | F15: Suma de h5 | G15: Suma de h6 | H15: Suma de h7 | I15: Suma de h8 | J15: Suma de h9 | K15: Suma de h10 | L15: Suma de h11 | M15: Suma de h12 | N15: Suma de h13 | O15: Suma de h14 | P15: Suma de h15 | Q15: Suma de h16 | R15: Suma de h17 | S15: Suma de h18 | T15: Suma de h19 | U15: Suma de h20 | V15: Suma de h21 | W15: Suma de h22 | X15: Suma de h23 | Y15: Suma de h24 | Z15: Suma de h25 | AA15: Suma de h26 | AB15: Suma de h27 | AC15: Suma de h28 | AD15: Suma de h29 | AE15: Suma de h30 | AF15: Suma de h31 | AG15: Suma de h32 | AH15: Suma de h33 | AI15: Suma de ce1 | AJ15: Suma de ce2 | AK15: Suma de ce3 | AL15: Suma de ce4 | AM15: Suma de ce5 | AN15: Suma de ce6 | AO15: Suma de ce7 | AP15: Suma de ce8 | AQ15: Suma de ce9 | AR15: Suma de ce10 | AS15: Suma de ce11 | AT15: Suma de ce12 | AU15: Suma de ce13 | AV15: Suma de ce14 | AW15: Suma de ce15 | AX15: Suma de ce16 | AY15: Suma de ce17 | AZ15: Suma de ce18 | BA15: Suma de ce19 | BB15: Suma de ce20 | BC15: Suma de ce21 | BD15: Suma de ce22 | BE15: Suma de ce23 | BF15: Suma de ce24 | BG15: Suma de ce25 | BH15: Suma de ce26 | BI15: Suma de ce27 | BJ15: Suma de ce28 | BK15: Suma de ce29 | BL15: Suma de ce30 | BM15: Suma de ce31 | BN15: Suma de ce32 | BO15: Suma de ce33 | BP15: Suma de e1 | BQ15: Suma de e2 | BR15: Suma de e3 | BS15: Suma de e4 | BT15: Suma de e5 | BU15: Suma de e6 | BV15: Suma de e7 | BW15: Suma de e8 | BX15: Suma de e9 | BY15: Suma de e10 | BZ15: Suma de e11 | CA15: Suma de e12 | CB15: Suma de e13 | CC15: Suma de e14 | CD15: Suma de e15 | CE15: Suma de e16 | CF15: Suma de e17 | CG15: Suma de e18 | CH15: Suma de e19 | CI15: Suma de e20 | CJ15: Suma de e21 | CK15: Suma de e22 | CL15: Suma de e23 | CM15: Suma de e24 | CN15: Suma de e25 | CO15: Suma de e26 | CP15: Suma de e27 | CQ15: Suma de e28 | CR15: Suma de e29 | CS15: Suma de e30 | CT15: Suma de e31 | CU15: Suma de e32 | CV15: Suma de e33
A16: Total | B16: 53393 | C16: 29343 | D16: 103895 | E16: 478 | F16: 5343 | G16: 2 | H16: 2773 | I16: 1 | J16: 293 | K16: 0 | L16: 21072 | M16: 891 | N16: 182 | O16: 1 | P16: 10 | Q16: 12 | R16: 134 | S16: 20173 | T16: 210294 | U16: 39449 | V16: 34 | W16: 0 | X16: 13680 | Y16: 2844 | Z16: 326 | AA16: 20068 | AB16: 744 | AC16: 88967 | AD16: 805 | AE16: 2560 | AF16: 97110 | AG16: 363800 | AH16: 222886 | AI16: 280 | AJ16: 2308 | AK16: 1243497 | AL16: 1094 | AM16: 9729 | AN16: 284 | AO16: 16613 | AP16: 1304 | AQ16: 2490 | AR16: 275 | AS16: 71934 | AT16: 8128 | AU16: 6399 | AV16: 874 | AW16: 458 | AX16: 206 | AY16: 958 | AZ16: 219802 | BA16: 22426 | BB16: 3876 | BC16: 256 | BD16: 721 | BE16: 3167 | BF16: 82 | BG16: 77 | BH16: 3445 | BI16: 1929 | BJ16: 1562099 | BK16: 28119 | BL16: 19426 | BM16: 45036 | BN16: 71206 | BO16: 7202 | BP16: 277 | BQ16: 3341 | BR16: 55903 | BS16: 2113 | BT16: 9959 | BU16: 4149 | BV16: 697 | BW16: 700 | BX16: 10 | BY16: 1 | BZ16: 18866 | CA16: 11902 | CB16: 3568 | CC16: 49 | CD16: 155 | CE16: 0 | CF16: 183 | CG16: 22256 | CH16: 11221 | CI16: 6748 | CJ16: 362 | CK16: 30 | CL16: 1212 | CM16: 770 | CN16: 264 | CO16: 0 | CP16: 353 | CQ16: 22941 | CR16: 6009 | CS16: 12891 | CT16: 11465 | CU16: 10317 | CV16: 12160
A19: Tipo de Procedimiento | C19: Total | D19: Hospitali. | E19: Consul.Ext. | F19: Emerg | H19: Tipo de Procedimiento | K19: Total | L19: Hospitali. | M19: Consul.Ext. | O19: Emerg
A20: NUMERO TOTAL DE RACIONES | C20: =SUM(D20:F20) -> 8059 | D20: =IF($O$9=$Q$9,GETPIVOTDATA(" u01",INICIO!$A$102,"mes",$O$9),SUM(GETPIVOTDATA(" u01",INICIO!$A$102))) -> 7541 | E20: =IF($O$9=$Q$9,GETPIVOTDATA(" u06",INICIO!$A$102,"mes",$O$9),SUM(GETPIVOTDATA(" u06",INICIO!$A$102))) -> 0 | F20: =IF($O$9=$Q$9,GETPIVOTDATA(" u11",INICIO!$A$102,"mes",$O$9),SUM(GETPIVOTDATA(" u11",INICIO!$A$102))) -> 518 | H20: OTROS SERVICIOS A DEMANDA | K20: =SUM(L20:Q20) -> 24619 | L20: =IF($O$9=$Q$9,GETPIVOTDATA(" u88",INICIO!$A$102,"mes",$O$9),SUM(GETPIVOTDATA(" u88",INICIO!$A$102))) -> 11389 | M20: =IF($O$9=$Q$9,GETPIVOTDATA(" u111",INICIO!$A$102,"mes",$O$9),SUM(GETPIVOTDATA(" u111",INICIO!$A$102))) -> 10009 | O20: =IF($O$9=$Q$9,GETPIVOTDATA(" u134",INICIO!$A$102,"mes",$O$9),SUM(GETPIVOTDATA(" u134",INICIO!$A$102))) -> 3221
A21: Para Pacientes | C21: =SUM(D21:F21) -> 2911 | D21: =IF($O$9=$Q$9,GETPIVOTDATA(" u02",INICIO!$A$102,"mes",$O$9),SUM(GETPIVOTDATA(" u02",INICIO!$A$102))) -> 2911 | E21: =IF($O$9=$Q$9,GETPIVOTDATA(" u07",INICIO!$A$102,"mes",$O$9),SUM(GETPIVOTDATA(" u07",INICIO!$A$102))) -> 0 | F21: =IF($O$9=$Q$9,GETPIVOTDATA(" u12",INICIO!$A$102,"mes",$O$9),SUM(GETPIVOTDATA(" u12",INICIO!$A$102))) -> 0 | H21: - Curaciones | K21: =SUM(L21:Q21) -> 494 | L21: =IF($O$9=$Q$9,GETPIVOTDATA(" u89",INICIO!$A$102,"mes",$O$9),SUM(GETPIVOTDATA(" u89",INICIO!$A$102))) -> 155 | M21: =IF($O$9=$Q$9,GETPIVOTDATA(" u112",INICIO!$A$102,"mes",$O$9),SUM(GETPIVOTDATA(" u112",INICIO!$A$102))) -> 124 | O21: =IF($O$9=$Q$9,GETPIVOTDATA(" u135",INICIO!$A$102,"mes",$O$9),SUM(GETPIVOTDATA(" u135",INICIO!$A$102))) -> 215
A22: Para el Personal | C22: 5148 | D22: =IF($O$9=$Q$9,GETPIVOTDATA(" u03",INICIO!$A$102,"mes",$O$9),SUM(GETPIVOTDATA(" u03",INICIO!$A$102))) -> 4630 | E22: =IF($O$9=$Q$9,GETPIVOTDATA(" u08",INICIO!$A$102,"mes",$O$9),SUM(GETPIVOTDATA(" u08",INICIO!$A$102))) -> 0 | F22: =IF($O$9=$Q$9,GETPIVOTDATA(" u13",INICIO!$A$102,"mes",$O$9),SUM(GETPIVOTDATA(" u13",INICIO!$A$102))) -> 518 | H22: - Suturas | K22: 186 | L22: =IF($O$9=$Q$9,GETPIVOTDATA(" u90",INICIO!$A$102,"mes",$O$9),SUM(GETPIVOTDATA(" u90",INICIO!$A$102))) -> 40 | M22: =IF($O$9=$Q$9,GETPIVOTDATA(" u113",INICIO!$A$102,"mes",$O$9),SUM(GETPIVOTDATA(" u113",INICIO!$A$102))) -> 1 | O22: =IF($O$9=$Q$9,GETPIVOTDATA(" u136",INICIO!$A$102,"mes",$O$9),SUM(GETPIVOTDATA(" u136",INICIO!$A$102))) -> 145
A23: X.- (150) Farmacia (Recetas) | C23: 11821 | D23: =IF($O$9=$Q$9,GETPIVOTDATA(" u04",INICIO!$A$102,"mes",$O$9),SUM(GETPIVOTDATA(" u04",INICIO!$A$102))) -> 3190 | E23: =IF($O$9=$Q$9,GETPIVOTDATA(" u09",INICIO!$A$102,"mes",$O$9),SUM(GETPIVOTDATA(" u09",INICIO!$A$102))) -> 7263 | F23: =IF($O$9=$Q$9,GETPIVOTDATA(" u14",INICIO!$A$102,"mes",$O$9),SUM(GETPIVOTDATA(" u14",INICIO!$A$102))) -> 1368 | H23: -Extracción de Puntos | K23: 64 | L23: =IF($O$9=$Q$9,GETPIVOTDATA(" u91",INICIO!$A$102,"mes",$O$9),SUM(GETPIVOTDATA(" u91",INICIO!$A$102))) -> 0 | M23: =IF($O$9=$Q$9,GETPIVOTDATA(" u114",INICIO!$A$102,"mes",$O$9),SUM(GETPIVOTDATA(" u114",INICIO!$A$102))) -> 39 | O23: =IF($O$9=$Q$9,GETPIVOTDATA(" u137",INICIO!$A$102,"mes",$O$9),SUM(GETPIVOTDATA(" u137",INICIO!$A$102))) -> 25
A24: XI Ambulancia (Traslados Pascientes) | C24: 45 | D24: =IF($O$9=$Q$9,GETPIVOTDATA(" u05",INICIO!$A$102,"mes",$O$9),SUM(GETPIVOTDATA(" u05",INICIO!$A$102))) -> 0 | E24: =IF($O$9=$Q$9,GETPIVOTDATA(" u10",INICIO!$A$102,"mes",$O$9),SUM(GETPIVOTDATA(" u10",INICIO!$A$102))) -> 0 | F24: =IF($O$9=$Q$9,GETPIVOTDATA(" u15",INICIO!$A$102,"mes",$O$9),SUM(GETPIVOTDATA(" u15",INICIO!$A$102))) -> 45 | H24: - Extracción de Uña | K24: 8 | L24: =IF($O$9=$Q$9,GETPIVOTDATA(" u92",INICIO!$A$102,"mes",$O$9),SUM(GETPIVOTDATA(" u92",INICIO!$A$102))) -> 0 | M24: =IF($O$9=$Q$9,GETPIVOTDATA(" u115",INICIO!$A$102,"mes",$O$9),SUM(GETPIVOTDATA(" u115",INICIO!$A$102))) -> 2 | O24: =IF($O$9=$Q$9,GETPIVOTDATA(" u138",INICIO!$A$102,"mes",$O$9),SUM(GETPIVOTDATA(" u138",INICIO!$A$102))) -> 6
A25: XII DIAGNOSTICO DE IMÁGENES | C25: 0 | H25: - Extracción de cuerpo Extraño | K25: 13 | L25: =IF($O$9=$Q$9,GETPIVOTDATA(" u93",INICIO!$A$102,"mes",$O$9),SUM(GETPIVOTDATA(" u93",INICIO!$A$102))) -> 0 | M25: =IF($O$9=$Q$9,GETPIVOTDATA(" u116",INICIO!$A$102,"mes",$O$9),SUM(GETPIVOTDATA(" u116",INICIO!$A$102))) -> 0 | O25: =IF($O$9=$Q$9,GETPIVOTDATA(" u139",INICIO!$A$102,"mes",$O$9),SUM(GETPIVOTDATA(" u139",INICIO!$A$102))) -> 13
A26: Total de Procedimientos | C26: 0 | H26: - Cauterizaciones | K26: 0 | L26: =IF($O$9=$Q$9,GETPIVOTDATA(" u94",INICIO!$A$102,"mes",$O$9),SUM(GETPIVOTDATA(" u94",INICIO!$A$102))) -> 0 | M26: =IF($O$9=$Q$9,GETPIVOTDATA(" u117",INICIO!$A$102,"mes",$O$9),SUM(GETPIVOTDATA(" u117",INICIO!$A$102))) -> 0 | O26: =IF($O$9=$Q$9,GETPIVOTDATA(" u140",INICIO!$A$102,"mes",$O$9),SUM(GETPIVOTDATA(" u140",INICIO!$A$102))) -> 0
A27: Tomografias | C27: 0 | D27: =IF($O$9=$Q$9,GETPIVOTDATA(" u16",INICIO!$A$102,"mes",$O$9),SUM(GETPIVOTDATA(" u16",INICIO!$A$102))) -> 0 | E27: =IF($O$9=$Q$9,GETPIVOTDATA(" u32",INICIO!$A$102,"mes",$O$9),SUM(GETPIVOTDATA(" u32",INICIO!$A$102))) -> 0 | F27: =IF($O$9=$Q$9,GETPIVOTDATA(" u48",INICIO!$A$102,"mes",$O$9),SUM(GETPIVOTDATA(" u48",INICIO!$A$102))) -> 0 | H27: - Debridación de Abscesos | K27: 1 | L27: =IF($O$9=$Q$9,GETPIVOTDATA(" u95",INICIO!$A$102,"mes",$O$9),SUM(GETPIVOTDATA(" u95",INICIO!$A$102))) -> 0 | M27: =IF($O$9=$Q$9,GETPIVOTDATA(" u118",INICIO!$A$102,"mes",$O$9),SUM(GETPIVOTDATA(" u118",INICIO!$A$102))) -> 0 | O27: =IF($O$9=$Q$9,GETPIVOTDATA(" u141",INICIO!$A$102,"mes",$O$9),SUM(GETPIVOTDATA(" u141",INICIO!$A$102))) -> 1
A28: Resonancia Magnatica | C28: 0 | D28: =IF($O$9=$Q$9,GETPIVOTDATA(" u17",INICIO!$A$102,"mes",$O$9),SUM(GETPIVOTDATA(" u17",INICIO!$A$102))) -> 0 | E28: =IF($O$9=$Q$9,GETPIVOTDATA(" u33",INICIO!$A$102,"mes",$O$9),SUM(GETPIVOTDATA(" u33",INICIO!$A$102))) -> 0 | F28: =IF($O$9=$Q$9,GETPIVOTDATA(" u49",INICIO!$A$102,"mes",$O$9),SUM(GETPIVOTDATA(" u49",INICIO!$A$102))) -> 0 | H28: - Inyectable intramuscular | K28: 779 | L28: =IF($O$9=$Q$9,GETPIVOTDATA(" u96",INICIO!$A$102,"mes",$O$9),SUM(GETPIVOTDATA(" u96",INICIO!$A$102))) -> 231 | M28: =IF($O$9=$Q$9,GETPIVOTDATA(" u119",INICIO!$A$102,"mes",$O$9),SUM(GETPIVOTDATA(" u119",INICIO!$A$102))) -> 254 | O28: =IF($O$9=$Q$9,GETPIVOTDATA(" u142",INICIO!$A$102,"mes",$O$9),SUM(GETPIVOTDATA(" u142",INICIO!$A$102))) -> 294
A29: 146.RADIODIAG. placas radiográficos | C29: 0 | D29: =IF($O$9=$Q$9,GETPIVOTDATA(" u18",INICIO!$A$102,"mes",$O$9),SUM(GETPIVOTDATA(" u18",INICIO!$A$102))) -> 0 | E29: =IF($O$9=$Q$9,GETPIVOTDATA(" u34",INICIO!$A$102,"mes",$O$9),SUM(GETPIVOTDATA(" u34",INICIO!$A$102))) -> 0 | F29: =IF($O$9=$Q$9,GETPIVOTDATA(" u50",INICIO!$A$102,"mes",$O$9),SUM(GETPIVOTDATA(" u50",INICIO!$A$102))) -> 0 | H29: - Inyectable Endovenoso | K29: 5793 | L29: =IF($O$9=$Q$9,GETPIVOTDATA(" u97",INICIO!$A$102,"mes",$O$9),SUM(GETPIVOTDATA(" u97",INICIO!$A$102))) -> 3430 | M29: =IF($O$9=$Q$9,GETPIVOTDATA(" u120",INICIO!$A$102,"mes",$O$9),SUM(GETPIVOTDATA(" u120",INICIO!$A$102))) -> 1838 | O29: =IF($O$9=$Q$9,GETPIVOTDATA(" u143",INICIO!$A$102,"mes",$O$9),SUM(GETPIVOTDATA(" u143",INICIO!$A$102))) -> 525
B30: Niños | C30: 244 | D30: =IF($O$9=$Q$9,GETPIVOTDATA(" u19",INICIO!$A$102,"mes",$O$9),SUM(GETPIVOTDATA(" u19",INICIO!$A$102))) -> 10 | E30: =IF($O$9=$Q$9,GETPIVOTDATA(" u35",INICIO!$A$102,"mes",$O$9),SUM(GETPIVOTDATA(" u35",INICIO!$A$102))) -> 122 | F30: =IF($O$9=$Q$9,GETPIVOTDATA(" u51",INICIO!$A$102,"mes",$O$9),SUM(GETPIVOTDATA(" u51",INICIO!$A$102))) -> 112 | H30: - Fluidoterapia (Venoclisis) | K30: 1746 | L30: =IF($O$9=$Q$9,GETPIVOTDATA(" u98",INICIO!$A$102,"mes",$O$9),SUM(GETPIVOTDATA(" u98",INICIO!$A$102))) -> 777 | M30: =IF($O$9=$Q$9,GETPIVOTDATA(" u121",INICIO!$A$102,"mes",$O$9),SUM(GETPIVOTDATA(" u121",INICIO!$A$102))) -> 447 | O30: =IF($O$9=$Q$9,GETPIVOTDATA(" u144",INICIO!$A$102,"mes",$O$9),SUM(GETPIVOTDATA(" u144",INICIO!$A$102))) -> 522
B31: Adolescentes | C31: 100 | D31: =IF($O$9=$Q$9,GETPIVOTDATA(" u20",INICIO!$A$102,"mes",$O$9),SUM(GETPIVOTDATA(" u20",INICIO!$A$102))) -> 4 | E31: =IF($O$9=$Q$9,GETPIVOTDATA(" u36",INICIO!$A$102,"mes",$O$9),SUM(GETPIVOTDATA(" u36",INICIO!$A$102))) -> 57 | F31: =IF($O$9=$Q$9,GETPIVOTDATA(" u52",INICIO!$A$102,"mes",$O$9),SUM(GETPIVOTDATA(" u52",INICIO!$A$102))) -> 39 | H31: - Taponamiento Nasal | K31: 10 | L31: =IF($O$9=$Q$9,GETPIVOTDATA(" u99",INICIO!$A$102,"mes",$O$9),SUM(GETPIVOTDATA(" u99",INICIO!$A$102))) -> 1 | M31: =IF($O$9=$Q$9,GETPIVOTDATA(" u122",INICIO!$A$102,"mes",$O$9),SUM(GETPIVOTDATA(" u122",INICIO!$A$102))) -> 0 | O31: =IF($O$9=$Q$9,GETPIVOTDATA(" u145",INICIO!$A$102,"mes",$O$9),SUM(GETPIVOTDATA(" u145",INICIO!$A$102))) -> 9
B32: Joven | C32: 144 | D32: =IF($O$9=$Q$9,GETPIVOTDATA(" u21",INICIO!$A$102,"mes",$O$9),SUM(GETPIVOTDATA(" u21",INICIO!$A$102))) -> 6 | E32: =IF($O$9=$Q$9,GETPIVOTDATA(" u37",INICIO!$A$102,"mes",$O$9),SUM(GETPIVOTDATA(" u37",INICIO!$A$102))) -> 69 | F32: =IF($O$9=$Q$9,GETPIVOTDATA(" u53",INICIO!$A$102,"mes",$O$9),SUM(GETPIVOTDATA(" u53",INICIO!$A$102))) -> 69 | H32: - Lavado de Oído | K32: 6 | L32: =IF($O$9=$Q$9,GETPIVOTDATA(" u100",INICIO!$A$102,"mes",$O$9),SUM(GETPIVOTDATA(" u100",INICIO!$A$102))) -> 3 | M32: =IF($O$9=$Q$9,GETPIVOTDATA(" u123",INICIO!$A$102,"mes",$O$9),SUM(GETPIVOTDATA(" u123",INICIO!$A$102))) -> 3 | O32: =IF($O$9=$Q$9,GETPIVOTDATA(" u146",INICIO!$A$102,"mes",$O$9),SUM(GETPIVOTDATA(" u146",INICIO!$A$102))) -> 0
B33: Adultos | C33: 193 | D33: =IF($O$9=$Q$9,GETPIVOTDATA(" u22",INICIO!$A$102,"mes",$O$9),SUM(GETPIVOTDATA(" u22",INICIO!$A$102))) -> 9 | E33: =IF($O$9=$Q$9,GETPIVOTDATA(" u38",INICIO!$A$102,"mes",$O$9),SUM(GETPIVOTDATA(" u38",INICIO!$A$102))) -> 58 | F33: =IF($O$9=$Q$9,GETPIVOTDATA(" u54",INICIO!$A$102,"mes",$O$9),SUM(GETPIVOTDATA(" u54",INICIO!$A$102))) -> 126 | H33: - Nebulizaciones - Inalaciones | K33: 397 | L33: =IF($O$9=$Q$9,GETPIVOTDATA(" u101",INICIO!$A$102,"mes",$O$9),SUM(GETPIVOTDATA(" u101",INICIO!$A$102))) -> 261 | M33: =IF($O$9=$Q$9,GETPIVOTDATA(" u124",INICIO!$A$102,"mes",$O$9),SUM(GETPIVOTDATA(" u124",INICIO!$A$102))) -> 106 | O33: =IF($O$9=$Q$9,GETPIVOTDATA(" u147",INICIO!$A$102,"mes",$O$9),SUM(GETPIVOTDATA(" u147",INICIO!$A$102))) -> 30
B34: Adultos Mayores | C34: 149 | D34: =IF($O$9=$Q$9,GETPIVOTDATA(" u23",INICIO!$A$102,"mes",$O$9),SUM(GETPIVOTDATA(" u23",INICIO!$A$102))) -> 20 | E34: =IF($O$9=$Q$9,GETPIVOTDATA(" u39",INICIO!$A$102,"mes",$O$9),SUM(GETPIVOTDATA(" u39",INICIO!$A$102))) -> 57 | F34: =IF($O$9=$Q$9,GETPIVOTDATA(" u55",INICIO!$A$102,"mes",$O$9),SUM(GETPIVOTDATA(" u55",INICIO!$A$102))) -> 72 | H34: - Cateterismo (Vesical Gastrico) | K34: 78 | L34: =IF($O$9=$Q$9,GETPIVOTDATA(" u102",INICIO!$A$102,"mes",$O$9),SUM(GETPIVOTDATA(" u102",INICIO!$A$102))) -> 0 | M34: =IF($O$9=$Q$9,GETPIVOTDATA(" u125",INICIO!$A$102,"mes",$O$9),SUM(GETPIVOTDATA(" u125",INICIO!$A$102))) -> 17 | O34: =IF($O$9=$Q$9,GETPIVOTDATA(" u148",INICIO!$A$102,"mes",$O$9),SUM(GETPIVOTDATA(" u148",INICIO!$A$102))) -> 61
A35: Radiografias Odontologicas | C35: 0 | D35: =IF($O$9=$Q$9,GETPIVOTDATA(" u24",INICIO!$A$102,"mes",$O$9),SUM(GETPIVOTDATA(" u24",INICIO!$A$102))) -> 0 | E35: =IF($O$9=$Q$9,GETPIVOTDATA(" u40",INICIO!$A$102,"mes",$O$9),SUM(GETPIVOTDATA(" u40",INICIO!$A$102))) -> 0 | F35: =IF($O$9=$Q$9,GETPIVOTDATA(" u56",INICIO!$A$102,"mes",$O$9),SUM(GETPIVOTDATA(" u56",INICIO!$A$102))) -> 0 | H35: - Colocación de Yesos | K35: 22 | L35: =IF($O$9=$Q$9,GETPIVOTDATA(" u103",INICIO!$A$102,"mes",$O$9),SUM(GETPIVOTDATA(" u103",INICIO!$A$102))) -> 0 | M35: =IF($O$9=$Q$9,GETPIVOTDATA(" u126",INICIO!$A$102,"mes",$O$9),SUM(GETPIVOTDATA(" u126",INICIO!$A$102))) -> 0 | O35: =IF($O$9=$Q$9,GETPIVOTDATA(" u149",INICIO!$A$102,"mes",$O$9),SUM(GETPIVOTDATA(" u149",INICIO!$A$102))) -> 22
A36: ECODIAG. Ecografias gral. | C36: 578 | D36: =IF($O$9=$Q$9,GETPIVOTDATA(" u25",INICIO!$A$102,"mes",$O$9),SUM(GETPIVOTDATA(" u25",INICIO!$A$102))) -> 0 | E36: =IF($O$9=$Q$9,GETPIVOTDATA(" u41",INICIO!$A$102,"mes",$O$9),SUM(GETPIVOTDATA(" u41",INICIO!$A$102))) -> 578 | F36: =IF($O$9=$Q$9,GETPIVOTDATA(" u57",INICIO!$A$102,"mes",$O$9),SUM(GETPIVOTDATA(" u57",INICIO!$A$102))) -> 0 | H36: - Fisio Terapia | K36: 0 | L36: =IF($O$9=$Q$9,GETPIVOTDATA(" u104",INICIO!$A$102,"mes",$O$9),SUM(GETPIVOTDATA(" u104",INICIO!$A$102))) -> 0 | M36: =IF($O$9=$Q$9,GETPIVOTDATA(" u127",INICIO!$A$102,"mes",$O$9),SUM(GETPIVOTDATA(" u127",INICIO!$A$102))) -> 0 | O36: =IF($O$9=$Q$9,GETPIVOTDATA(" u150",INICIO!$A$102,"mes",$O$9),SUM(GETPIVOTDATA(" u150",INICIO!$A$102))) -> 0
A37: OTROS. Endoscopias. | C37: 0 | D37: =IF($O$9=$Q$9,GETPIVOTDATA(" u26",INICIO!$A$102,"mes",$O$9),SUM(GETPIVOTDATA(" u26",INICIO!$A$102))) -> 0 | E37: =IF($O$9=$Q$9,GETPIVOTDATA(" u42",INICIO!$A$102,"mes",$O$9),SUM(GETPIVOTDATA(" u42",INICIO!$A$102))) -> 0 | F37: =IF($O$9=$Q$9,GETPIVOTDATA(" u58",INICIO!$A$102,"mes",$O$9),SUM(GETPIVOTDATA(" u58",INICIO!$A$102))) -> 0 | H37: - Lavado Gastrico | K37: 2 | L37: =IF($O$9=$Q$9,GETPIVOTDATA(" u105",INICIO!$A$102,"mes",$O$9),SUM(GETPIVOTDATA(" u105",INICIO!$A$102))) -> 0 | M37: =IF($O$9=$Q$9,GETPIVOTDATA(" u128",INICIO!$A$102,"mes",$O$9),SUM(GETPIVOTDATA(" u128",INICIO!$A$102))) -> 0 | O37: =IF($O$9=$Q$9,GETPIVOTDATA(" u151",INICIO!$A$102,"mes",$O$9),SUM(GETPIVOTDATA(" u151",INICIO!$A$102))) -> 2
A38: ESPECIALES. Electrocardiogra. | C38: 0 | D38: =IF($O$9=$Q$9,GETPIVOTDATA(" u27",INICIO!$A$102,"mes",$O$9),SUM(GETPIVOTDATA(" u27",INICIO!$A$102))) -> 0 | E38: =IF($O$9=$Q$9,GETPIVOTDATA(" u43",INICIO!$A$102,"mes",$O$9),SUM(GETPIVOTDATA(" u43",INICIO!$A$102))) -> 0 | F38: =IF($O$9=$Q$9,GETPIVOTDATA(" u59",INICIO!$A$102,"mes",$O$9),SUM(GETPIVOTDATA(" u59",INICIO!$A$102))) -> 0 | H38: - Triaje | K38: 6300 | L38: =IF($O$9=$Q$9,GETPIVOTDATA(" u106",INICIO!$A$102,"mes",$O$9),SUM(GETPIVOTDATA(" u106",INICIO!$A$102))) -> 1300 | M38: =IF($O$9=$Q$9,GETPIVOTDATA(" u129",INICIO!$A$102,"mes",$O$9),SUM(GETPIVOTDATA(" u129",INICIO!$A$102))) -> 4305 | O38: =IF($O$9=$Q$9,GETPIVOTDATA(" u152",INICIO!$A$102,"mes",$O$9),SUM(GETPIVOTDATA(" u152",INICIO!$A$102))) -> 695
A39: Audiometrias | C39: 0 | D39: =IF($O$9=$Q$9,GETPIVOTDATA(" u28",INICIO!$A$102,"mes",$O$9),SUM(GETPIVOTDATA(" u28",INICIO!$A$102))) -> 0 | E39: =IF($O$9=$Q$9,GETPIVOTDATA(" u44",INICIO!$A$102,"mes",$O$9),SUM(GETPIVOTDATA(" u44",INICIO!$A$102))) -> 0 | F39: =IF($O$9=$Q$9,GETPIVOTDATA(" u60",INICIO!$A$102,"mes",$O$9),SUM(GETPIVOTDATA(" u60",INICIO!$A$102))) -> 0 | H39: - Referencia | K39: 11 | L39: =IF($O$9=$Q$9,GETPIVOTDATA(" u107",INICIO!$A$102,"mes",$O$9),SUM(GETPIVOTDATA(" u107",INICIO!$A$102))) -> 9 | M39: =IF($O$9=$Q$9,GETPIVOTDATA(" u130",INICIO!$A$102,"mes",$O$9),SUM(GETPIVOTDATA(" u130",INICIO!$A$102))) -> 2 | O39: =IF($O$9=$Q$9,GETPIVOTDATA(" u153",INICIO!$A$102,"mes",$O$9),SUM(GETPIVOTDATA(" u153",INICIO!$A$102))) -> 0
A40: Mamografias | C40: 0 | D40: =IF($O$9=$Q$9,GETPIVOTDATA(" u29",INICIO!$A$102,"mes",$O$9),SUM(GETPIVOTDATA(" u29",INICIO!$A$102))) -> 0 | E40: =IF($O$9=$Q$9,GETPIVOTDATA(" u45",INICIO!$A$102,"mes",$O$9),SUM(GETPIVOTDATA(" u45",INICIO!$A$102))) -> 0 | F40: =IF($O$9=$Q$9,GETPIVOTDATA(" u61",INICIO!$A$102,"mes",$O$9),SUM(GETPIVOTDATA(" u61",INICIO!$A$102))) -> 0 | H40: Contrareferencia | K40: 203 | L40: =IF($O$9=$Q$9,GETPIVOTDATA(" u108",INICIO!$A$102,"mes",$O$9),SUM(GETPIVOTDATA(" u108",INICIO!$A$102))) -> 191 | M40: =IF($O$9=$Q$9,GETPIVOTDATA(" u131",INICIO!$A$102,"mes",$O$9),SUM(GETPIVOTDATA(" u131",INICIO!$A$102))) -> 12 | O40: =IF($O$9=$Q$9,GETPIVOTDATA(" u154",INICIO!$A$102,"mes",$O$9),SUM(GETPIVOTDATA(" u154",INICIO!$A$102))) -> 0
A41: Broncoscopias | C41: 0 | D41: =IF($O$9=$Q$9,GETPIVOTDATA(" u30",INICIO!$A$102,"mes",$O$9),SUM(GETPIVOTDATA(" u30",INICIO!$A$102))) -> 0 | E41: =IF($O$9=$Q$9,GETPIVOTDATA(" u46",INICIO!$A$102,"mes",$O$9),SUM(GETPIVOTDATA(" u46",INICIO!$A$102))) -> 0 | F41: =IF($O$9=$Q$9,GETPIVOTDATA(" u62",INICIO!$A$102,"mes",$O$9),SUM(GETPIVOTDATA(" u62",INICIO!$A$102))) -> 0 | H41: - Administración Tratamiento | K41: 4688 | L41: =IF($O$9=$Q$9,GETPIVOTDATA(" u109",INICIO!$A$102,"mes",$O$9),SUM(GETPIVOTDATA(" u109",INICIO!$A$102))) -> 2697 | M41: =IF($O$9=$Q$9,GETPIVOTDATA(" u132",INICIO!$A$102,"mes",$O$9),SUM(GETPIVOTDATA(" u132",INICIO!$A$102))) -> 1991 | O41: =IF($O$9=$Q$9,GETPIVOTDATA(" u155",INICIO!$A$102,"mes",$O$9),SUM(GETPIVOTDATA(" u155",INICIO!$A$102))) -> 0
A42: - Otros | C42: 0 | D42: =IF($O$9=$Q$9,GETPIVOTDATA(" u31",INICIO!$A$102,"mes",$O$9),SUM(GETPIVOTDATA(" u31",INICIO!$A$102))) -> 0 | E42: =IF($O$9=$Q$9,GETPIVOTDATA(" u47",INICIO!$A$102,"mes",$O$9),SUM(GETPIVOTDATA(" u47",INICIO!$A$102))) -> 0 | F42: =IF($O$9=$Q$9,GETPIVOTDATA(" u63",INICIO!$A$102,"mes",$O$9),SUM(GETPIVOTDATA(" u63",INICIO!$A$102))) -> 0 | H42: - Otros | K42: 3818 | L42: =IF($O$9=$Q$9,GETPIVOTDATA(" u110",INICIO!$A$102,"mes",$O$9),SUM(GETPIVOTDATA(" u110",INICIO!$A$102))) -> 2294 | M42: =IF($O$9=$Q$9,GETPIVOTDATA(" u133",INICIO!$A$102,"mes",$O$9),SUM(GETPIVOTDATA(" u133",INICIO!$A$102))) -> 868 | O42: =IF($O$9=$Q$9,GETPIVOTDATA(" u156",INICIO!$A$102,"mes",$O$9),SUM(GETPIVOTDATA(" u156",INICIO!$A$102))) -> 656
A43: SERVICIOS INTERMEDIOS | H43: XIV Lavanderia | K43: 4716 | L43: =IF($O$9=$Q$9,GETPIVOTDATA(" u157",INICIO!$A$102,"mes",$O$9),SUM(GETPIVOTDATA(" u157",INICIO!$A$102))) -> 3980 | M43: =IF($O$9=$Q$9,GETPIVOTDATA(" u158",INICIO!$A$102,"mes",$O$9),SUM(GETPIVOTDATA(" u158",INICIO!$A$102))) -> 17 | O43: =IF($O$9=$Q$9,GETPIVOTDATA(" u159",INICIO!$A$102,"mes",$O$9),SUM(GETPIVOTDATA(" u159",INICIO!$A$102))) -> 719
A44: SERVICIO DE LABORATORIO | C44: Total | D44: Hospitali. | E44: Consul.Ext. | F44: Emerg | H44: Hemodialisis | K44: 2379 | L44: =IF($O$9=$Q$9,GETPIVOTDATA(" u160",INICIO!$A$102,"mes",$O$9),SUM(GETPIVOTDATA(" u160",INICIO!$A$102))) -> 1938 | M44: =IF($O$9=$Q$9,GETPIVOTDATA(" u162",INICIO!$A$102,"mes",$O$9),SUM(GETPIVOTDATA(" u162",INICIO!$A$102))) -> 4 | O44: =IF($O$9=$Q$9,GETPIVOTDATA(" u164",INICIO!$A$102,"mes",$O$9),SUM(GETPIVOTDATA(" u164",INICIO!$A$102))) -> 437
A45: Ex. bioquimicos | C45: =SUM(D45:F45) -> 4626 | D45: =IF($O$9=$Q$9,GETPIVOTDATA(" u64",INICIO!$A$102,"mes",$O$9),SUM(GETPIVOTDATA(" u64",INICIO!$A$102))) -> 546 | E45: =IF($O$9=$Q$9,GETPIVOTDATA(" u72",INICIO!$A$102,"mes",$O$9),SUM(GETPIVOTDATA(" u72",INICIO!$A$102))) -> 2251 | F45: =IF($O$9=$Q$9,GETPIVOTDATA(" u80",INICIO!$A$102,"mes",$O$9),SUM(GETPIVOTDATA(" u80",INICIO!$A$102))) -> 1829 | H45: Dialisis peritonial | K45: 0 | L45: =IF($O$9=$Q$9,GETPIVOTDATA(" u161",INICIO!$A$102,"mes",$O$9),SUM(GETPIVOTDATA(" u161",INICIO!$A$102))) -> 0 | M45: =IF($O$9=$Q$9,GETPIVOTDATA(" u163",INICIO!$A$102,"mes",$O$9),SUM(GETPIVOTDATA(" u163",INICIO!$A$102))) -> 0 | O45: =IF($O$9=$Q$9,GETPIVOTDATA(" u165",INICIO!$A$102,"mes",$O$9),SUM(GETPIVOTDATA(" u165",INICIO!$A$102))) -> 0
A46: Ex hematologicos | C46: =SUM(D46:F46) -> 4348 | D46: =IF($O$9=$Q$9,GETPIVOTDATA(" u65",INICIO!$A$102,"mes",$O$9),SUM(GETPIVOTDATA(" u65",INICIO!$A$102))) -> 896 | E46: =IF($O$9=$Q$9,GETPIVOTDATA(" u73",INICIO!$A$102,"mes",$O$9),SUM(GETPIVOTDATA(" u73",INICIO!$A$102))) -> 1594 | F46: =IF($O$9=$Q$9,GETPIVOTDATA(" u81",INICIO!$A$102,"mes",$O$9),SUM(GETPIVOTDATA(" u81",INICIO!$A$102))) -> 1858
A47: Ex histologicos | C47: 0 | D47: =IF($O$9=$Q$9,GETPIVOTDATA(" u66",INICIO!$A$102,"mes",$O$9),SUM(GETPIVOTDATA(" u66",INICIO!$A$102))) -> 0 | E47: =IF($O$9=$Q$9,GETPIVOTDATA(" u74",INICIO!$A$102,"mes",$O$9),SUM(GETPIVOTDATA(" u74",INICIO!$A$102))) -> 0 | F47: =IF($O$9=$Q$9,GETPIVOTDATA(" u82",INICIO!$A$102,"mes",$O$9),SUM(GETPIVOTDATA(" u82",INICIO!$A$102))) -> 0
A48: Ex citologicos | C48: 0 | D48: =IF($O$9=$Q$9,GETPIVOTDATA(" u67",INICIO!$A$102,"mes",$O$9),SUM(GETPIVOTDATA(" u67",INICIO!$A$102))) -> 0 | E48: =IF($O$9=$Q$9,GETPIVOTDATA(" u75",INICIO!$A$102,"mes",$O$9),SUM(GETPIVOTDATA(" u75",INICIO!$A$102))) -> 0 | F48: =IF($O$9=$Q$9,GETPIVOTDATA(" u83",INICIO!$A$102,"mes",$O$9),SUM(GETPIVOTDATA(" u83",INICIO!$A$102))) -> 0
A49: Ex microbiologicos | C49: 1950 | D49: =IF($O$9=$Q$9,GETPIVOTDATA(" u68",INICIO!$A$102,"mes",$O$9),SUM(GETPIVOTDATA(" u68",INICIO!$A$102))) -> 98 | E49: =IF($O$9=$Q$9,GETPIVOTDATA(" u76",INICIO!$A$102,"mes",$O$9),SUM(GETPIVOTDATA(" u76",INICIO!$A$102))) -> 1352 | F49: =IF($O$9=$Q$9,GETPIVOTDATA(" u84",INICIO!$A$102,"mes",$O$9),SUM(GETPIVOTDATA(" u84",INICIO!$A$102))) -> 500
A50: Ex inmunoserologicos | C50: 1032 | D50: =IF($O$9=$Q$9,GETPIVOTDATA(" u69",INICIO!$A$102,"mes",$O$9),SUM(GETPIVOTDATA(" u69",INICIO!$A$102))) -> 142 | E50: =IF($O$9=$Q$9,GETPIVOTDATA(" u77",INICIO!$A$102,"mes",$O$9),SUM(GETPIVOTDATA(" u77",INICIO!$A$102))) -> 117 | F50: =IF($O$9=$Q$9,GETPIVOTDATA(" u85",INICIO!$A$102,"mes",$O$9),SUM(GETPIVOTDATA(" u85",INICIO!$A$102))) -> 773
A51: Transfusiones de sangre | C51: 0 | D51: =IF($O$9=$Q$9,GETPIVOTDATA(" u70",INICIO!$A$102,"mes",$O$9),SUM(GETPIVOTDATA(" u70",INICIO!$A$102))) -> 0 | E51: =IF($O$9=$Q$9,GETPIVOTDATA(" u78",INICIO!$A$102,"mes",$O$9),SUM(GETPIVOTDATA(" u78",INICIO!$A$102))) -> 0 | F51: =IF($O$9=$Q$9,GETPIVOTDATA(" u86",INICIO!$A$102,"mes",$O$9),SUM(GETPIVOTDATA(" u86",INICIO!$A$102))) -> 0
A52: Prueba vih | C52: 295 | D52: =IF($O$9=$Q$9,GETPIVOTDATA(" u71",INICIO!$A$102,"mes",$O$9),SUM(GETPIVOTDATA(" u71",INICIO!$A$102))) -> 22 | E52: =IF($O$9=$Q$9,GETPIVOTDATA(" u79",INICIO!$A$102,"mes",$O$9),SUM(GETPIVOTDATA(" u79",INICIO!$A$102))) -> 170 | F52: =IF($O$9=$Q$9,GETPIVOTDATA(" u87",INICIO!$A$102,"mes",$O$9),SUM(GETPIVOTDATA(" u87",INICIO!$A$102))) -> 103
C53: =SUM(C45:C52) -> 12251 | D53: =SUM(D45:D52) -> 1704 | E53: =SUM(E45:E52) -> 5484 | F53: =SUM(F45:F52) -> 5063

Sheet HOSPITALIZACION
A1: DIRECCION REGIONAL DE SALUD CUSCO
A2: DIRECCION DE ESTADISTICA E INFORMATICA
A3: Hospital Espinar - UEI- Informe Mensual de Actividades de Salud SES | I3: =B6 -> 2025
A6: AÑO | B6: 2025
A7: REDES | B7: HOSPITALES
A8: MICRORED | B8: (All) | C8: del 1 al 3
A9: ESTABLEC | B9: (All)
B11: Datos
A12: MESES | B12: mhosmg_1 | C12: mhosneum_1 | D12: mhoscard_1 | E12: mhosneur_1 | F12: mhosgast_1 | G12: mhosderm_1 | H12: mhosnefro_1 | I12: mhossiqui_1 | J12: mhosotrc_1 | K12: ccgen_1 | L12: ctraum_1 | M12: cotorrin_1 | N12: coftal_1 | O12: curolog_1 | P12: ciotros_1 | Q12: mhosmg_2 | R12: mhosneum_2 | S12: mhoscard_2 | T12: mhosneur_2 | U12: mhosgast_2 | V12: mhosderm_2 | W12: mhosnefro_2 | X12: mhossiqui_2 | Y12: mhosotrc_2 | Z12: ccgen_2 | AA12: ctraum_2 | AB12: cotorrin_2 | AC12: coftal_2 | AD12: curolog_2 | AE12: ciotros_2 | AF12: mhosmg_3 | AG12: mhosneum_3 | AH12: mhoscard_3 | AI12: mhosneur_3 | AJ12: mhosgast_3 | AK12: mhosderm_3 | AL12: mhosnefro_3 | AM12: mhossiqui_3 | AN12: mhosotrc_3 | AO12: ccgen_3 | AP12: ctraum_3 | AQ12: cotorrin_3 | AR12: coftal_3 | AS12: curolog_3 | AT12: ciotros_3 | AU12: mhosmg_4 | AV12: mhosneum_4 | AW12: mhoscard_4 | AX12: mhosneur_4 | AY12: mhosgast_4 | AZ12: mhosderm_4 | BA12: mhosnefro_4 | BB12: mhossiqui_4 | BC12: mhosotrc_4 | BD12: ccgen_4 | BE12: ctraum_4 | BF12: cotorrin_4 | BG12: coftal_4 | BH12: curolog_4 | BI12: ciotros_4 | BJ12: mhosmg_5 | BK12: mhosneum_5 | BL12: mhoscard_5 | BM12: mhosneur_5 | BN12: mhosgast_5 | BO12: mhosderm_5 | BP12: mhosnefro_5 | BQ12: mhossiqui_5 | BR12: mhosotrc_5 | BS12: ccgen_5 | BT12: ctraum_5 | BU12: cotorrin_5 | BV12: coftal_5 | BW12: curolog_5 | BX12: ciotros_5 | BY12: mhosmg_6 | BZ12: mhosneum_6 | CA12: mhoscard_6 | CB12: mhosneur_6 | CC12: mhosgast_6 | CD12: mhosderm_6 | CE12: mhosnefro_6 | CF12: mhossiqui_6 | CG12: mhosotrc_6 | CH12: ccgen_6 | CI12: ctraum_6 | CJ12: cotorrin_6 | CK12: coftal_6 | CL12: curolog_6 | CM12: ciotros_6 | CN12: mhosmg_7 | CO12: mhosneum_7 | CP12: mhoscard_7 | CQ12: mhosneur_7 | CR12: mhosgast_7 | CS12: mhosderm_7 | CT12: mhosnefro_7 | CU12: mhossiqui_7 | CV12: mhosotrc_7 | CW12: ccgen_7 | CX12: ctraum_7 | CY12: cotorrin_7 | CZ12: coftal_7 | DA12: curolog_7 | DB12: ciotros_7 | DC12: mhosmg_8 | DD12: mhosneum_8 | DE12: mhoscard_8 | DF12: mhosneur_8 | DG12: mhosgast_8 | DH12: mhosderm_8 | DI12: mhosnefro_8 | DJ12: mhossiqui_8 | DK12: mhosotrc_8 | DL12: ccgen_8 | DM12: ctraum_8 | DN12: cotorrin_8 | DO12: coftal_8 | DP12: curolog_8 | DQ12: ciotros_8 | DR12: mhosmg_9 | DS12: mhosneum_9 | DT12: mhoscard_9 | DU12: mhosneur_9 | DV12: mhosgast_9 | DW12: mhosderm_9 | DX12: mhosnefro_9 | DY12: mhossiqui_9 | DZ12: mhosotrc_9 | EA12: ccgen_9 | EB12: ctraum_9 | EC12: cotorrin_9 | ED12: coftal_9 | EE12: curolog_9 | EF12: ciotros_9 | EG12: obs_gin_1 | EH12: obs_gin_2 | EI12: obs_gin_3 | EJ12: obs_gin_4 | EK12: obs_gin_5 | EL12: obs_gin_6 | EM12: obs_gin_7 | EN12: obs_gin_8 | EO12: obs_gin_9 | EP12: obsuci_1 | EQ12: obsuci_2 | ER12: obsuci_3 | ES12: obsuci_4 | ET12: obsuci_5 | EU12: obsuci_6 | EV12: obsuci_7 | EW12: obsuci_8 | EX12: obsuci_9 | EY12: pesc4_1 | EZ12: pesc4_2 | FA12: pesc4_3 | FB12: pesc4_4 | FC12: pesc4_5 | FD12: pesc4_6 | FE12: pesc4_7 | FF12: pesc4_8 | FG12: pesc4_9 | FH12: pesc5_1 | FI12: pesc5_2 | FJ12: pesc5_3 | FK12: pesc5_4 | FL12: pesc5_5 | FM12: pesc5_6 | FN12: pesc5_7 | FO12: pesc5_8 | FP12: pesc5_9 | FQ12: pesc6_1 | FR12: pesc6_2 | FS12: pesc6_3 | FT12: pesc6_4 | FU12: pesc6_5 | FV12: pesc6_6 | FW12: pesc6_7 | FX12: pesc6_8 | FY12: pesc6_9 | FZ12: plact_1 | GA12: plact_2 | GB12: plact_3 | GC12: plact_4 | GD12: plact_5 | GE12: plact_6 | GF12: plact_7 | GG12: plact_8 | GH12: plact_9 | GI12: pneona_1 | GJ12: pneona_2 | GK12: pneona_3 | GL12: pneona_4 | GM12: pneona_5 | GN12: pneona_6 | GO12: pneona_7 | GP12: pneona_8 | GQ12: pneona_9 | GR12: ginec_1 | GS12: ginec_2 | GT12: ginec_3 | GU12: ginec_4 | GV12: ginec_5 | GW12: ginec_6 | GX12: ginec_7 | GY12: ginec_8 | GZ12: ginec_9
A13: 2 | B13: 0 | C13: 0 | D13: 0 | E13: 0 | F13: 0 | G13: 0 | H13: 0 | I13: 0 | J13: 0 | K13: 0 | L13: 0 | M13: 0 | N13: 0 | O13: 0 | P13: 0 | Q13: 4 | R13: 0 | S13: 0 | T13: 0 | U13: 0 | V13: 0 | W13: 0 | X13: 0 | Y13: 0 | Z13: 2 | AA13: 0 | AB13: 0 | AC13: 0 | AD13: 0 | AE13: 0 | AF13: 19 | AG13: 0 | AH13: 0 | AI13: 0 | AJ13: 0 | AK13: 0 | AL13: 0 | AM13: 0 | AN13: 0 | AO13: 46 | AP13: 0 | AQ13: 0 | AR13: 0 | AS13: 0 | AT13: 0 | AU13: 0 | AV13: 0 | AW13: 0 | AX13: 0 | AY13: 0 | AZ13: 0 | BA13: 0 | BB13: 0 | BC13: 0 | BD13: 0 | BE13: 0 | BF13: 0 | BG13: 0 | BH13: 0 | BI13: 0 | BJ13: 0 | BK13: 0 | BL13: 0 | BM13: 0 | BN13: 0 | BO13: 0 | BP13: 0 | BQ13: 0 | BR13: 0 | BS13: 0 | BT13: 0 | BU13: 0 | BV13: 0 | BW13: 0 | BX13: 0 | BY13: 21 | BZ13: 0 | CA13: 0 | CB13: 0 | CC13: 0 | CD13: 0 | CE13: 0 | CF13: 0 | CG13: 0 | CH13: 46 | CI13: 0 | CJ13: 0 | CK13: 0 | CL13: 0 | CM13: 0 | CN13: 116 | CO13: 0 | CP13: 0 | CQ13: 0 | CR13: 0 | CS13: 0 | CT13: 0 | CU13: 0 | CV13: 0 | CW13: 141 | CX13: 0 | CY13: 0 | CZ13: 0 | DA13: 0 | DB13: 0 | DC13: 112 | DD13: 0 | DE13: 0 | DF13: 0 | DG13: 0 | DH13: 0 | DI13: 0 | DJ13: 0 | DK13: 0 | DL13: 139 | DM13: 0 | DN13: 0 | DO13: 0 | DP13: 0 | DQ13: 0 | DR13: 168 | DS13: 0 | DT13: 0 | DU13: 0 | DV13: 0 | DW13: 0 | DX13: 0 | DY13: 0 | DZ13: 0 | EA13: 168 | EB13: 0 | EC13: 0 | ED13: 0 | EE13: 0 | EF13: 0 | EG13: 0 | EH13: 1 | EI13: 30 | EJ13: 0 | EK13: 0 | EL13: 28 | EM13: 64 | EN13: 63 | EO13: 224 | EP13: 0 | EQ13: 0 | ER13: 0 | ES13: 0 | ET13: 0 | EU13: 0 | EV13: 0 | EW13: 0 | EX13: 0 | EY13: 0 | EZ13: 0 | FA13: 0 | FB13: 0 | FC13: 0 | FD13: 0 | FE13: 0 | FF13: 0 | FG13: 28 | FH13: 0 | FI13: 0 | FJ13: 0 | FK13: 0 | FL13: 0 | FM13: 0 | FN13: 0 | FO13: 0 | FP13: 28 | FQ13: 0 | FR13: 0 | FS13: 0 | FT13: 0 | FU13: 0 | FV13: 0 | FW13: 0 | FX13: 0 | FY13: 28 | FZ13: 0 | GA13: 1 | GB13: 0 | GC13: 0 | GD13: 0 | GE13: 1 | GF13: 6 | GG13: 5 | GH13: 28 | GI13: 0 | GJ13: 1 | GK13: 1 | GL13: 0 | GM13: 0 | GN13: 2 | GO13: 7 | GP13: 6 | GQ13: 56 | GR13: 0 | GS13: 2 | GT13: 30 | GU13: 0 | GV13: 0 | GW13: 29 | GX13: 79 | GY13: 77 | GZ13: 84
A14: 1 | B14: 0 | C14: 0 | D14: 0 | E14: 0 | F14: 0 | G14: 0 | H14: 0 | I14: 0 | J14: 0 | K14: 0 | L14: 0 | M14: 0 | N14: 0 | O14: 0 | P14: 0 | Q14: 3 | R14: 0 | S14: 0 | T14: 0 | U14: 0 | V14: 0 | W14: 0 | X14: 0 | Y14: 0 | Z14: 4 | AA14: 0 | AB14: 0 | AC14: 0 | AD14: 0 | AE14: 0 | AF14: 20 | AG14: 0 | AH14: 0 | AI14: 0 | AJ14: 0 | AK14: 0 | AL14: 0 | AM14: 0 | AN14: 0 | AO14: 47 | AP14: 0 | AQ14: 0 | AR14: 0 | AS14: 0 | AT14: 0 | AU14: 0 | AV14: 0 | AW14: 0 | AX14: 0 | AY14: 0 | AZ14: 0 | BA14: 0 | BB14: 0 | BC14: 0 | BD14: 0 | BE14: 0 | BF14: 0 | BG14: 0 | BH14: 0 | BI14: 0 | BJ14: 0 | BK14: 0 | BL14: 0 | BM14: 0 | BN14: 0 | BO14: 0 | BP14: 0 | BQ14: 0 | BR14: 0 | BS14: 0 | BT14: 0 | BU14: 0 | BV14: 0 | BW14: 0 | BX14: 0 | BY14: 19 | BZ14: 0 | CA14: 0 | CB14: 0 | CC14: 0 | CD14: 0 | CE14: 0 | CF14: 0 | CG14: 0 | CH14: 49 | CI14: 0 | CJ14: 0 | CK14: 0 | CL14: 0 | CM14: 0 | CN14: 76 | CO14: 0 | CP14: 0 | CQ14: 0 | CR14: 0 | CS14: 0 | CT14: 0 | CU14: 0 | CV14: 0 | CW14: 163 | CX14: 0 | CY14: 0 | CZ14: 0 | DA14: 0 | DB14: 0 | DC14: 73 | DD14: 0 | DE14: 0 | DF14: 0 | DG14: 0 | DH14: 0 | DI14: 0 | DJ14: 0 | DK14: 0 | DL14: 159 | DM14: 0 | DN14: 0 | DO14: 0 | DP14: 0 | DQ14: 0 | DR14: 186 | DS14: 0 | DT14: 0 | DU14: 0 | DV14: 0 | DW14: 0 | DX14: 0 | DY14: 0 | DZ14: 0 | EA14: 186 | EB14: 0 | EC14: 0 | ED14: 0 | EE14: 0 | EF14: 0 | EG14: 0 | EH14: 3 | EI14: 35 | EJ14: 0 | EK14: 0 | EL14: 37 | EM14: 86 | EN14: 83 | EO14: 279 | EP14: 0 | EQ14: 0 | ER14: 0 | ES14: 0 | ET14: 0 | EU14: 0 | EV14: 0 | EW14: 0 | EX14: 0 | EY14: 0 | EZ14: 0 | FA14: 3 | FB14: 0 | FC14: 0 | FD14: 3 | FE14: 16 | FF14: 16 | FG14: 31 | FH14: 0 | FI14: 0 | FJ14: 0 | FK14: 0 | FL14: 0 | FM14: 0 | FN14: 0 | FO14: 0 | FP14: 31 | FQ14: 0 | FR14: 0 | FS14: 1 | FT14: 0 | FU14: 0 | FV14: 1 | FW14: 3 | FX14: 3 | FY14: 31 | FZ14: 0 | GA14: 1 | GB14: 1 | GC14: 0 | GD14: 0 | GE14: 1 | GF14: 5 | GG14: 4 | GH14: 31 | GI14: 0 | GJ14: 0 | GK14: 4 | GL14: 0 | GM14: 0 | GN14: 3 | GO14: 11 | GP14: 11 | GQ14: 62 | GR14: 0 | GS14: 3 | GT14: 37 | GU14: 0 | GV14: 0 | GW14: 38 | GX14: 103 | GY14: 100 | GZ14: 62
A15: 3 | B15: 0 | C15: 0 | D15: 0 | E15: 0 | F15: 0 | G15: 0 | H15: 0 | I15: 0 | J15: 0 | K15: 0 | L15: 0 | M15: 0 | N15: 0 | O15: 0 | P15: 0 | Q15: 2 | R15: 0 | S15: 0 | T15: 0 | U15: 0 | V15: 0 | W15: 0 | X15: 0 | Y15: 0 | Z15: 2 | AA15: 0 | AB15: 0 | AC15: 0 | AD15: 0 | AE15: 0 | AF15: 19 | AG15: 0 | AH15: 0 | AI15: 0 | AJ15: 0 | AK15: 0 | AL15: 0 | AM15: 0 | AN15: 0 | AO15: 41 | AP15: 0 | AQ15: 0 | AR15: 0 | AS15: 0 | AT15: 0 | AU15: 0 | AV15: 0 | AW15: 0 | AX15: 0 | AY15: 0 | AZ15: 0 | BA15: 0 | BB15: 0 | BC15: 0 | BD15: 0 | BE15: 0 | BF15: 0 | BG15: 0 | BH15: 0 | BI15: 0 | BJ15: 0 | BK15: 0 | BL15: 0 | BM15: 0 | BN15: 0 | BO15: 0 | BP15: 0 | BQ15: 0 | BR15: 0 | BS15: 0 | BT15: 0 | BU15: 0 | BV15: 0 | BW15: 0 | BX15: 0 | BY15: 19 | BZ15: 0 | CA15: 0 | CB15: 0 | CC15: 0 | CD15: 0 | CE15: 0 | CF15: 0 | CG15: 0 | CH15: 41 | CI15: 0 | CJ15: 0 | CK15: 0 | CL15: 0 | CM15: 0 | CN15: 75 | CO15: 0 | CP15: 0 | CQ15: 0 | CR15: 0 | CS15: 0 | CT15: 0 | CU15: 0 | CV15: 0 | CW15: 123 | CX15: 0 | CY15: 0 | CZ15: 0 | DA15: 0 | DB15: 0 | DC15: 73 | DD15: 0 | DE15: 0 | DF15: 0 | DG15: 0 | DH15: 0 | DI15: 0 | DJ15: 0 | DK15: 0 | DL15: 121 | DM15: 0 | DN15: 0 | DO15: 0 | DP15: 0 | DQ15: 0 | DR15: 186 | DS15: 0 | DT15: 0 | DU15: 0 | DV15: 0 | DW15: 0 | DX15: 0 | DY15: 0 | DZ15: 0 | EA15: 186 | EB15: 0 | EC15: 0 | ED15: 0 | EE15: 0 | EF15: 0 | EG15: 0 | EH15: 3 | EI15: 38 | EJ15: 0 | EK15: 0 | EL15: 36 | EM15: 80 | EN15: 77 | EO15: 248 | EP15: 0 | EQ15: 0 | ER15: 0 | ES15: 0 | ET15: 0 | EU15: 0 | EV15: 0 | EW15: 0 | EX15: 0 | EY15: 0 | EZ15: 0 | FA15: 1 | FB15: 0 | FC15: 0 | FD15: 1 | FE15: 2 | FF15: 2 | FG15: 31 | FH15: 0 | FI15: 0 | FJ15: 1 | FK15: 0 | FL15: 0 | FM15: 1 | FN15: 4 | FO15: 4 | FP15: 31 | FQ15: 0 | FR15: 0 | FS15: 1 | FT15: 0 | FU15: 0 | FV15: 1 | FW15: 2 | FX15: 2 | FY15: 31 | FZ15: 0 | GA15: 0 | GB15: 0 | GC15: 0 | GD15: 0 | GE15: 0 | GF15: 0 | GG15: 0 | GH15: 31 | GI15: 0 | GJ15: 0 | GK15: 2 | GL15: 0 | GM15: 0 | GN15: 2 | GO15: 5 | GP15: 5 | GQ15: 62 | GR15: 0 | GS15: 3 | GT15: 29 | GU15: 0 | GV15: 0 | GW15: 30 | GX15: 70 | GY15: 67 | GZ15: 93
A16: Grand Total | B16: 0 | C16: 0 | D16: 0 | E16: 0 | F16: 0 | G16: 0 | H16: 0 | I16: 0 | J16: 0 | K16: 0 | L16: 0 | M16: 0 | N16: 0 | O16: 0 | P16: 0 | Q16: 9 | R16: 0 | S16: 0 | T16: 0 | U16: 0 | V16: 0 | W16: 0 | X16: 0 | Y16: 0 | Z16: 8 | AA16: 0 | AB16: 0 | AC16: 0 | AD16: 0 | AE16: 0 | AF16: 58 | AG16: 0 | AH16: 0 | AI16: 0 | AJ16: 0 | AK16: 0 | AL16: 0 | AM16: 0 | AN16: 0 | AO16: 134 | AP16: 0 | AQ16: 0 | AR16: 0 | AS16: 0 | AT16: 0 | AU16: 0 | AV16: 0 | AW16: 0 | AX16: 0 | AY16: 0 | AZ16: 0 | BA16: 0 | BB16: 0 | BC16: 0 | BD16: 0 | BE16: 0 | BF16: 0 | BG16: 0 | BH16: 0 | BI16: 0 | BJ16: 0 | BK16: 0 | BL16: 0 | BM16: 0 | BN16: 0 | BO16: 0 | BP16: 0 | BQ16: 0 | BR16: 0 | BS16: 0 | BT16: 0 | BU16: 0 | BV16: 0 | BW16: 0 | BX16: 0 | BY16: 59 | BZ16: 0 | CA16: 0 | CB16: 0 | CC16: 0 | CD16: 0 | CE16: 0 | CF16: 0 | CG16: 0 | CH16: 136 | CI16: 0 | CJ16: 0 | CK16: 0 | CL16: 0 | CM16: 0 | CN16: 267 | CO16: 0 | CP16: 0 | CQ16: 0 | CR16: 0 | CS16: 0 | CT16: 0 | CU16: 0 | CV16: 0 | CW16: 427 | CX16: 0 | CY16: 0 | CZ16: 0 | DA16: 0 | DB16: 0 | DC16: 258 | DD16: 0 | DE16: 0 | DF16: 0 | DG16: 0 | DH16: 0 | DI16: 0 | DJ16: 0 | DK16: 0 | DL16: 419 | DM16: 0 | DN16: 0 | DO16: 0 | DP16: 0 | DQ16: 0 | DR16: 540 | DS16: 0 | DT16: 0 | DU16: 0 | DV16: 0 | DW16: 0 | DX16: 0 | DY16: 0 | DZ16: 0 | EA16: 540 | EB16: 0 | EC16: 0 | ED16: 0 | EE16: 0 | EF16: 0 | EG16: 0 | EH16: 7 | EI16: 103 | EJ16: 0 | EK16: 0 | EL16: 101 | EM16: 230 | EN16: 223 | EO16: 751 | EP16: 0 | EQ16: 0 | ER16: 0 | ES16: 0 | ET16: 0 | EU16: 0 | EV16: 0 | EW16: 0 | EX16: 0 | EY16: 0 | EZ16: 0 | FA16: 4 | FB16: 0 | FC16: 0 | FD16: 4 | FE16: 18 | FF16: 18 | FG16: 90 | FH16: 0 | FI16: 0 | FJ16: 1 | FK16: 0 | FL16: 0 | FM16: 1 | FN16: 4 | FO16: 4 | FP16: 90 | FQ16: 0 | FR16: 0 | FS16: 2 | FT16: 0 | FU16: 0 | FV16: 2 | FW16: 5 | FX16: 5 | FY16: 90 | FZ16: 0 | GA16: 2 | GB16: 1 | GC16: 0 | GD16: 0 | GE16: 2 | GF16: 11 | GG16: 9 | GH16: 90 | GI16: 0 | GJ16: 1 | GK16: 7 | GL16: 0 | GM16: 0 | GN16: 7 | GO16: 23 | GP16: 22 | GQ16: 180 | GR16: 0 | GS16: 8 | GT16: 96 | GU16: 0 | GV16: 0 | GW16: 97 | GX16: 252 | GY16: 244 | GZ16: 239
A30: SERVICIOS | C30: VI Movimiento de Hospitalización
C31: Nro. | D31: Saldo | E31: Ingresos | F31: Trasnf. En el mes | H31: Egresos | I31: Saldo para | J31: Perma- | K31: Días | L31: Días | M31: DIAS CAMA DISPONIBLES | N31: dias cama disponible - dias paciente | O31: % ocupacion | P31: Intervalo de sustitucion | Q31: Rendimiento (3 meses) | R31: Gº | S31: promedio de permanencia | T31: % distribucion | U31: promedio de ingresos | V31: promedio de egresos
C32: De | D32: Mes | E32: en el | F32: De otro | G32: A otro | H32: en el | I32: el mes | J32: del | K32: Paciente | L32: Cama
C33: Camas | D33: Anterior | E33: Mes | F33: Servicio | G33: Servicio | H33: Mes | I33: Siguiente | J33: Egresa.
A34: Total | C34: 42 | D34: =SUM(D35,D45,D52,D58) -> 35 | E34: =SUM(E35,E45,E52,E58) -> 406 | F34: =SUM(F35,F45,F52,F58) -> 0 | G34: =SUM(G35,G45,G52,G58) -> 0 | H34: =SUM(H35,H45,H52,H58) -> 409 | I34: =IF(F34>G34,(D34+E34)+(F34-G34)-H34,(D34+E34)-(G34-F34)-H34) -> 32 | J34: =SUM(J35,J45,J52,J58) -> 1237 | K34: =SUM(K35,K45,K52,K58) -> 1202 | L34: =SUM(L35,L45,L52,L58) -> 2610 | M34: =L34-K34 -> 1408 | N34: =M34-K34 -> 206 | O34: =K34/L34*100 -> 46.05363985 | P34: =(L34-K34)/H34 -> 3.442542787 | Q34: =((H34/3)/C34) -> 3.246031746 | R34: =K34/M34*100 -> 85.36931818 | S34: =J34/H34 -> 3.024449878 | T34: =C34/$C$34*100 -> 100 | U34: =E34/L34 -> 0.1555555556 | V34: =H34/L34 -> 0.1567049808
A35: 10 | B35: Medicina | C35: 8 | D35: =SUM(D36:D44) -> 9 | E35: =SUM(E36:E44) -> 58 | F35: =SUM(F36:F44) -> 0 | G35: =SUM(G36:G44) -> 0 | H35: =SUM(H36:H44) -> 59 | I35: 8 | J35: =SUM(J36:J44) -> 267 | K35: =SUM(K36:K44) -> 258 | L35: =SUM(L36:L44) -> 540 | M35: =L35-K35 -> 282 | N35: =M35-K35 -> 24 | O35: =K35/L35*100 -> 47.77777778 | P35: =(L35-K35)/H35 -> 4.779661017 | Q35: =((H35/3)/C35) -> 2.458333333 | R35: =K35/M35*100 -> 91.4893617 | S35: =J35/H35 -> 4.525423729 | T35: =C35/$C$34*100 -> 19.04761905 | U35: =E35/L35 -> 0.1074074074 | V35: =H35/L35 -> 0.1092592593
A36: 11 | B36: Medicina General | C36: 6 | D36: =SUM(GETPIVOTDATA(" mhosmg_2",$A$9)) -> 9 | E36: =SUM(GETPIVOTDATA(" mhosmg_3",$A$9)) -> 58 | F36: =SUM(GETPIVOTDATA(" mhosmg_4",$A$9)) -> 0 | G36: =SUM(GETPIVOTDATA(" mhosmg_5",$A$9)) -> 0 | H36: =SUM(GETPIVOTDATA(" mhosmg_6",$A$9)) -> 59 | I36: 8 | J36: =SUM(GETPIVOTDATA(" mhosmg_7",$A$9)) -> 267 | K36: =SUM(GETPIVOTDATA(" mhosmg_8",$A$9)) -> 258 | L36: =SUM(GETPIVOTDATA(" mhosmg_9",$A$9)) -> 540 | M36: =L36-K36 -> 282 | N36: 24 | O36: =K36/L36*100 -> 47.77777778 | P36: =(L36-K36)/H36 -> 4.779661017 | Q36: 3.277777778 | R36: =K36/M36*100 -> 91.4893617 | S36: 4.525423729 | T36: =C36/$C$34*100 -> 14.28571429 | U36: 0.1074074074 | V36: 0.1092592593
A37: 12 | B37: Neumología | C37: 0 | D37: =SUM(GETPIVOTDATA(" mhosneum_2",$A$9)) -> 0 | E37: =SUM(GETPIVOTDATA(" mhosneum_3",$A$9)) -> 0 | F37: =SUM(GETPIVOTDATA(" mhosneum_4",$A$9)) -> 0 | G37: =SUM(GETPIVOTDATA(" mhosneum_5",$A$9)) -> 0 | H37: =SUM(GETPIVOTDATA(" mhosneum_6",$A$9)) -> 0 | I37: 0 | J37: =SUM(GETPIVOTDATA(" mhosneum_7",$A$9)) -> 0 | K37: =SUM(GETPIVOTDATA(" mhosneum_8",$A$9)) -> 0 | L37: =SUM(GETPIVOTDATA(" mhosneum_9",$A$9)) -> 0 | M37: =L37-K37 -> 0 | N37: 0
A38: 13 | B38: Cardiología | C38: 0 | D38: =SUM(GETPIVOTDATA(" mhoscard_2",$A$9)) -> 0 | E38: =SUM(GETPIVOTDATA(" mhoscard_3",$A$9)) -> 0 | F38: =SUM(GETPIVOTDATA(" mhoscard_4",$A$9)) -> 0 | G38: =SUM(GETPIVOTDATA(" mhoscard_5",$A$9)) -> 0 | H38: =SUM(GETPIVOTDATA(" mhoscard_6",$A$9)) -> 0 | I38: 0 | J38: =SUM(GETPIVOTDATA(" mhoscard_7",$A$9)) -> 0 | K38: =SUM(GETPIVOTDATA(" mhoscard_8",$A$9)) -> 0 | L38: =SUM(GETPIVOTDATA(" mhoscard_9",$A$9)) -> 0 | M38: 0 | N38: 0
A39: 14 | B39: Neurología | C39: 0 | D39: =SUM(GETPIVOTDATA(" mhosneur_2",$A$9)) -> 0 | E39: =SUM(GETPIVOTDATA(" mhosneur_3",$A$9)) -> 0 | F39: =SUM(GETPIVOTDATA(" mhosneur_4",$A$9)) -> 0 | G39: =SUM(GETPIVOTDATA(" mhosneur_5",$A$9)) -> 0 | H39: =SUM(GETPIVOTDATA(" mhosneur_6",$A$9)) -> 0 | I39: 0 | J39: =SUM(GETPIVOTDATA(" mhosneur_7",$A$9)) -> 0 | K39: =SUM(GETPIVOTDATA(" mhosneur_8",$A$9)) -> 0 | L39: =SUM(GETPIVOTDATA(" mhosneur_9",$A$9)) -> 0 | M39: 0 | N39: 0
A40: 15 | B40: Gastroenterología | C40: 0 | D40: =SUM(GETPIVOTDATA(" mhosgast_2",$A$9)) -> 0 | E40: =SUM(GETPIVOTDATA(" mhosgast_3",$A$9)) -> 0 | F40: =SUM(GETPIVOTDATA(" mhosgast_4",$A$9)) -> 0 | G40: =SUM(GETPIVOTDATA(" mhosgast_5",$A$9)) -> 0 | H40: =SUM(GETPIVOTDATA(" mhosgast_6",$A$9)) -> 0 | I40: 0 | J40: =SUM(GETPIVOTDATA(" mhosgast_7",$A$9)) -> 0 | K40: =SUM(GETPIVOTDATA(" mhosgast_8",$A$9)) -> 0 | L40: =SUM(GETPIVOTDATA(" mhosgast_9",$A$9)) -> 0 | M40: 0 | N40: 0
A41: 16 | B41: Dermatología | C41: 0 | D41: =SUM(GETPIVOTDATA(" mhosderm_2",$A$9)) -> 0 | E41: =SUM(GETPIVOTDATA(" mhosderm_3",$A$9)) -> 0 | F41: =SUM(GETPIVOTDATA(" mhosderm_4",$A$9)) -> 0 | G41: =SUM(GETPIVOTDATA(" mhosderm_5",$A$9)) -> 0 | H41: =SUM(GETPIVOTDATA(" mhosderm_6",$A$9)) -> 0 | I41: 0 | J41: =SUM(GETPIVOTDATA(" mhosderm_7",$A$9)) -> 0 | K41: =SUM(GETPIVOTDATA(" mhosderm_8",$A$9)) -> 0 | L41: =SUM(GETPIVOTDATA(" mhosderm_9",$A$9)) -> 0 | M41: 0 | N41: 0
A42: 17 | B42: Nefrología | C42: 0 | D42: =SUM(GETPIVOTDATA(" mhosnefro_2",$A$9)) -> 0 | E42: =SUM(GETPIVOTDATA(" mhosnefro_3",$A$9)) -> 0 | F42: =SUM(GETPIVOTDATA(" mhosnefro_4",$A$9)) -> 0 | G42: =SUM(GETPIVOTDATA(" mhosnefro_5",$A$9)) -> 0 | H42: =SUM(GETPIVOTDATA(" mhosnefro_6",$A$9)) -> 0 | I42: 0 | J42: =SUM(GETPIVOTDATA(" mhosnefro_7",$A$9)) -> 0 | K42: =SUM(GETPIVOTDATA(" mhosnefro_8",$A$9)) -> 0 | L42: =SUM(GETPIVOTDATA(" mhosnefro_9",$A$9)) -> 0 | M42: 0 | N42: 0
A43: 18 | B43: Psiquiatría | C43: 0 | D43: =SUM(GETPIVOTDATA(" mhossiqui_2",$A$9)) -> 0 | E43: =SUM(GETPIVOTDATA(" mhossiqui_3",$A$9)) -> 0 | F43: =SUM(GETPIVOTDATA(" mhossiqui_4",$A$9)) -> 0 | G43: =SUM(GETPIVOTDATA(" mhossiqui_5",$A$9)) -> 0 | H43: =SUM(GETPIVOTDATA(" mhossiqui_6",$A$9)) -> 0 | I43: 0 | J43: =SUM(GETPIVOTDATA(" mhossiqui_7",$A$9)) -> 0 | K43: =SUM(GETPIVOTDATA(" mhossiqui_8",$A$9)) -> 0 | L43: =SUM(GETPIVOTDATA(" mhossiqui_9",$A$9)) -> 0 | M43: 0 | N43: 0
A44: 19 | B44: Otros CLINICA | C44: 0 | D44: =SUM(GETPIVOTDATA(" mhosotrc_2",$A$9)) -> 0 | E44: =SUM(GETPIVOTDATA(" mhosotrc_3",$A$9)) -> 0 | F44: =SUM(GETPIVOTDATA(" mhosotrc_4",$A$9)) -> 0 | G44: =SUM(GETPIVOTDATA(" mhosotrc_5",$A$9)) -> 0 | H44: =SUM(GETPIVOTDATA(" mhosotrc_6",$A$9)) -> 0 | I44: 0 | J44: =SUM(GETPIVOTDATA(" mhosotrc_7",$A$9)) -> 0 | K44: =SUM(GETPIVOTDATA(" mhosotrc_8",$A$9)) -> 0 | L44: =SUM(GETPIVOTDATA(" mhosotrc_9",$A$9)) -> 0 | M44: 0 | N44: 0
A45: 20 | B45: Cirugia | C45: 8 | D45: =SUM(D46:D51) -> 8 | E45: =SUM(E46:E51) -> 134 | F45: =SUM(F46:F51) -> 0 | G45: =SUM(G46:G51) -> 0 | H45: =SUM(H46:H51) -> 136 | I45: 6 | J45: =SUM(J46:J51) -> 427 | K45: =SUM(K46:K51) -> 419 | L45: =SUM(L46:L51) -> 540 | M45: =L45-K45 -> 121 | N45: -298 | O45: =K45/L45*100 -> 77.59259259 | P45: =(L45-K45)/H45 -> 0.8897058824 | Q45: 5.666666667 | R45: =K45/M45*100 -> 346.2809917 | S45: 3.139705882 | T45: =C45/$C$34*100 -> 19.04761905 | U45: 0.2481481481 | V45: 0.2518518519
A46: 21 | B46: Cirugía General | C46: 6 | D46: =SUM(GETPIVOTDATA(" ccgen_2",$A$9)) -> 8 | E46: =SUM(GETPIVOTDATA(" ccgen_3",$A$9)) -> 134 | F46: =SUM(GETPIVOTDATA(" ccgen_4",$A$9)) -> 0 | G46: =SUM(GETPIVOTDATA(" ccgen_5",$A$9)) -> 0 | H46: =SUM(GETPIVOTDATA(" ccgen_6",$A$9)) -> 136 | I46: 6 | J46: =SUM(GETPIVOTDATA(" ccgen_7",$A$9)) -> 427 | K46: =SUM(GETPIVOTDATA(" ccgen_8",$A$9)) -> 419 | L46: =SUM(GETPIVOTDATA(" ccgen_9",$A$9)) -> 540 | M46: 121 | N46: -298 | O46: 77.59259259 | P46: =(L46-K46)/H46 -> 0.8897058824 | Q46: 7.555555556 | R46: =K46/M46*100 -> 346.2809917 | S46: 3.139705882 | T46: 14.28571429 | U46: 0.2481481481 | V46: 0.2518518519
A47: 22 | B47: Traum. y Ortopedia | C47: 0 | D47: =SUM(GETPIVOTDATA(" ctraum_2",$A$9)) -> 0 | E47: =SUM(GETPIVOTDATA(" ctraum_3",$A$9)) -> 0 | F47: =SUM(GETPIVOTDATA(" ctraum_4",$A$9)) -> 0 | G47: =SUM(GETPIVOTDATA(" ctraum_5",$A$9)) -> 0 | H47: =SUM(GETPIVOTDATA(" ctraum_6",$A$9)) -> 0 | I47: 0 | J47: =SUM(GETPIVOTDATA(" ctraum_7",$A$9)) -> 0 | K47: =SUM(GETPIVOTDATA(" ctraum_8",$A$9)) -> 0 | L47: =SUM(GETPIVOTDATA(" ctraum_9",$A$9)) -> 0 | M47: 0 | N47: 0
A48: 23 | B48: Otorrinolaringología | C48: 0 | D48: =SUM(GETPIVOTDATA(" cotorrin_2",$A$9)) -> 0 | E48: =SUM(GETPIVOTDATA(" cotorrin_3",$A$9)) -> 0 | F48: =SUM(GETPIVOTDATA(" cotorrin_4",$A$9)) -> 0 | G48: =SUM(GETPIVOTDATA(" cotorrin_5",$A$9)) -> 0 | H48: =SUM(GETPIVOTDATA(" cotorrin_6",$A$9)) -> 0 | I48: 0 | J48: =SUM(GETPIVOTDATA(" cotorrin_7",$A$9)) -> 0 | K48: =SUM(GETPIVOTDATA(" cotorrin_8",$A$9)) -> 0 | L48: =SUM(GETPIVOTDATA(" cotorrin_9",$A$9)) -> 0 | M48: 0 | N48: 0
A49: 24 | B49: Oftalmología | C49: 0 | D49: =SUM(GETPIVOTDATA(" coftal_2",$A$9)) -> 0 | E49: =SUM(GETPIVOTDATA(" coftal_3",$A$9)) -> 0 | F49: =SUM(GETPIVOTDATA(" coftal_4",$A$9)) -> 0 | G49: =SUM(GETPIVOTDATA(" coftal_5",$A$9)) -> 0 | H49: =SUM(GETPIVOTDATA(" coftal_6",$A$9)) -> 0 | I49: 0 | J49: =SUM(GETPIVOTDATA(" coftal_7",$A$9)) -> 0 | K49: =SUM(GETPIVOTDATA(" coftal_8",$A$9)) -> 0 | L49: =SUM(GETPIVOTDATA(" coftal_9",$A$9)) -> 0 | M49: 0 | N49: 0
A50: 25 | B50: Urología | C50: 0 | D50: =SUM(GETPIVOTDATA(" curolog_2",$A$9)) -> 0 | E50: =SUM(GETPIVOTDATA(" curolog_3",$A$9)) -> 0 | F50: =SUM(GETPIVOTDATA(" curolog_4",$A$9)) -> 0 | G50: =SUM(GETPIVOTDATA(" curolog_5",$A$9)) -> 0 | H50: =SUM(GETPIVOTDATA(" curolog_6",$A$9)) -> 0 | I50: 0 | J50: =SUM(GETPIVOTDATA(" curolog_7",$A$9)) -> 0 | K50: =SUM(GETPIVOTDATA(" curolog_8",$A$9)) -> 0 | L50: =SUM(GETPIVOTDATA(" curolog_9",$A$9)) -> 0 | M50: 0 | N50: 0
A51: 26 | B51: Otros | C51: 0 | D51: =SUM(GETPIVOTDATA(" ciotros_2",$A$9)) -> 0 | E51: =SUM(GETPIVOTDATA(" ciotros_3",$A$9)) -> 0 | F51: =SUM(GETPIVOTDATA(" ciotros_4",$A$9)) -> 0 | G51: =SUM(GETPIVOTDATA(" ciotros_5",$A$9)) -> 0 | H51: =SUM(GETPIVOTDATA(" ciotros_6",$A$9)) -> 0 | I51: 0 | J51: =SUM(GETPIVOTDATA(" ciotros_7",$A$9)) -> 0 | K51: =SUM(GETPIVOTDATA(" ciotros_8",$A$9)) -> 0 | L51: =SUM(GETPIVOTDATA(" ciotros_9",$A$9)) -> 0 | M51: 0 | N51: 0
A52: 30 | B52: Pediatria | C52: 6 | D52: =SUM(D53:D57) -> 3 | E52: =SUM(E53:E57) -> 15 | F52: =SUM(F53:F57) -> 0 | G52: =SUM(G53:G57) -> 0 | H52: =SUM(H53:H57) -> 16 | I52: 2 | J52: =SUM(J53:J57) -> 61 | K52: =SUM(K53:K57) -> 58 | L52: =SUM(L53:L57) -> 540 | M52: 482 | N52: 424 | O52: 10.74074074 | P52: =(L52-K52)/H52 -> 30.125 | Q52: 0.8888888889 | R52: =K52/M52*100 -> 12.03319502 | S52: 3.8125 | T52: 14.28571429 | U52: 0.02777777778 | V52: 0.02962962963
A53: 31 | B53: Lactantes(-1 años) | C53: 1 | D53: =SUM(GETPIVOTDATA(" plact_2",$A$9)) -> 2 | E53: =SUM(GETPIVOTDATA(" plact_3",$A$9)) -> 1 | F53: =SUM(GETPIVOTDATA(" plact_4",$A$9)) -> 0 | G53: =SUM(GETPIVOTDATA(" plact_5",$A$9)) -> 0 | H53: =SUM(GETPIVOTDATA(" plact_6",$A$9)) -> 2 | I53: 1 | J53: =SUM(GETPIVOTDATA(" plact_7",$A$9)) -> 11 | K53: =SUM(GETPIVOTDATA(" plact_8",$A$9)) -> 9 | L53: =SUM(GETPIVOTDATA(" plact_9",$A$9)) -> 90 | M53: 81 | N53: 72 | O53: 10 | P53: 40.5 | Q53: 0.6666666667 | R53: 11.11111111 | S53: 5.5 | T53: 2.380952381 | U53: 0.01111111111 | V53: 0.02222222222
A54: 32 | B54: Pre escolar 1-4 años | C54: 1 | D54: =SUM(GETPIVOTDATA(" pesc4_2",$A$9)) -> 0 | E54: =SUM(GETPIVOTDATA(" pesc4_3",$A$9)) -> 4 | F54: =SUM(GETPIVOTDATA(" pesc4_4",$A$9)) -> 0 | G54: =SUM(GETPIVOTDATA(" pesc4_5",$A$9)) -> 0 | H54: =SUM(GETPIVOTDATA(" pesc4_6",$A$9)) -> 4 | I54: 0 | J54: =SUM(GETPIVOTDATA(" pesc4_7",$A$9)) -> 18 | K54: =SUM(GETPIVOTDATA(" pesc4_8",$A$9)) -> 18 | L54: =SUM(GETPIVOTDATA(" pesc4_9",$A$9)) -> 90 | M54: 72 | N54: 54 | O54: 20 | P54: 18 | Q54: 1.333333333 | R54: 25 | S54: 4.5 | T54: 2.380952381 | U54: 0.04444444444 | V54: 0.04444444444
A55: 33 | B55: Pre escolar 5 años | C55: 1 | D55: =SUM(GETPIVOTDATA(" pesc5_2",$A$9)) -> 0 | E55: =SUM(GETPIVOTDATA(" pesc5_3",$A$9)) -> 1 | F55: =SUM(GETPIVOTDATA(" pesc5_4",$A$9)) -> 0 | G55: =SUM(GETPIVOTDATA(" pesc5_5",$A$9)) -> 0 | H55: =SUM(GETPIVOTDATA(" pesc5_6",$A$9)) -> 1 | I55: 0 | J55: =SUM(GETPIVOTDATA(" pesc5_7",$A$9)) -> 4 | K55: =SUM(GETPIVOTDATA(" pesc5_8",$A$9)) -> 4 | L55: =SUM(GETPIVOTDATA(" pesc5_9",$A$9)) -> 90 | M55: 86 | N55: 82 | O55: 4.444444444 | P55: =(L55-K55)/H55 -> 86 | Q55: 0.3333333333 | R55: 4.651162791 | S55: 4 | T55: 2.380952381 | U55: 0.01111111111 | V55: 0.01111111111
A56: 34 | B56: Neonatología | C56: 2 | D56: =SUM(GETPIVOTDATA(" pneona_2",$A$9)) -> 1 | E56: =SUM(GETPIVOTDATA(" pneona_3",$A$9)) -> 7 | F56: =SUM(GETPIVOTDATA(" pneona_4",$A$9)) -> 0 | G56: =SUM(GETPIVOTDATA(" pneona_5",$A$9)) -> 0 | H56: =SUM(GETPIVOTDATA(" pneona_6",$A$9)) -> 7 | I56: 1 | J56: =SUM(GETPIVOTDATA(" pneona_7",$A$9)) -> 23 | K56: =SUM(GETPIVOTDATA(" pneona_8",$A$9)) -> 22 | L56: =SUM(GETPIVOTDATA(" pneona_9",$A$9)) -> 180 | M56: 158 | N56: 136 | O56: =K56/L56*100 -> 12.22222222 | P56: 22.57142857 | Q56: 1.166666667 | R56: 13.92405063 | S56: 3.285714286 | T56: 4.761904762 | U56: 0.03888888889 | V56: 0.03888888889
A57: 35 | B57: Escolar (6-14 años) | C57: 1 | D57: =SUM(GETPIVOTDATA(" pesc6_2",$A$9)) -> 0 | E57: =SUM(GETPIVOTDATA(" pesc6_3",$A$9)) -> 2 | F57: =SUM(GETPIVOTDATA(" pesc6_4",$A$9)) -> 0 | G57: =SUM(GETPIVOTDATA(" pesc6_5",$A$9)) -> 0 | H57: =SUM(GETPIVOTDATA(" pesc6_6",$A$9)) -> 2 | I57: 0 | J57: =SUM(GETPIVOTDATA(" pesc6_7",$A$9)) -> 5 | K57: =SUM(GETPIVOTDATA(" pesc6_8",$A$9)) -> 5 | L57: =SUM(GETPIVOTDATA(" pesc6_9",$A$9)) -> 90 | M57: 85 | N57: 80 | O57: 5.555555556 | P57: 42.5 | Q57: 0.6666666667 | R57: 5.882352941 | S57: 2.5 | T57: 2.380952381 | U57: 0.02222222222 | V57: 0.02222222222
A58: 40 | B58: Obst. y Ginec. | C58: 20 | D58: =SUM(D59:D60) -> 15 | E58: =SUM(E59:E60) -> 199 | F58: =SUM(F59:F60) -> 0 | G58: =SUM(G59:G60) -> 0 | H58: =SUM(H59:H60) -> 198 | I58: 16 | J58: =SUM(J59:J60) -> 482 | K58: =SUM(K59:K60) -> 467 | L58: =SUM(L59:L60) -> 990 | M58: 523 | N58: 56 | O58: 47.17171717 | P58: 2.641414141 | Q58: 3.3 | R58: 89.29254302 | S58: 2.434343434 | T58: 47.61904762 | U58: 0.201010101 | V58: 0.2
A59: 41 | B59: Obstetricia | C59: 9 | D59: =SUM(GETPIVOTDATA(" obs_gin_2",$A$9)) -> 7 | E59: =SUM(GETPIVOTDATA(" obs_gin_3",$A$9)) -> 103 | F59: =SUM(GETPIVOTDATA(" obs_gin_4",$A$9)) -> 0 | G59: =SUM(GETPIVOTDATA(" obs_gin_5",$A$9)) -> 0 | H59: =SUM(GETPIVOTDATA(" obs_gin_6",$A$9)) -> 101 | I59: 9 | J59: =SUM(GETPIVOTDATA(" obs_gin_7",$A$9)) -> 230 | K59: =SUM(GETPIVOTDATA(" obs_gin_8",$A$9)) -> 223 | L59: =SUM(GETPIVOTDATA(" obs_gin_9",$A$9)) -> 751 | M59: 528 | N59: 305 | O59: 29.69374168 | P59: 5.227722772 | Q59: 3.740740741 | R59: 42.23484848 | S59: 2.277227723 | T59: 21.42857143 | U59: 0.137150466 | V59: 0.1344873502
A60: 42 | B60: Ginecología | C60: 2 | D60: =SUM(GETPIVOTDATA(" ginec_2",$A$9)) -> 8 | E60: =SUM(GETPIVOTDATA(" ginec_3",$A$9)) -> 96 | F60: =SUM(GETPIVOTDATA(" ginec_4",$A$9)) -> 0 | G60: =SUM(GETPIVOTDATA(" ginec_5",$A$9)) -> 0 | H60: =SUM(GETPIVOTDATA(" ginec_6",$A$9)) -> 97 | I60: 7 | J60: =SUM(GETPIVOTDATA(" ginec_7",$A$9)) -> 252 | K60: =SUM(GETPIVOTDATA(" ginec_8",$A$9)) -> 244 | L60: =SUM(GETPIVOTDATA(" ginec_9",$A$9)) -> 239 | M60: -5 | N60: -249 | O60: 102.0920502 | P60: -0.05154639175 | Q60: 16.16666667 | R60: -4880 | S60: 2.597938144 | T60: 4.761904762 | U60: 0.4016736402 | V60: 0.4058577406
B61: UCI | M61: 0 | N61: 0
A62: ESTANDAR II-1 | O62: 80 | P62: 1 | Q62: 6 | S62: 4
A63: DIRECCION REGIONAL DE SALUD CUSCO
A64: DIRECCION DE ESTADISTCIA E INFORMATICA
A65: Informe Mensual de Actividades de Salud SES 2006
A69: AÑO | B69: 2009
A70: REDES | B70: CANAS-CANCHIS-ESPINAR
A71: MICRORED | B71: YAURI
A72: ESTABLEC | B72: C.S. YAURI
B74: Datos
A75: MESES | B75: parhos | C75: nacvivhos | D75: deffehos | E75: aborhos | F75: defmathos | G75: egvivhos | H75: egf_m24hos | I75: egf24_48hos | J75: egfmas48hos | K75: partperif | L75: nacvivperif | M75: deffeperif | N75: aborperif | O75: defmatperif | P75: egvivperif | Q75: egf_m24perif | R75: egf24_48perif | S75: egfmas48perif | T75: iqcghos | U75: iqtraumhos | V75: iqotorrihos | W75: iqoftalhosp | X75: iqurolhos | Y75: iqoncohos | Z75: iqcirplazhos | AA75: iqneurohos | AB75: iqcesarehos | AC75: iqlegrahos | AD75: iqaqvfhos | AE75: iqavmhos | AF75: iqotroshos | AG75: iqcgperif | AH75: iqtraumperif | AI75: iqotorriperif | AJ75: iqoftalperif | AK75: iqurolperif | AL75: iqoncoperif | AM75: iqcirplazperif | AN75: iqneuroperif | AO75: iqcesareperif | AP75: iqlegraperif | AQ75: iqaqvfperif | AR75: iqavmperif | AS75: iqotrosperif | AT75: sms_mg | AU75: sms_neum | AV75: sms_card | AW75: sms_neur | AX75: sms_gastr | AY75: sms_derm | AZ75: sms_nefro | BA75: sms_psiqu | BB75: otros_clini | BC75: sms_medicina | BD75: sms_cg | BE75: sms_traum | BF75: sms_otorrino | BG75: sms_oftal | BH75: sms_urul | BI75: sms_otroscir | BJ75: sms_cirujia | BK75: sms_lact1 | BL75: sms_pesc4 | BM75: sms_pesc5 | BN75: sms_neonat | BO75: sms_esc6_14 | BP75: sms_pediatria | BQ75: sms_obst | BR75: sms_ginecol | BS75: sms_uci | BT75: sms_obs_gin
A76: Total general
A89: Descripcion | C89: Hospital | D89: Periferie
A90: Partos | C90: =SUM(GETPIVOTDATA(" parhos",$A$74)) -> 0 | D90: =SUM(GETPIVOTDATA(" partperif",$A$74)) -> 0 | M90: tasa abortos
A91: Nacido vivo | C91: =SUM(GETPIVOTDATA(" nacvivhos",$A$74)) -> 0 | D91: =SUM(GETPIVOTDATA(" nacvivperif",$A$74)) -> 0 | M91: =C93/378*100 -> 0
A92: Defun.Fetal | C92: =SUM(GETPIVOTDATA(" deffehos",$A$74)) -> 0 | D92: =SUM(GETPIVOTDATA(" deffeperif",$A$74)) -> 0
A93: Abortos | C93: =SUM(GETPIVOTDATA(" aborhos",$A$74)) -> 0 | D93: =SUM(GETPIVOTDATA(" aborperif",$A$74)) -> 0
A94: Def.Materna | C94: =SUM(GETPIVOTDATA(" defmathos",$A$74)) -> 0 | D94: =SUM(GETPIVOTDATA(" defmatperif",$A$74)) -> 0 | N94: 2007 | O94: 22 | P94: 378 | Q94: =P94/O94*100 -> 1718.181818
A95: 80:Pac Egres | C95: =SUM(C96:C97) -> 0 | D95: =SUM(D96:D97) -> 0 | N95: 2008 | O95: 102 | P95: 378 | Q95: =P95/O95*100 -> 370.5882353
A96: 81 Vivos | C96: =SUM(GETPIVOTDATA(" egvivhos",$A$74)) -> 0 | D96: =SUM(GETPIVOTDATA(" egvivperif",$A$74)) -> 0 | N96: 2009 | O96: 83 | P96: 378 | Q96: =P96/O96*100 -> 455.4216867
A97: 82 fallecidos | C97: =SUM(C98:C100) -> 0 | D97: =SUM(D98:D100) -> 0 | M97: =83/378*100 -> 21.95767196
B98: 83 <24 hrs | C98: =SUM(GETPIVOTDATA(" egf_m24hos",$A$74)) -> 0 | D98: =SUM(GETPIVOTDATA(" egf_m24perif",$A$74)) -> 0
B99: 84 24-48 hrs | C99: =SUM(GETPIVOTDATA(" egf24_48hos",$A$74)) -> 0 | D99: =SUM(GETPIVOTDATA(" egf24_48perif",$A$74)) -> 0
B100: 85 >48 hrs | C100: =SUM(GETPIVOTDATA(" egfmas48hos",$A$74)) -> 0 | D100: =SUM(GETPIVOTDATA(" egfmas48perif",$A$74)) -> 0
A102: VII Intervenciones Quirurgicas
A103: Descripcion | C103: Hospital | D103: Periferie
A104: 00 Total | C104: =SUM(C105:C112,C113,C118) -> 0 | D104: =SUM(D105:D112,D113,D118) -> 0
A105: 11 | B105: Cirugía General | C105: =SUM(GETPIVOTDATA(" iqcghos",$A$74)) -> 0 | D105: =SUM(GETPIVOTDATA(" iqcgperif",$A$74)) -> 0
A106: 12 | B106: Traum. y Ortopedia | C106: =SUM(GETPIVOTDATA(" iqtraumhos",$A$74)) -> 0 | D106: =SUM(GETPIVOTDATA(" iqtraumperif",$A$74)) -> 0
A107: 13 | B107: Otorrinolaringología | C107: =SUM(GETPIVOTDATA(" iqotorrihos",$A$74)) -> 0 | D107: =SUM(GETPIVOTDATA(" iqotorriperif",$A$74)) -> 0
A108: 14 | B108: Oftalmología | C108: =SUM(GETPIVOTDATA(" iqoftalhosp",$A$74)) -> 0 | D108: =SUM(GETPIVOTDATA(" iqoftalperif",$A$74)) -> 0
A109: 15 | B109: Urología | C109: =SUM(GETPIVOTDATA(" iqurolhos",$A$74)) -> 0 | D109: =SUM(GETPIVOTDATA(" iqurolperif",$A$74)) -> 0
A110: 16 | B110: Oncologia | C110: =SUM(GETPIVOTDATA(" iqoncohos",$A$74)) -> 0 | D110: =SUM(GETPIVOTDATA(" iqoncoperif",$A$74)) -> 0
A111: 17 | B111: Cirugía Plástica | C111: =SUM(GETPIVOTDATA(" iqcirplazhos",$A$74)) -> 0 | D111: =SUM(GETPIVOTDATA(" iqcirplazperif",$A$74)) -> 0
A112: 18 | B112: Neurocirugía | C112: =SUM(GETPIVOTDATA(" iqneurohos",$A$74)) -> 0 | D112: =SUM(GETPIVOTDATA(" iqneuroperif",$A$74)) -> 0
A113: 19 | B113: Ginec. y Obstetricia | C113: =SUM(C114:C117) -> 0 | D113: =SUM(D114:D117) -> 0
B114: Cesáreas | C114: =SUM(GETPIVOTDATA(" iqcesarehos",$A$74)) -> 0 | D114: =SUM(GETPIVOTDATA(" iqcesareperif",$A$74)) -> 0
B115: Legrados Uterinos | C115: =SUM(GETPIVOTDATA(" iqlegrahos",$A$74)) -> 0 | D115: =SUM(GETPIVOTDATA(" iqlegraperif",$A$74)) -> 0
B116: AQVF | C116: =SUM(GETPIVOTDATA(" iqaqvfhos",$A$74)) -> 0 | D116: =SUM(GETPIVOTDATA(" iqaqvfperif",$A$74)) -> 0
B117: AQVM | C117: =SUM(GETPIVOTDATA(" iqavmhos",$A$74)) -> 0 | D117: =SUM(GETPIVOTDATA(" iqavmperif",$A$74)) -> 0
A118: 20 | B118: Otros: | C118: =SUM(GETPIVOTDATA(" iqotroshos",$A$74)) -> 0 | D118: =SUM(GETPIVOTDATA(" iqotrosperif",$A$74)) -> 0
Q123: sobre 6 por sem
